BIOGUIDE_ID,OFFICE,QUARTER,PROGRAM,CATEGORY,SORT SEQUENCE,DATE,TRANSCODE,RECORDID,PAYEE,START DATE,END DATE,PURPOSE,AMOUNT,YEAR
,2021 OFFICE OF THE SPEAKER,1,GENERAL EXPENDITURES,PERSONNEL COMPENSATION,DETAIL,   ,   ,   ,BERRET EMILY C,2021-01-03,2021-03-31,DIR OF OPERATIONS & ADVISOR,33988.9,2021
,2021 OFFICE OF THE SPEAKER,1,GENERAL EXPENDITURES,PERSONNEL COMPENSATION,DETAIL,   ,   ,   ,BUSH JACQUELINE D,2021-01-03,2021-02-28,DIGITAL ASSISTANT,5236.11,2021
,2021 OFFICE OF THE SPEAKER,1,GENERAL EXPENDITURES,PERSONNEL COMPENSATION,DETAIL,   ,   ,   ,BUSH JACQUELINE D,2021-03-01,2021-03-31,DEPUTY PRESS SECRETARY,4208.33,2021
,2021 OFFICE OF THE SPEAKER,1,GENERAL EXPENDITURES,PERSONNEL COMPENSATION,DETAIL,   ,   ,   ,CAPRON MARGARET W.,2021-01-03,2021-03-31,SENIOR ADV FOR POLICY & COMM,34881.5,2021
,2021 OFFICE OF THE SPEAKER,1,GENERAL EXPENDITURES,PERSONNEL COMPENSATION,DETAIL,   ,   ,   ,CHERRY STEPHANIE,2021-01-03,2021-03-31,DIRECTOR OF MEDIA AFFAIRS,22000,2021
,2021 OFFICE OF THE SPEAKER,1,GENERAL EXPENDITURES,PERSONNEL COMPENSATION,DETAIL,   ,   ,   ,COCHRAN COURTNEY E.,2021-03-29,2021-03-31,DIRECTOR OF STRATEGIC PLANNING,666.67,2021
,2021 OFFICE OF THE SPEAKER,1,GENERAL EXPENDITURES,PERSONNEL COMPENSATION,DETAIL,   ,   ,   ,CONNELLY HENRY V,2021-01-03,2021-03-31,COMMUNICATIONS DIRECTOR,40333.33,2021
,2021 OFFICE OF THE SPEAKER,1,GENERAL EXPENDITURES,PERSONNEL COMPENSATION,DETAIL,   ,   ,   ,COSTELLO JOSEPH M,2021-01-03,2021-03-31,SENIOR PRESS ASSISTANT,6041.67,2021
,2021 OFFICE OF THE SPEAKER,1,GENERAL EXPENDITURES,PERSONNEL COMPENSATION,DETAIL,   ,   ,   ,COSTELLO JOSEPH M,2021-02-01,2021-02-28,PRESS ASSISTANT,3125,2021
,2021 OFFICE OF THE SPEAKER,1,GENERAL EXPENDITURES,PERSONNEL COMPENSATION,DETAIL,   ,   ,   ,COSTELLO JOSEPH M,2021-01-01,2021-01-31,PRESS ASSISTANT (OVERTIME),2751.62,2021
,2021 OFFICE OF THE SPEAKER,1,GENERAL EXPENDITURES,PERSONNEL COMPENSATION,DETAIL,   ,   ,   ,COSTELLO JOSEPH M,2021-02-01,2021-02-28,SENIOR PRESS ASSISTANT (OVERTIME),1778.08,2021
,2021 OFFICE OF THE SPEAKER,1,GENERAL EXPENDITURES,PERSONNEL COMPENSATION,DETAIL,   ,   ,   ,DEGRAFF KENNETH B.,2021-01-03,2021-03-31,SENIOR POLICY ADVISOR,30555.56,2021
,2021 OFFICE OF THE SPEAKER,1,GENERAL EXPENDITURES,PERSONNEL COMPENSATION,DETAIL,   ,   ,   ,DEWHIRST DIANE,2021-01-03,2021-03-31,DEPUTY CHIEF OF STAFF,42508.9,2021
,2021 OFFICE OF THE SPEAKER,1,GENERAL EXPENDITURES,PERSONNEL COMPENSATION,DETAIL,   ,   ,   ,DONOHUE JENNIFER A,2021-01-03,2021-03-31,EXECUTIVE DIRECTOR,40333.33,2021
,2021 OFFICE OF THE SPEAKER,1,GENERAL EXPENDITURES,PERSONNEL COMPENSATION,DETAIL,   ,   ,   ,EDMONSON ROBERT D,2021-01-03,2021-03-31,POLICY ADVISOR,24166.67,2021
,2021 OFFICE OF THE SPEAKER,1,GENERAL EXPENDITURES,PERSONNEL COMPENSATION,DETAIL,   ,   ,   ,EDMONSON ROBERT D,2021-02-01,2021-02-28,CHIEF OF STAFF,12500,2021
,2021 OFFICE OF THE SPEAKER,1,GENERAL EXPENDITURES,PERSONNEL COMPENSATION,DETAIL,   ,   ,   ,EHRENBERG MIA R,2021-01-03,2021-03-31,DEPUTY PRESS SECRETARY,13444.44,2021
,2021 OFFICE OF THE SPEAKER,1,GENERAL EXPENDITURES,PERSONNEL COMPENSATION,DETAIL,   ,   ,   ,FIELDS MCKENZIE R,2021-03-01,2021-03-31,POLICY ADVISOR,2666.67,2021
,2021 OFFICE OF THE SPEAKER,1,GENERAL EXPENDITURES,PERSONNEL COMPENSATION,DETAIL,   ,   ,   ,FINNEY FELICIA V,2021-01-03,2021-03-31,STAFF ASSISTANT,9411.1,2021
,2021 OFFICE OF THE SPEAKER,1,GENERAL EXPENDITURES,PERSONNEL COMPENSATION,DETAIL,   ,   ,   ,FINNEY FELICIA V,2021-01-01,2021-02-28,STAFF ASSISTANT (OVERTIME),1735.25,2021
,2021 OFFICE OF THE SPEAKER,1,GENERAL EXPENDITURES,PERSONNEL COMPENSATION,DETAIL,   ,   ,   ,FISCHER JR ROBERT V.,2021-01-03,2021-03-31,ASST FLOOR CHIEF,42508.9,2021
,2021 OFFICE OF THE SPEAKER,1,GENERAL EXPENDITURES,PERSONNEL COMPENSATION,DETAIL,   ,   ,   ,FLEET II JAMES P,2021-01-03,2021-03-31,SENIOR ADVISOR,293.33,2021
,2021 OFFICE OF THE SPEAKER,1,GENERAL EXPENDITURES,PERSONNEL COMPENSATION,DETAIL,   ,   ,   ,GIBSON DYLAN B,2021-01-03,2021-01-30,DIGITAL DIRECTOR,5055.56,2021
,2021 OFFICE OF THE SPEAKER,1,GENERAL EXPENDITURES,PERSONNEL COMPENSATION,DETAIL,   ,   ,   ,GIBSON DYLAN B,2021-01-30,2021-01-30,DIGITAL DIRECTOR (OTHER COMPENSATION),5416.67,2021
,2021 OFFICE OF THE SPEAKER,1,GENERAL EXPENDITURES,PERSONNEL COMPENSATION,DETAIL,   ,   ,   ,GREENER APRIL L.,2021-01-03,2021-03-31,RESEARCH DIRECTOR,27622.23,2021
,2021 OFFICE OF THE SPEAKER,1,GENERAL EXPENDITURES,PERSONNEL COMPENSATION,DETAIL,   ,   ,   ,HAMILTON WENDY D,2021-01-03,2021-02-28,OUTREACH ASSOCIATE,11277.77,2021
,2021 OFFICE OF THE SPEAKER,1,GENERAL EXPENDITURES,PERSONNEL COMPENSATION,DETAIL,   ,   ,   ,HAMILTON WENDY D,2021-03-01,2021-03-31,OUTREACH & MEMBER SERVICES ADV,7500,2021
,2021 OFFICE OF THE SPEAKER,1,GENERAL EXPENDITURES,PERSONNEL COMPENSATION,DETAIL,   ,   ,   ,HAMMILL ANDREW T.,2021-01-03,2021-03-31,DEPUTY CHIEF OF STAFF,42508.9,2021
,2021 OFFICE OF THE SPEAKER,1,GENERAL EXPENDITURES,PERSONNEL COMPENSATION,DETAIL,   ,   ,   ,HAN LEAH J.,2021-01-03,2021-03-31,STAFF ASSISTANT,7944.44,2021
,2021 OFFICE OF THE SPEAKER,1,GENERAL EXPENDITURES,PERSONNEL COMPENSATION,DETAIL,   ,   ,   ,HAN LEAH J.,2021-01-01,2021-02-28,STAFF ASSISTANT (OVERTIME),1312.49,2021
,2021 OFFICE OF THE SPEAKER,1,GENERAL EXPENDITURES,PERSONNEL COMPENSATION,DETAIL,   ,   ,   ,HAYNES JR WILFRED J.,2021-01-03,2021-03-31,IT DIRECTOR,27652.04,2021
,2021 OFFICE OF THE SPEAKER,1,GENERAL EXPENDITURES,PERSONNEL COMPENSATION,DETAIL,   ,   ,   ,HEIL BRENNAN A.,2021-02-08,2021-03-31,DIGITAL ASSISTANT,5184.73,2021
,2021 OFFICE OF THE SPEAKER,1,GENERAL EXPENDITURES,PERSONNEL COMPENSATION,DETAIL,   ,   ,   ,HEIL BRENNAN A.,2021-02-08,2021-02-28,DIGITAL ASSISTANT (OVERTIME),1920.05,2021
,2021 OFFICE OF THE SPEAKER,1,GENERAL EXPENDITURES,PERSONNEL COMPENSATION,DETAIL,   ,   ,   ,HIDALGO ADRIANA N,2021-01-03,2021-03-31,DISTRICT SCHED/SPECIAL ASSIST,19555.56,2021
,2021 OFFICE OF THE SPEAKER,1,GENERAL EXPENDITURES,PERSONNEL COMPENSATION,DETAIL,   ,   ,   ,HOLMES NATHANIEL J,2021-01-03,2021-03-31,DEP DIR/SCHEDULING & ADVANCE,17844.44,2021
,2021 OFFICE OF THE SPEAKER,1,GENERAL EXPENDITURES,PERSONNEL COMPENSATION,DETAIL,   ,   ,   ,HURWITZ ROSS B,2021-01-03,2021-03-31,DEPUTY DIR. OF SPEECHWRITING,15888.9,2021
,2021 OFFICE OF THE SPEAKER,1,GENERAL EXPENDITURES,PERSONNEL COMPENSATION,DETAIL,   ,   ,   ,IACOBELLIS SAMUEL C,2021-01-03,2021-03-31,MBR SVC & INTERGOV AFFAIRS ADV,15594.44,2021
,2021 OFFICE OF THE SPEAKER,1,GENERAL EXPENDITURES,PERSONNEL COMPENSATION,DETAIL,   ,   ,   ,JACKSON AUDRA L,2021-01-03,2021-03-31,ASST MGR FOR THE DEM CLOAKROOM,17111.1,2021
,2021 OFFICE OF THE SPEAKER,1,GENERAL EXPENDITURES,PERSONNEL COMPENSATION,DETAIL,   ,   ,   ,JETER KRISTINA B,2021-01-03,2021-03-13,DPTY DIR/SPEC EVENT & PROTOCOL,7888.88,2021
,2021 OFFICE OF THE SPEAKER,1,GENERAL EXPENDITURES,PERSONNEL COMPENSATION,DETAIL,   ,   ,   ,JONES MEREDITH A,2021-01-19,2021-01-30,SENIOR ADVISOR,7791.67,2021
,2021 OFFICE OF THE SPEAKER,1,GENERAL EXPENDITURES,PERSONNEL COMPENSATION,DETAIL,   ,   ,   ,KAPLAN EMMA L,2021-01-03,2021-03-31,FLOOR ADVISOR,19555.56,2021
,2021 OFFICE OF THE SPEAKER,1,GENERAL EXPENDITURES,PERSONNEL COMPENSATION,DETAIL,   ,   ,   ,KEATING ROSE M,2021-01-03,2021-03-31,ASST FLOOR MANAGER,31777.77,2021
,2021 OFFICE OF THE SPEAKER,1,GENERAL EXPENDITURES,PERSONNEL COMPENSATION,DETAIL,   ,   ,   ,KEITA KAMILAH Z,2021-01-03,2021-03-31,DEPUTY INFOMATION TECH. DIRECT,24232.27,2021
,2021 OFFICE OF THE SPEAKER,1,GENERAL EXPENDITURES,PERSONNEL COMPENSATION,DETAIL,   ,   ,   ,KUNDANIS GEORGE,2021-01-03,2021-03-31,DEPUTY CHIEF OF STAFF,42508.9,2021
,2021 OFFICE OF THE SPEAKER,1,GENERAL EXPENDITURES,PERSONNEL COMPENSATION,DETAIL,   ,   ,   ,LA ALISA M,2021-01-03,2021-03-31,SPECIAL ASST TO THE SPEAKER,22000,2021
,2021 OFFICE OF THE SPEAKER,1,GENERAL EXPENDITURES,PERSONNEL COMPENSATION,DETAIL,   ,   ,   ,LEE SERYEUNG,2021-01-03,2021-03-31,PRESS SECRETARY,19555.56,2021
,2021 OFFICE OF THE SPEAKER,1,GENERAL EXPENDITURES,PERSONNEL COMPENSATION,DETAIL,   ,   ,   ,LIZARRAGA JAIME E.,2021-01-03,2021-03-31,SENIOR ADVISOR,42508.9,2021
,2021 OFFICE OF THE SPEAKER,1,GENERAL EXPENDITURES,PERSONNEL COMPENSATION,DETAIL,   ,   ,   ,LONG MICHAEL G,2021-01-03,2021-03-31,SR ADV & DIR OF MBR SERV,31777.77,2021
,2021 OFFICE OF THE SPEAKER,1,GENERAL EXPENDITURES,PERSONNEL COMPENSATION,DETAIL,   ,   ,   ,LOPEZ RILEY M,2021-01-20,2021-03-31,PRESS ASSISTANT,6902.78,2021
,2021 OFFICE OF THE SPEAKER,1,GENERAL EXPENDITURES,PERSONNEL COMPENSATION,DETAIL,   ,   ,   ,LOPEZ RILEY M,2021-01-01,2021-02-28,PRESS ASSISTANT (OVERTIME),3066.67,2021
,2021 OFFICE OF THE SPEAKER,1,GENERAL EXPENDITURES,PERSONNEL COMPENSATION,DETAIL,   ,   ,   ,MANGRUM PEARL J.,2021-01-03,2021-03-31,FINANCIAL ADMINISTRATOR,35444.44,2021
,2021 OFFICE OF THE SPEAKER,1,GENERAL EXPENDITURES,PERSONNEL COMPENSATION,DETAIL,   ,   ,   ,MANSBACH SHANA G,2021-01-03,2021-03-31,DIRECTOR OF SPEECHWRITING,24444.44,2021
,2021 OFFICE OF THE SPEAKER,1,GENERAL EXPENDITURES,PERSONNEL COMPENSATION,DETAIL,   ,   ,   ,MARRON BRENNA K,2021-01-03,2021-03-31,DEPUTY EXEC DIRECTOR,28111.1,2021
,2021 OFFICE OF THE SPEAKER,1,GENERAL EXPENDITURES,PERSONNEL COMPENSATION,DETAIL,   ,   ,   ,MCCULLOUGH MARY T,2021-01-03,2021-03-31,CHIEF OF STAFF,42508.9,2021
,2021 OFFICE OF THE SPEAKER,1,GENERAL EXPENDITURES,PERSONNEL COMPENSATION,DETAIL,   ,   ,   ,MCCULLOUGH WILLIAM J,2021-01-03,2021-03-31,PRESS ADVISOR,9166.67,2021
,2021 OFFICE OF THE SPEAKER,1,GENERAL EXPENDITURES,PERSONNEL COMPENSATION,DETAIL,   ,   ,   ,MCCULLOUGH WILLIAM J,2021-01-01,2021-02-28,PRESS ADVISOR (OVERTIME),4563.5,2021
,2021 OFFICE OF THE SPEAKER,1,GENERAL EXPENDITURES,PERSONNEL COMPENSATION,DETAIL,   ,   ,   ,MELTZER RICHARD,2021-01-03,2021-03-31,POLICY DIRECTOR,42508.9,2021
,2021 OFFICE OF THE SPEAKER,1,GENERAL EXPENDITURES,PERSONNEL COMPENSATION,DETAIL,   ,   ,   ,MILLER MONTANA R,2021-01-03,2021-03-31,DEPUTY DIRECTOR OF SCHEDULING,15644.44,2021
,2021 OFFICE OF THE SPEAKER,1,GENERAL EXPENDITURES,PERSONNEL COMPENSATION,DETAIL,   ,   ,   ,MONGE KATHERINE S,2021-01-03,2021-03-31,SENIOR COUNSEL,42508.9,2021
,2021 OFFICE OF THE SPEAKER,1,GENERAL EXPENDITURES,PERSONNEL COMPENSATION,DETAIL,   ,   ,   ,PARKER WYNDEE R.,2021-01-03,2021-03-31,NATIONAL SECURITY ADVISOR,42508.9,2021
,2021 OFFICE OF THE SPEAKER,1,GENERAL EXPENDITURES,PERSONNEL COMPENSATION,DETAIL,   ,   ,   ,PATTERSON ROBYN M.,2021-01-19,2021-03-31,DEPUTY COMMUNICATIONS DIRECTOR,25000.01,2021
,2021 OFFICE OF THE SPEAKER,1,GENERAL EXPENDITURES,PERSONNEL COMPENSATION,DETAIL,   ,   ,   ,PAZ JR CARLOS,2021-01-03,2021-03-31,SENIOR COMMUNICATIONS ADVISOR,33000,2021
,2021 OFFICE OF THE SPEAKER,1,GENERAL EXPENDITURES,PERSONNEL COMPENSATION,DETAIL,   ,   ,   ,POWELL LATRICE S,2021-01-03,2021-03-31,DEPUTY FLOOR DIRECTOR,34222.23,2021
,2021 OFFICE OF THE SPEAKER,1,GENERAL EXPENDITURES,PERSONNEL COMPENSATION,DETAIL,   ,   ,   ,PRESLEY JESSICA A,2021-03-01,2021-03-31,DIRECTOR OF DIGITAL STRATEGY,7916.67,2021
,2021 OFFICE OF THE SPEAKER,1,GENERAL EXPENDITURES,PERSONNEL COMPENSATION,DETAIL,   ,   ,   ,PRICE REVA B.,2021-01-03,2021-03-31,OUTREACH DIR & SENIOR ADVISOR,35370.63,2021
,2021 OFFICE OF THE SPEAKER,1,GENERAL EXPENDITURES,PERSONNEL COMPENSATION,DETAIL,   ,   ,   ,PRIMUS WENDELL E.,2021-01-03,2021-03-31,SR HLTH/BUDGET POLICY ADV,42508.9,2021
,2021 OFFICE OF THE SPEAKER,1,GENERAL EXPENDITURES,PERSONNEL COMPENSATION,DETAIL,   ,   ,   ,RAMIREZ MATTHEW M,2021-01-05,2021-01-30,OUTREACH ADVISOR,437.5,2021
,2021 OFFICE OF THE SPEAKER,1,GENERAL EXPENDITURES,PERSONNEL COMPENSATION,DETAIL,   ,   ,   ,RAMIREZ MATTHEW M,2021-01-05,2021-01-30,OUTREACH ADVISOR (OTHER COMPENSATION),4375,2021
,2021 OFFICE OF THE SPEAKER,1,GENERAL EXPENDITURES,PERSONNEL COMPENSATION,DETAIL,   ,   ,   ,ROSS PATRICIA L,2021-01-03,2021-03-31,SENIOR POLICY ADVISOR,29211.1,2021
,2021 OFFICE OF THE SPEAKER,1,GENERAL EXPENDITURES,PERSONNEL COMPENSATION,DETAIL,   ,   ,   ,RUDD DIANA,2021-01-03,2021-03-31,MEMBER SERVICES DIR/COUNSEL,24500,2021
,2021 OFFICE OF THE SPEAKER,1,GENERAL EXPENDITURES,PERSONNEL COMPENSATION,DETAIL,   ,   ,   ,RUIZ XENIA F,2021-01-03,2021-03-31,OUTREACH DIRECTOR,25333.33,2021
,2021 OFFICE OF THE SPEAKER,1,GENERAL EXPENDITURES,PERSONNEL COMPENSATION,DETAIL,   ,   ,   ,RUSSELL MAYA A,2021-01-03,2021-03-31,DIGITAL DIRECTOR,13444.44,2021
,2021 OFFICE OF THE SPEAKER,1,GENERAL EXPENDITURES,PERSONNEL COMPENSATION,DETAIL,   ,   ,   ,SCANNELL BROOKE A,2021-03-01,2021-03-31,SENIOR POLICY ADVISOR,6158.33,2021
,2021 OFFICE OF THE SPEAKER,1,GENERAL EXPENDITURES,PERSONNEL COMPENSATION,DETAIL,   ,   ,   ,SMITH KELSEY L,2021-01-03,2021-03-31,DIR. OF SCHEDULING & ADVANCE,33444.45,2021
,2021 OFFICE OF THE SPEAKER,1,GENERAL EXPENDITURES,PERSONNEL COMPENSATION,DETAIL,   ,   ,   ,SMITH SHANE T,2021-01-03,2021-03-31,SENIOR ADVISOR/MEMBER SERVICES,19555.56,2021
,2021 OFFICE OF THE SPEAKER,1,GENERAL EXPENDITURES,PERSONNEL COMPENSATION,DETAIL,   ,   ,   ,STERN KEITH L.,2021-01-03,2021-03-31,DIRECTOR OF FLOOR OPERATIONS,42508.9,2021
,2021 OFFICE OF THE SPEAKER,1,GENERAL EXPENDITURES,PERSONNEL COMPENSATION,DETAIL,   ,   ,   ,SWIG SARAH B,2021-01-03,2021-03-01,POLICY ASSOCIATE,8604.16,2021
,2021 OFFICE OF THE SPEAKER,1,GENERAL EXPENDITURES,PERSONNEL COMPENSATION,DETAIL,   ,   ,   ,SWIG SARAH B,2021-03-01,2021-03-01,POLICY ASSOCIATE (OTHER COMPENSATION),4375,2021
,2021 OFFICE OF THE SPEAKER,1,GENERAL EXPENDITURES,PERSONNEL COMPENSATION,DETAIL,   ,   ,   ,TECKLENBURG MICHAEL H.,2021-01-03,2021-03-31,COUNSEL,34711.1,2021
,2021 OFFICE OF THE SPEAKER,1,GENERAL EXPENDITURES,PERSONNEL COMPENSATION,DETAIL,   ,   ,   ,URRY ALEXANDER M,2021-01-03,2021-03-31,POLICY ADVISOR,13444.44,2021
,2021 OFFICE OF THE SPEAKER,1,GENERAL EXPENDITURES,PERSONNEL COMPENSATION,DETAIL,   ,   ,   ,WOLFF CELINE K.,2021-01-03,2021-01-30,DEPUTY DIGITAL DIRECTOR,3927.78,2021
,2021 OFFICE OF THE SPEAKER,1,GENERAL EXPENDITURES,PERSONNEL COMPENSATION,DETAIL,   ,   ,   ,WOLFF CELINE K.,2021-01-30,2021-01-30,DEPUTY DIGITAL DIRECTOR (OTHER COMPENSATION),3226.39,2021
,2021 OFFICE OF THE SPEAKER,1,GENERAL EXPENDITURES,PERSONNEL COMPENSATION,DETAIL,   ,   ,   ,WOLTERS KATE,2021-01-03,2021-03-31,DIRECTOR OF SPECIAL EVENTS,2444.44,2021
,2021 OFFICE OF THE SPEAKER,1,GENERAL EXPENDITURES,PERSONNEL COMPENSATION,SUBTOTAL,   ,   ,   ,   ,   ,   ,PERSONNEL COMPENSATION TOTALS:,1599221.96,2021
,2021 OFFICE OF THE SPEAKER,1,GENERAL EXPENDITURES,TRAVEL,DETAIL,2021-02-01,AP,1379371,HIDALGO ADRIANA N.,2021-01-11,2021-01-11,TAXI/PARKING/TOLLS,43.25,2021
,2021 OFFICE OF THE SPEAKER,1,GENERAL EXPENDITURES,TRAVEL,SUBTOTAL,   ,   ,   ,   ,   ,   ,TRAVEL TOTALS:,43.25,2021
,2021 OFFICE OF THE SPEAKER,1,GENERAL EXPENDITURES,RENT  COMMUNICATION  UTILITIES,DETAIL,2021-01-27,GL,MED0103890, ,2021-01-05,2021-01-05,HIR GRAPHICS (TRANSFER),50,2021
,2021 OFFICE OF THE SPEAKER,1,GENERAL EXPENDITURES,RENT  COMMUNICATION  UTILITIES,DETAIL,2021-02-18,AP,1384267,FEDEX,2021-01-05,2021-01-05,POSTAGE / COURIER / BOX RENTAL,19.91,2021
,2021 OFFICE OF THE SPEAKER,1,GENERAL EXPENDITURES,RENT  COMMUNICATION  UTILITIES,DETAIL,2021-02-25,GL,EMS0104578, ,2021-01-01,2021-01-31,DC TELECOM EQUIP (TRANSFER),228,2021
,2021 OFFICE OF THE SPEAKER,1,GENERAL EXPENDITURES,RENT  COMMUNICATION  UTILITIES,DETAIL,2021-02-25,GL,EMS0104578, ,2021-01-01,2021-01-31,DC TELECOM SERV (TRANSFER),1212,2021
,2021 OFFICE OF THE SPEAKER,1,GENERAL EXPENDITURES,RENT  COMMUNICATION  UTILITIES,DETAIL,2021-02-25,GL,EMS0104578, ,2021-01-01,2021-01-31,DC TELECOM TOLLS (TRANSFER),10270.12,2021
,2021 OFFICE OF THE SPEAKER,1,GENERAL EXPENDITURES,RENT  COMMUNICATION  UTILITIES,DETAIL,2021-03-29,GL,HRS0105331, ,2021-02-01,2021-02-28,RECORDING - (TRANSFER),385,2021
,2021 OFFICE OF THE SPEAKER,1,GENERAL EXPENDITURES,RENT  COMMUNICATION  UTILITIES,DETAIL,2021-03-29,GL,MED0105330, ,2021-03-02,2021-03-16,HIR GRAPHICS (TRANSFER),140,2021
,2021 OFFICE OF THE SPEAKER,1,GENERAL EXPENDITURES,RENT  COMMUNICATION  UTILITIES,DETAIL,2021-03-30,GL,EMS0105388, ,2021-02-01,2021-02-28,DC TELECOM EQUIP (TRANSFER),228,2021
,2021 OFFICE OF THE SPEAKER,1,GENERAL EXPENDITURES,RENT  COMMUNICATION  UTILITIES,DETAIL,2021-03-30,GL,EMS0105388, ,2021-02-01,2021-02-28,DC TELECOM SERV (TRANSFER),1212,2021
,2021 OFFICE OF THE SPEAKER,1,GENERAL EXPENDITURES,RENT  COMMUNICATION  UTILITIES,DETAIL,2021-03-30,GL,EMS0105388, ,2021-02-01,2021-02-28,DC TELECOM TOLLS (TRANSFER),9403.7,2021
,2021 OFFICE OF THE SPEAKER,1,GENERAL EXPENDITURES,RENT  COMMUNICATION  UTILITIES,SUBTOTAL,   ,   ,   ,   ,   ,   ,RENT  COMMUNICATION  UTILITIES TOTALS:,23148.73,2021
,2021 OFFICE OF THE SPEAKER,1,GENERAL EXPENDITURES,PRINTING AND REPRODUCTION,DETAIL,2021-01-21,AP,1373222,ACCURATE WORD LLC,2021-01-04,2021-01-04,PRINTING & REPRODUCTION,2447,2021
,2021 OFFICE OF THE SPEAKER,1,GENERAL EXPENDITURES,PRINTING AND REPRODUCTION,DETAIL,2021-01-27,GL,MED0103890, ,2021-01-15,2021-01-15,PHOTOGRAPHIC (TRANSFER),400,2021
,2021 OFFICE OF THE SPEAKER,1,GENERAL EXPENDITURES,PRINTING AND REPRODUCTION,DETAIL,2021-02-17,AP,1384178,CITI PCARD-B&H PHOTO 800-606-6969,2021-01-15,2021-01-15,PRINTING & REPRODUCTION,251.82,2021
,2021 OFFICE OF THE SPEAKER,1,GENERAL EXPENDITURES,PRINTING AND REPRODUCTION,DETAIL,2021-03-01,AP,1389119,ACCURATE WORD LLC,2021-02-02,2021-02-02,PRINTING & REPRODUCTION,129,2021
,2021 OFFICE OF THE SPEAKER,1,GENERAL EXPENDITURES,PRINTING AND REPRODUCTION,DETAIL,2021-03-01,AP,1389120,ACCURATE WORD LLC,2021-02-05,2021-02-05,PRINTING & REPRODUCTION,43,2021
,2021 OFFICE OF THE SPEAKER,1,GENERAL EXPENDITURES,PRINTING AND REPRODUCTION,DETAIL,2021-03-29,GL,MED0105330, ,2021-03-05,2021-03-25,PHOTOGRAPHIC (TRANSFER),173.2,2021
,2021 OFFICE OF THE SPEAKER,1,GENERAL EXPENDITURES,PRINTING AND REPRODUCTION,SUBTOTAL,   ,   ,   ,   ,   ,   ,PRINTING AND REPRODUCTION TOTALS:,3444.02,2021
,2021 OFFICE OF THE SPEAKER,1,GENERAL EXPENDITURES,OTHER SERVICES,DETAIL,2021-01-27,AP,1378292,LEIDOS DIGITAL SOLUTIONS INC,2021-01-01,2021-01-31,TECHNOLOGY SERVICE CONTRACTS,1925,2021
,2021 OFFICE OF THE SPEAKER,1,GENERAL EXPENDITURES,OTHER SERVICES,DETAIL,2021-01-27,AP,1378293,LEIDOS DIGITAL SOLUTIONS INC,2021-01-01,2021-01-31,TECHNOLOGY SERVICE CONTRACTS,10594,2021
,2021 OFFICE OF THE SPEAKER,1,GENERAL EXPENDITURES,OTHER SERVICES,DETAIL,2021-02-16,AP,1386469,LEIDOS DIGITAL SOLUTIONS INC,2021-02-01,2021-02-28,TECHNOLOGY SERVICE CONTRACTS,1925,2021
,2021 OFFICE OF THE SPEAKER,1,GENERAL EXPENDITURES,OTHER SERVICES,DETAIL,2021-02-16,AP,1386470,LEIDOS DIGITAL SOLUTIONS INC,2021-02-01,2021-02-28,TECHNOLOGY SERVICE CONTRACTS,10594,2021
,2021 OFFICE OF THE SPEAKER,1,GENERAL EXPENDITURES,OTHER SERVICES,DETAIL,2021-02-26,AP,1390954,FIRESIDE21,2021-01-01,2021-01-31,WEB DEV HST EMAIL & RLTD SERV,350,2021
,2021 OFFICE OF THE SPEAKER,1,GENERAL EXPENDITURES,OTHER SERVICES,DETAIL,2021-03-16,AP,1397729,LEIDOS DIGITAL SOLUTIONS INC,2021-03-01,2021-03-31,TECHNOLOGY SERVICE CONTRACTS,1925,2021
,2021 OFFICE OF THE SPEAKER,1,GENERAL EXPENDITURES,OTHER SERVICES,DETAIL,2021-03-16,AP,1397730,LEIDOS DIGITAL SOLUTIONS INC,2021-03-01,2021-03-31,TECHNOLOGY SERVICE CONTRACTS,10594,2021
,2021 OFFICE OF THE SPEAKER,1,GENERAL EXPENDITURES,OTHER SERVICES,DETAIL,2021-03-29,AP,1402222,FIRESIDE21,2021-02-01,2021-02-28,WEB DEV HST EMAIL & RLTD SERV,350,2021
,2021 OFFICE OF THE SPEAKER,1,GENERAL EXPENDITURES,OTHER SERVICES,SUBTOTAL,   ,   ,   ,   ,   ,   ,OTHER SERVICES TOTALS:,38257,2021
,2021 OFFICE OF THE SPEAKER,1,GENERAL EXPENDITURES,SUPPLIES AND MATERIALS,DETAIL,2021-01-19,AP,1376276,HAGUE QUALITY WATER OF MD INC,2021-01-01,2021-12-31,WATER,756,2021
,2021 OFFICE OF THE SPEAKER,1,GENERAL EXPENDITURES,SUPPLIES AND MATERIALS,DETAIL,2021-01-21,AP,1373221,HAGUE QUALITY WATER OF MD INC,2021-01-01,2021-12-31,WATER,4536,2021
,2021 OFFICE OF THE SPEAKER,1,GENERAL EXPENDITURES,SUPPLIES AND MATERIALS,DETAIL,2021-01-31,GL,RMS0104032, ,2021-01-01,2021-01-31,OFFICE SUPPLY (TRANSFER),1999.56,2021
,2021 OFFICE OF THE SPEAKER,1,GENERAL EXPENDITURES,SUPPLIES AND MATERIALS,DETAIL,2021-02-16,AP,1384205,CITI PCARD-LEVELUPSWEETGREEN3671,2021-01-03,2021-01-03,FOOD & BEVERAGE,71.17,2021
,2021 OFFICE OF THE SPEAKER,1,GENERAL EXPENDITURES,SUPPLIES AND MATERIALS,DETAIL,2021-02-16,AP,1384205,CITI PCARD-TARGET PLUS,2021-01-12,2021-01-12,OFFICE SUPPLIES (OUTSIDE),84.78,2021
,2021 OFFICE OF THE SPEAKER,1,GENERAL EXPENDITURES,SUPPLIES AND MATERIALS,DETAIL,2021-02-16,AP,1384205,CITI PCARD-TARGET.COM,2021-01-12,2021-01-12,FOOD & BEVERAGE,26.86,2021
,2021 OFFICE OF THE SPEAKER,1,GENERAL EXPENDITURES,SUPPLIES AND MATERIALS,DETAIL,2021-02-16,AP,1384205,CITI PCARD-TARGET.COM,2021-01-12,2021-01-12,OFFICE SUPPLIES (OUTSIDE),84.76,2021
,2021 OFFICE OF THE SPEAKER,1,GENERAL EXPENDITURES,SUPPLIES AND MATERIALS,DETAIL,2021-02-16,AP,1384205,CITI PCARD-WE THE PIZZA,2021-01-07,2021-01-07,FOOD & BEVERAGE,204.7,2021
,2021 OFFICE OF THE SPEAKER,1,GENERAL EXPENDITURES,SUPPLIES AND MATERIALS,DETAIL,2021-02-16,AP,1384205,CITI PCARD-WE THE PIZZA,2021-01-12,2021-01-12,FOOD & BEVERAGE,155.3,2021
,2021 OFFICE OF THE SPEAKER,1,GENERAL EXPENDITURES,SUPPLIES AND MATERIALS,DETAIL,2021-02-16,AP,1384260,TOULIES EN FLEUR,2021-02-01,2021-02-22,HABITATION EXPENSE,1050,2021
,2021 OFFICE OF THE SPEAKER,1,GENERAL EXPENDITURES,SUPPLIES AND MATERIALS,DETAIL,2021-02-16,AP,1384263,SUBURBAN FLORIST INC,2021-02-02,2021-02-02,HABITATION EXPENSE,520,2021
,2021 OFFICE OF THE SPEAKER,1,GENERAL EXPENDITURES,SUPPLIES AND MATERIALS,DETAIL,2021-02-17,AP,1384178,CITI PCARD-AMZN Mktp US MO6GH9I63,2021-01-03,2021-01-03,OFFICE SUPPLIES (OUTSIDE),27.43,2021
,2021 OFFICE OF THE SPEAKER,1,GENERAL EXPENDITURES,SUPPLIES AND MATERIALS,DETAIL,2021-02-17,AP,1384178,CITI PCARD-BESTBUYCOM806407009863,2021-01-04,2021-01-04,OFFICE SUPPLIES (OUTSIDE),179.98,2021
,2021 OFFICE OF THE SPEAKER,1,GENERAL EXPENDITURES,SUPPLIES AND MATERIALS,DETAIL,2021-02-17,AP,1384178,CITI PCARD-DNH GODADDY.COM EUROPE,2021-01-20,2021-01-20,SOFTWARE  LESS THAN  $500,126.64,2021
,2021 OFFICE OF THE SPEAKER,1,GENERAL EXPENDITURES,SUPPLIES AND MATERIALS,DETAIL,2021-02-17,AP,1384178,CITI PCARD-DROPBOX DNMSNXK1Y3B8,2021-01-14,2021-01-14,SOFTWARE  LESS THAN  $500,127.07,2021
,2021 OFFICE OF THE SPEAKER,1,GENERAL EXPENDITURES,SUPPLIES AND MATERIALS,DETAIL,2021-02-17,AP,1384178,CITI PCARD-ENVATO,2021-01-05,2021-01-05,PUBLICATIONS/REFERENCE MAT'L,447,2021
,2021 OFFICE OF THE SPEAKER,1,GENERAL EXPENDITURES,SUPPLIES AND MATERIALS,DETAIL,2021-02-17,AP,1384178,CITI PCARD-SKYPE.COM/GO/BILL,2021-01-24,2021-01-24,SOFTWARE  LESS THAN  $500,2.99,2021
,2021 OFFICE OF THE SPEAKER,1,GENERAL EXPENDITURES,SUPPLIES AND MATERIALS,DETAIL,2021-02-17,AP,1384259,TOULIES EN FLEUR,2021-01-19,2021-01-19,HABITATION EXPENSE,350,2021
,2021 OFFICE OF THE SPEAKER,1,GENERAL EXPENDITURES,SUPPLIES AND MATERIALS,DETAIL,2021-02-17,AP,1384259,TOULIES EN FLEUR,2021-01-25,2021-01-25,HABITATION EXPENSE,350,2021
,2021 OFFICE OF THE SPEAKER,1,GENERAL EXPENDITURES,SUPPLIES AND MATERIALS,DETAIL,2021-02-17,AP,1385095,SODEXO,2021-02-03,2021-02-03,WATER,120,2021
,2021 OFFICE OF THE SPEAKER,1,GENERAL EXPENDITURES,SUPPLIES AND MATERIALS,DETAIL,2021-02-28,GL,RMS0104712, ,2021-02-01,2021-02-28,OFFICE SUPPLY (TRANSFER),206.29,2021
,2021 OFFICE OF THE SPEAKER,1,GENERAL EXPENDITURES,SUPPLIES AND MATERIALS,DETAIL,2021-03-16,AP,1396069,LIZARRAGA JAIME E.,2021-01-25,2021-01-25,OFFICE SUPPLIES (OUTSIDE),7.4,2021
,2021 OFFICE OF THE SPEAKER,1,GENERAL EXPENDITURES,SUPPLIES AND MATERIALS,DETAIL,2021-03-16,AP,1396069,LIZARRAGA JAIME E.,2021-02-16,2021-02-16,OFFICE SUPPLIES (OUTSIDE),34.22,2021
,2021 OFFICE OF THE SPEAKER,1,GENERAL EXPENDITURES,SUPPLIES AND MATERIALS,DETAIL,2021-03-17,AP,1395995,CITI PCARD-AMZN Mktp US,2021-02-12,2021-02-12,OFFICE SUPPLIES (OUTSIDE),-158.97,2021
,2021 OFFICE OF THE SPEAKER,1,GENERAL EXPENDITURES,SUPPLIES AND MATERIALS,DETAIL,2021-03-17,AP,1395995,CITI PCARD-AMZN Mktp US 1E8SE75S3,2021-02-17,2021-02-17,OFFICE SUPPLIES (OUTSIDE),129.95,2021
,2021 OFFICE OF THE SPEAKER,1,GENERAL EXPENDITURES,SUPPLIES AND MATERIALS,DETAIL,2021-03-17,AP,1395995,CITI PCARD-AMZN Mktp US DR9ZI5OV3,2021-02-12,2021-02-12,OFFICE SUPPLIES (OUTSIDE),1355.03,2021
,2021 OFFICE OF THE SPEAKER,1,GENERAL EXPENDITURES,SUPPLIES AND MATERIALS,DETAIL,2021-03-17,AP,1395995,CITI PCARD-AMZN Mktp US PX9KQ01W3,2021-02-24,2021-02-24,OFFICE SUPPLIES (OUTSIDE),119.95,2021
,2021 OFFICE OF THE SPEAKER,1,GENERAL EXPENDITURES,SUPPLIES AND MATERIALS,DETAIL,2021-03-17,AP,1395995,CITI PCARD-AMZN Mktp US TO5MN02L3,2021-02-18,2021-02-18,OFFICE SUPPLIES (OUTSIDE),119.95,2021
,2021 OFFICE OF THE SPEAKER,1,GENERAL EXPENDITURES,SUPPLIES AND MATERIALS,DETAIL,2021-03-17,AP,1395995,CITI PCARD-NEW YORK PIZZA GRILKABOB,2021-02-18,2021-02-18,FOOD & BEVERAGE,94.95,2021
,2021 OFFICE OF THE SPEAKER,1,GENERAL EXPENDITURES,SUPPLIES AND MATERIALS,DETAIL,2021-03-17,AP,1395995,CITI PCARD-TARGET.COM,2021-02-05,2021-02-05,FOOD & BEVERAGE,28.71,2021
,2021 OFFICE OF THE SPEAKER,1,GENERAL EXPENDITURES,SUPPLIES AND MATERIALS,DETAIL,2021-03-17,AP,1395995,CITI PCARD-TARGET.COM,2021-02-05,2021-02-05,OFFICE SUPPLIES (OUTSIDE),30.76,2021
,2021 OFFICE OF THE SPEAKER,1,GENERAL EXPENDITURES,SUPPLIES AND MATERIALS,DETAIL,2021-03-17,AP,1395995,CITI PCARD-WALGREENS #10616,2021-02-18,2021-02-18,OFFICE SUPPLIES (OUTSIDE),97.46,2021
,2021 OFFICE OF THE SPEAKER,1,GENERAL EXPENDITURES,SUPPLIES AND MATERIALS,DETAIL,2021-03-17,AP,1395995,CITI PCARD-WALGREENS #10616,2021-02-19,2021-02-19,OFFICE SUPPLIES (OUTSIDE),220.31,2021
,2021 OFFICE OF THE SPEAKER,1,GENERAL EXPENDITURES,SUPPLIES AND MATERIALS,DETAIL,2021-03-17,AP,1395995,CITI PCARD-WE THE PIZZA,2021-02-02,2021-02-02,FOOD & BEVERAGE,220.8,2021
,2021 OFFICE OF THE SPEAKER,1,GENERAL EXPENDITURES,SUPPLIES AND MATERIALS,DETAIL,2021-03-17,AP,1395995,CITI PCARD-WM SUPERCENTER #5753,2021-02-17,2021-02-17,OFFICE SUPPLIES (OUTSIDE),188.26,2021
,2021 OFFICE OF THE SPEAKER,1,GENERAL EXPENDITURES,SUPPLIES AND MATERIALS,DETAIL,2021-03-17,AP,1395995,CITI PCARD-WWW COSTCO COM,2021-02-05,2021-02-05,FOOD & BEVERAGE,111.97,2021
,2021 OFFICE OF THE SPEAKER,1,GENERAL EXPENDITURES,SUPPLIES AND MATERIALS,DETAIL,2021-03-31,GL,RMS0105505, ,2021-03-01,2021-03-31,OFFICE SUPPLY (TRANSFER),521.09,2021
,2021 OFFICE OF THE SPEAKER,1,GENERAL EXPENDITURES,SUPPLIES AND MATERIALS,SUBTOTAL,   ,   ,   ,   ,   ,   ,SUPPLIES AND MATERIALS TOTALS:,14548.37,2021
,2021 OFFICE OF THE SPEAKER,1,GENERAL EXPENDITURES,EQUIPMENT,DETAIL,2021-01-29,GL,MNT0103932, ,2021-01-01,2021-01-31,MAINTENANCE / REPAIRS,916,2021
,2021 OFFICE OF THE SPEAKER,1,GENERAL EXPENDITURES,EQUIPMENT,DETAIL,2021-02-26,GL,MNT0104611, ,2021-02-01,2021-02-28,MAINTENANCE / REPAIRS,916,2021
,2021 OFFICE OF THE SPEAKER,1,GENERAL EXPENDITURES,EQUIPMENT,DETAIL,2021-03-17,AP,1396016,SMITH KELSEY L.,2021-02-27,2021-02-27,MAINTENANCE / REPAIRS,136.74,2021
,2021 OFFICE OF THE SPEAKER,1,GENERAL EXPENDITURES,EQUIPMENT,DETAIL,2021-03-31,GL,MNT0105439, ,2021-03-01,2021-03-31,MAINTENANCE / REPAIRS,916,2021
,2021 OFFICE OF THE SPEAKER,1,GENERAL EXPENDITURES,EQUIPMENT,SUBTOTAL,   ,   ,   ,   ,   ,   ,EQUIPMENT TOTALS:,2884.74,2021
,2021 OFFICE OF THE SPEAKER,1,GENERAL EXPENDITURES,EQUIPMENT,SUBTOTAL,   ,   ,   ,   ,   ,   ,GENERAL EXPENDITURES TOTALS:,1681548.07,2021
,2021 OFFICE OF THE SPEAKER,1,GENERAL EXPENDITURES,EQUIPMENT,GRAND TOTAL FOR ORGANIZATION,   ,   ,   ,   ,   ,   ,OFFICE TOTALS: ,1681548.07,2021
,2020 OFFICE OF THE SPEAKER,1,GENERAL EXPENDITURES,FRANKED MAIL,DETAIL,2021-02-05,AP,1382743,UNITED STATES POSTAL SERVICE,2020-10-01,2020-10-31,FRANKED MAIL,2688.31,2021
,2020 OFFICE OF THE SPEAKER,1,GENERAL EXPENDITURES,FRANKED MAIL,SUBTOTAL,   ,   ,   ,   ,   ,   ,FRANKED MAIL TOTALS:,2688.31,2021
,2020 OFFICE OF THE SPEAKER,1,GENERAL EXPENDITURES,PERSONNEL COMPENSATION,DETAIL,   ,   ,   ,BERRET EMILY C,2020-06-01,2021-01-02,DIR OF OPERATIONS & ADVISOR,4761.11,2021
,2020 OFFICE OF THE SPEAKER,1,GENERAL EXPENDITURES,PERSONNEL COMPENSATION,DETAIL,   ,   ,   ,BUSH JACQUELINE D,2021-01-01,2021-01-02,DIGITAL ASSISTANT,180.56,2021
,2020 OFFICE OF THE SPEAKER,1,GENERAL EXPENDITURES,PERSONNEL COMPENSATION,DETAIL,   ,   ,   ,CAPRON MARGARET W.,2020-07-01,2021-01-02,SENIOR ADV FOR POLICY & COMM,4792.76,2021
,2020 OFFICE OF THE SPEAKER,1,GENERAL EXPENDITURES,PERSONNEL COMPENSATION,DETAIL,   ,   ,   ,CHERRY STEPHANIE,2020-11-01,2021-01-02,DIRECTOR OF MEDIA AFFAIRS,4500,2021
,2020 OFFICE OF THE SPEAKER,1,GENERAL EXPENDITURES,PERSONNEL COMPENSATION,DETAIL,   ,   ,   ,CONNELLY HENRY V,2020-06-01,2020-06-01,DEPUTY COMMUNICATIONS DIRECTOR,4000,2021
,2020 OFFICE OF THE SPEAKER,1,GENERAL EXPENDITURES,PERSONNEL COMPENSATION,DETAIL,   ,   ,   ,CONNELLY HENRY V,2021-01-01,2021-01-02,COMMUNICATIONS DIRECTOR,916.67,2021
,2020 OFFICE OF THE SPEAKER,1,GENERAL EXPENDITURES,PERSONNEL COMPENSATION,DETAIL,   ,   ,   ,COSTELLO JOSEPH M,2020-11-01,2020-11-01,PRESS ASSISTANT,4000,2021
,2020 OFFICE OF THE SPEAKER,1,GENERAL EXPENDITURES,PERSONNEL COMPENSATION,DETAIL,   ,   ,   ,COSTELLO JOSEPH M,2021-01-01,2021-01-02,SENIOR PRESS ASSISTANT,208.33,2021
,2020 OFFICE OF THE SPEAKER,1,GENERAL EXPENDITURES,PERSONNEL COMPENSATION,DETAIL,   ,   ,   ,COSTELLO JOSEPH M,2020-11-01,2020-12-31,PRESS ASSISTANT (OVERTIME),6262.38,2021
,2020 OFFICE OF THE SPEAKER,1,GENERAL EXPENDITURES,PERSONNEL COMPENSATION,DETAIL,   ,   ,   ,DEGRAFF KENNETH B.,2020-11-01,2021-01-02,SENIOR POLICY ADVISOR,4694.44,2021
,2020 OFFICE OF THE SPEAKER,1,GENERAL EXPENDITURES,PERSONNEL COMPENSATION,DETAIL,   ,   ,   ,DEWHIRST DIANE,2021-01-01,2021-01-02,DEPUTY CHIEF OF STAFF,966.11,2021
,2020 OFFICE OF THE SPEAKER,1,GENERAL EXPENDITURES,PERSONNEL COMPENSATION,DETAIL,   ,   ,   ,DILLON KRISTEN G,2021-01-01,2021-01-02,POLICY ADVISOR,6.67,2021
,2020 OFFICE OF THE SPEAKER,1,GENERAL EXPENDITURES,PERSONNEL COMPENSATION,DETAIL,   ,   ,   ,DONOHUE JENNIFER A,2021-01-01,2021-01-02,EXECUTIVE DIRECTOR,916.67,2021
,2020 OFFICE OF THE SPEAKER,1,GENERAL EXPENDITURES,PERSONNEL COMPENSATION,DETAIL,   ,   ,   ,EDMONSON ROBERT D,2020-02-01,2021-01-02,POLICY ADVISOR,4833.33,2021
,2020 OFFICE OF THE SPEAKER,1,GENERAL EXPENDITURES,PERSONNEL COMPENSATION,DETAIL,   ,   ,   ,EHRENBERG MIA R,2020-12-01,2021-01-02,DEPUTY PRESS SECRETARY,4305.56,2021
,2020 OFFICE OF THE SPEAKER,1,GENERAL EXPENDITURES,PERSONNEL COMPENSATION,DETAIL,   ,   ,   ,FINNEY FELICIA V,2020-11-01,2021-01-02,STAFF ASSISTANT,4213.89,2021
,2020 OFFICE OF THE SPEAKER,1,GENERAL EXPENDITURES,PERSONNEL COMPENSATION,DETAIL,   ,   ,   ,FINNEY FELICIA V,2020-11-01,2020-12-31,STAFF ASSISTANT (OVERTIME),3803.52,2021
,2020 OFFICE OF THE SPEAKER,1,GENERAL EXPENDITURES,PERSONNEL COMPENSATION,DETAIL,   ,   ,   ,FISCHER JR ROBERT V.,2021-01-01,2021-01-02,ASST FLOOR CHIEF,966.11,2021
,2020 OFFICE OF THE SPEAKER,1,GENERAL EXPENDITURES,PERSONNEL COMPENSATION,DETAIL,   ,   ,   ,FLEET II JAMES P,2021-01-01,2021-01-02,SENIOR ADVISOR,6.67,2021
,2020 OFFICE OF THE SPEAKER,1,GENERAL EXPENDITURES,PERSONNEL COMPENSATION,DETAIL,   ,   ,   ,GARCIA MONICA,2021-01-01,2021-01-02,COMMUNICATIONS DIRECTOR,377.78,2021
,2020 OFFICE OF THE SPEAKER,1,GENERAL EXPENDITURES,PERSONNEL COMPENSATION,DETAIL,   ,   ,   ,GIBSON DYLAN B,2021-01-01,2021-01-02,DIGITAL DIRECTOR,361.11,2021
,2020 OFFICE OF THE SPEAKER,1,GENERAL EXPENDITURES,PERSONNEL COMPENSATION,DETAIL,   ,   ,   ,GREENER APRIL L.,2020-11-01,2021-01-02,RESEARCH DIRECTOR,4627.78,2021
,2020 OFFICE OF THE SPEAKER,1,GENERAL EXPENDITURES,PERSONNEL COMPENSATION,DETAIL,   ,   ,   ,HAMMILL ANDREW T.,2021-01-01,2021-01-02,DEPUTY CHIEF OF STAFF,966.11,2021
,2020 OFFICE OF THE SPEAKER,1,GENERAL EXPENDITURES,PERSONNEL COMPENSATION,DETAIL,   ,   ,   ,HAN LEAH J.,2020-11-01,2021-01-02,STAFF ASSISTANT,4180.56,2021
,2020 OFFICE OF THE SPEAKER,1,GENERAL EXPENDITURES,PERSONNEL COMPENSATION,DETAIL,   ,   ,   ,HAN LEAH J.,2020-11-01,2020-12-31,STAFF ASSISTANT (OVERTIME),3558.15,2021
,2020 OFFICE OF THE SPEAKER,1,GENERAL EXPENDITURES,PERSONNEL COMPENSATION,DETAIL,   ,   ,   ,HAYNES JR WILFRED J.,2020-06-01,2021-01-02,IT DIRECTOR,4628.46,2021
,2020 OFFICE OF THE SPEAKER,1,GENERAL EXPENDITURES,PERSONNEL COMPENSATION,DETAIL,   ,   ,   ,HIDALGO ADRIANA N,2020-07-01,2021-01-02,DISTRICT SCHED/SPECIAL ASSIST,4444.44,2021
,2020 OFFICE OF THE SPEAKER,1,GENERAL EXPENDITURES,PERSONNEL COMPENSATION,DETAIL,   ,   ,   ,HOLMES NATHANIEL J,2020-12-01,2021-01-02,DEP DIR/SCHEDULING & ADVANCE,4405.56,2021
,2020 OFFICE OF THE SPEAKER,1,GENERAL EXPENDITURES,PERSONNEL COMPENSATION,DETAIL,   ,   ,   ,HURWITZ ROSS B,2020-12-01,2021-01-02,DEPUTY DIR. OF SPEECHWRITING,4361.11,2021
,2020 OFFICE OF THE SPEAKER,1,GENERAL EXPENDITURES,PERSONNEL COMPENSATION,DETAIL,   ,   ,   ,IACOBELLIS SAMUEL C,2020-12-01,2021-01-02,MBR SVC & INTERGOV AFFAIRS ADV,4280.56,2021
,2020 OFFICE OF THE SPEAKER,1,GENERAL EXPENDITURES,PERSONNEL COMPENSATION,DETAIL,   ,   ,   ,JACKSON AUDRA L,2020-12-01,2021-01-02,ASST MGR FOR THE DEM CLOAKROOM,4388.89,2021
,2020 OFFICE OF THE SPEAKER,1,GENERAL EXPENDITURES,PERSONNEL COMPENSATION,DETAIL,   ,   ,   ,JETER KRISTINA B,2020-08-01,2021-01-02,DPTY DIR/SPEC EVENT & PROTOCOL,4222.22,2021
,2020 OFFICE OF THE SPEAKER,1,GENERAL EXPENDITURES,PERSONNEL COMPENSATION,DETAIL,   ,   ,   ,JONES MEREDITH A,2021-01-01,2021-01-02,SENIOR ADVISOR,916.67,2021
,2020 OFFICE OF THE SPEAKER,1,GENERAL EXPENDITURES,PERSONNEL COMPENSATION,DETAIL,   ,   ,   ,KAPLAN EMMA L,2020-11-01,2021-01-02,FLOOR ADVISOR,4444.44,2021
,2020 OFFICE OF THE SPEAKER,1,GENERAL EXPENDITURES,PERSONNEL COMPENSATION,DETAIL,   ,   ,   ,KEATING ROSE M,2020-07-01,2021-01-02,ASST FLOOR MANAGER,4722.22,2021
,2020 OFFICE OF THE SPEAKER,1,GENERAL EXPENDITURES,PERSONNEL COMPENSATION,DETAIL,   ,   ,   ,KEITA KAMILAH Z,2020-11-01,2021-01-02,DEPUTY INFOMATION TECH. DIRECT,4550.73,2021
,2020 OFFICE OF THE SPEAKER,1,GENERAL EXPENDITURES,PERSONNEL COMPENSATION,DETAIL,   ,   ,   ,KUNDANIS GEORGE,2021-01-01,2021-01-02,DEPUTY CHIEF OF STAFF,966.11,2021
,2020 OFFICE OF THE SPEAKER,1,GENERAL EXPENDITURES,PERSONNEL COMPENSATION,DETAIL,   ,   ,   ,LA ALISA M,2020-11-01,2021-01-02,SPECIAL ASST TO THE SPEAKER,4500,2021
,2020 OFFICE OF THE SPEAKER,1,GENERAL EXPENDITURES,PERSONNEL COMPENSATION,DETAIL,   ,   ,   ,LEE SERYEUNG,2020-11-01,2021-01-02,PRESS SECRETARY,4444.44,2021
,2020 OFFICE OF THE SPEAKER,1,GENERAL EXPENDITURES,PERSONNEL COMPENSATION,DETAIL,   ,   ,   ,LIZARRAGA JAIME E.,2021-01-01,2021-01-02,SENIOR ADVISOR,966.11,2021
,2020 OFFICE OF THE SPEAKER,1,GENERAL EXPENDITURES,PERSONNEL COMPENSATION,DETAIL,   ,   ,   ,LONG MICHAEL G,2020-07-01,2021-01-02,SR ADV & DIR OF MBR SERV,4722.22,2021
,2020 OFFICE OF THE SPEAKER,1,GENERAL EXPENDITURES,PERSONNEL COMPENSATION,DETAIL,   ,   ,   ,MANGRUM PEARL J.,2021-01-01,2021-01-02,FINANCIAL ADMINISTRATOR,805.56,2021
,2020 OFFICE OF THE SPEAKER,1,GENERAL EXPENDITURES,PERSONNEL COMPENSATION,DETAIL,   ,   ,   ,MANSBACH SHANA G,2020-11-01,2021-01-02,DIRECTOR OF SPEECHWRITING,4555.56,2021
,2020 OFFICE OF THE SPEAKER,1,GENERAL EXPENDITURES,PERSONNEL COMPENSATION,DETAIL,   ,   ,   ,MARRON BRENNA K,2021-01-01,2021-01-02,DEPUTY EXEC DIRECTOR,638.89,2021
,2020 OFFICE OF THE SPEAKER,1,GENERAL EXPENDITURES,PERSONNEL COMPENSATION,DETAIL,   ,   ,   ,MASON GRAHAM H,2021-01-01,2021-01-02,SENIOR ADVISOR,6.67,2021
,2020 OFFICE OF THE SPEAKER,1,GENERAL EXPENDITURES,PERSONNEL COMPENSATION,DETAIL,   ,   ,   ,MCCULLOUGH MARY T,2021-01-01,2021-01-02,CHIEF OF STAFF,966.11,2021
,2020 OFFICE OF THE SPEAKER,1,GENERAL EXPENDITURES,PERSONNEL COMPENSATION,DETAIL,   ,   ,   ,MCCULLOUGH WILLIAM J,2020-11-01,2020-11-01,PRESS ASSISTANT,4000,2021
,2020 OFFICE OF THE SPEAKER,1,GENERAL EXPENDITURES,PERSONNEL COMPENSATION,DETAIL,   ,   ,   ,MCCULLOUGH WILLIAM J,2021-01-01,2021-01-02,PRESS ADVISOR,208.33,2021
,2020 OFFICE OF THE SPEAKER,1,GENERAL EXPENDITURES,PERSONNEL COMPENSATION,DETAIL,   ,   ,   ,MCCULLOUGH WILLIAM J,2020-11-01,2020-12-31,PRESS ASSISTANT (OVERTIME),4773.13,2021
,2020 OFFICE OF THE SPEAKER,1,GENERAL EXPENDITURES,PERSONNEL COMPENSATION,DETAIL,   ,   ,   ,MELTZER RICHARD,2021-01-01,2021-01-02,POLICY DIRECTOR,966.11,2021
,2020 OFFICE OF THE SPEAKER,1,GENERAL EXPENDITURES,PERSONNEL COMPENSATION,DETAIL,   ,   ,   ,MILLER MONTANA R,2020-12-01,2021-01-02,DEPUTY DIRECTOR OF SCHEDULING,4355.56,2021
,2020 OFFICE OF THE SPEAKER,1,GENERAL EXPENDITURES,PERSONNEL COMPENSATION,DETAIL,   ,   ,   ,MONGE KATHERINE S,2021-01-01,2021-01-02,SENIOR COUNSEL,966.11,2021
,2020 OFFICE OF THE SPEAKER,1,GENERAL EXPENDITURES,PERSONNEL COMPENSATION,DETAIL,   ,   ,   ,PARKER WYNDEE R.,2021-01-01,2021-01-02,NATIONAL SECURITY ADVISOR,966.11,2021
,2020 OFFICE OF THE SPEAKER,1,GENERAL EXPENDITURES,PERSONNEL COMPENSATION,DETAIL,   ,   ,   ,POWELL LATRICE S,2020-07-01,2021-01-02,DEPUTY FLOOR DIRECTOR,4777.78,2021
,2020 OFFICE OF THE SPEAKER,1,GENERAL EXPENDITURES,PERSONNEL COMPENSATION,DETAIL,   ,   ,   ,PRICE REVA B.,2020-07-01,2021-01-02,OUTREACH DIR & SENIOR ADVISOR,4803.88,2021
,2020 OFFICE OF THE SPEAKER,1,GENERAL EXPENDITURES,PERSONNEL COMPENSATION,DETAIL,   ,   ,   ,PRIMUS WENDELL E.,2021-01-01,2021-01-02,SR HLTH/BUDGET POLICY ADV,966.11,2021
,2020 OFFICE OF THE SPEAKER,1,GENERAL EXPENDITURES,PERSONNEL COMPENSATION,DETAIL,   ,   ,   ,RAMIREZ MATTHEW M,2021-01-01,2021-01-02,OUTREACH ADVISOR,291.67,2021
,2020 OFFICE OF THE SPEAKER,1,GENERAL EXPENDITURES,PERSONNEL COMPENSATION,DETAIL,   ,   ,   ,ROBLES CLARISSA V,2021-01-01,2021-01-02,MEMBER SERVICES COORDINATOR,277.78,2021
,2020 OFFICE OF THE SPEAKER,1,GENERAL EXPENDITURES,PERSONNEL COMPENSATION,DETAIL,   ,   ,   ,ROSS PATRICIA L,2020-11-01,2021-01-02,SENIOR POLICY ADVISOR,4538.89,2021
,2020 OFFICE OF THE SPEAKER,1,GENERAL EXPENDITURES,PERSONNEL COMPENSATION,DETAIL,   ,   ,   ,RUSSELL MAYA A,2021-01-01,2021-01-02,DIGITAL DIRECTOR,305.56,2021
,2020 OFFICE OF THE SPEAKER,1,GENERAL EXPENDITURES,PERSONNEL COMPENSATION,DETAIL,   ,   ,   ,SANCHEZ CARLOS S.,2021-01-01,2021-01-02,SENIOR ADVISOR,6.67,2021
,2020 OFFICE OF THE SPEAKER,1,GENERAL EXPENDITURES,PERSONNEL COMPENSATION,DETAIL,   ,   ,   ,SMITH KELSEY L,2020-07-01,2021-01-02,DIR. OF SCHEDULING & ADVANCE,4722.22,2021
,2020 OFFICE OF THE SPEAKER,1,GENERAL EXPENDITURES,PERSONNEL COMPENSATION,DETAIL,   ,   ,   ,SMITH SHANE T,2020-11-01,2021-01-02,SENIOR ADVISOR/MEMBER SERVICES,4444.44,2021
,2020 OFFICE OF THE SPEAKER,1,GENERAL EXPENDITURES,PERSONNEL COMPENSATION,DETAIL,   ,   ,   ,STERN KEITH L.,2021-01-01,2021-01-02,DIRECTOR OF FLOOR OPERATIONS,966.11,2021
,2020 OFFICE OF THE SPEAKER,1,GENERAL EXPENDITURES,PERSONNEL COMPENSATION,DETAIL,   ,   ,   ,SWIG SARAH B,2020-12-01,2021-01-02,POLICY ASSOCIATE,4291.67,2021
,2020 OFFICE OF THE SPEAKER,1,GENERAL EXPENDITURES,PERSONNEL COMPENSATION,DETAIL,   ,   ,   ,TECKLENBURG MICHAEL H.,2020-07-01,2021-01-02,COUNSEL,4788.89,2021
,2020 OFFICE OF THE SPEAKER,1,GENERAL EXPENDITURES,PERSONNEL COMPENSATION,DETAIL,   ,   ,   ,URRY ALEXANDER M,2020-12-01,2021-01-02,POLICY ADVISOR,4305.56,2021
,2020 OFFICE OF THE SPEAKER,1,GENERAL EXPENDITURES,PERSONNEL COMPENSATION,DETAIL,   ,   ,   ,WOLFF CELINE K.,2021-01-01,2021-01-02,DEPUTY DIGITAL DIRECTOR,280.56,2021
,2020 OFFICE OF THE SPEAKER,1,GENERAL EXPENDITURES,PERSONNEL COMPENSATION,DETAIL,   ,   ,   ,WOLTERS KATE,2021-01-01,2021-01-02,DIRECTOR OF SPECIAL EVENTS,55.56,2021
,2020 OFFICE OF THE SPEAKER,1,GENERAL EXPENDITURES,PERSONNEL COMPENSATION,SUBTOTAL,   ,   ,   ,   ,   ,   ,PERSONNEL COMPENSATION TOTALS:,192401.94,2021
,2020 OFFICE OF THE SPEAKER,1,GENERAL EXPENDITURES,RENT  COMMUNICATION  UTILITIES,DETAIL,2021-01-04,AP,1369658,FEDEX,2020-12-10,2020-12-11,POSTAGE / COURIER / BOX RENTAL,29.33,2021
,2020 OFFICE OF THE SPEAKER,1,GENERAL EXPENDITURES,RENT  COMMUNICATION  UTILITIES,DETAIL,2021-01-19,AP,1373236,CITI PCARD-USPS PO 1050091422,2020-12-02,2020-12-02,POSTAGE / COURIER / BOX RENTAL,15.5,2021
,2020 OFFICE OF THE SPEAKER,1,GENERAL EXPENDITURES,RENT  COMMUNICATION  UTILITIES,DETAIL,2021-01-26,GL,EMS0103803, ,2020-12-01,2020-12-31,DC TELECOM EQUIP (TRANSFER),228,2021
,2020 OFFICE OF THE SPEAKER,1,GENERAL EXPENDITURES,RENT  COMMUNICATION  UTILITIES,DETAIL,2021-01-26,GL,EMS0103803, ,2020-12-01,2020-12-31,DC TELECOM SERV (TRANSFER),1212,2021
,2020 OFFICE OF THE SPEAKER,1,GENERAL EXPENDITURES,RENT  COMMUNICATION  UTILITIES,DETAIL,2021-01-26,GL,EMS0103803, ,2020-12-01,2020-12-31,DC TELECOM TOLLS (TRANSFER),7712.9,2021
,2020 OFFICE OF THE SPEAKER,1,GENERAL EXPENDITURES,RENT  COMMUNICATION  UTILITIES,DETAIL,2021-02-16,AP,1384264,FEDEX,2020-12-11,2020-12-14,POSTAGE / COURIER / BOX RENTAL,26.58,2021
,2020 OFFICE OF THE SPEAKER,1,GENERAL EXPENDITURES,RENT  COMMUNICATION  UTILITIES,DETAIL,2021-02-16,AP,1384265,FEDEX,2020-12-31,2020-12-31,POSTAGE / COURIER / BOX RENTAL,14.94,2021
,2020 OFFICE OF THE SPEAKER,1,GENERAL EXPENDITURES,RENT  COMMUNICATION  UTILITIES,DETAIL,2021-02-16,AP,1384268,FEDEX,2020-12-31,2020-12-31,POSTAGE / COURIER / BOX RENTAL,70.44,2021
,2020 OFFICE OF THE SPEAKER,1,GENERAL EXPENDITURES,RENT  COMMUNICATION  UTILITIES,DETAIL,2021-02-18,AP,1384267,FEDEX,2020-12-30,2021-01-02,POSTAGE / COURIER / BOX RENTAL,56.4,2021
,2020 OFFICE OF THE SPEAKER,1,GENERAL EXPENDITURES,RENT  COMMUNICATION  UTILITIES,DETAIL,2021-02-18,AP,1384439,HYATT REGENCY WASHINGTON ON CAPITOL HILL,2020-11-16,2020-11-18,EQUIP RENTAL (EFF 1/3/03),138526.39,2021
,2020 OFFICE OF THE SPEAKER,1,GENERAL EXPENDITURES,RENT  COMMUNICATION  UTILITIES,DETAIL,2021-02-18,AP,1384439,HYATT REGENCY WASHINGTON ON CAPITOL HILL,2020-12-01,2020-12-03,EQUIP RENTAL (EFF 1/3/03),74380.5,2021
,2020 OFFICE OF THE SPEAKER,1,GENERAL EXPENDITURES,RENT  COMMUNICATION  UTILITIES,SUBTOTAL,   ,   ,   ,   ,   ,   ,RENT  COMMUNICATION  UTILITIES TOTALS:,222272.98,2021
,2020 OFFICE OF THE SPEAKER,1,GENERAL EXPENDITURES,PRINTING AND REPRODUCTION,DETAIL,2021-02-17,AP,1384178,CITI PCARD-B&H PHOTO 800-606-6969,2020-12-31,2020-12-31,PRINTING & REPRODUCTION,383.35,2021
,2020 OFFICE OF THE SPEAKER,1,GENERAL EXPENDITURES,PRINTING AND REPRODUCTION,SUBTOTAL,   ,   ,   ,   ,   ,   ,PRINTING AND REPRODUCTION TOTALS:,383.35,2021
,2020 OFFICE OF THE SPEAKER,1,GENERAL EXPENDITURES,OTHER SERVICES,DETAIL,2021-01-27,AP,1378931,FIRESIDE21,2020-12-01,2020-12-31,WEB DEV HST EMAIL & RLTD SERV,350,2021
,2020 OFFICE OF THE SPEAKER,1,GENERAL EXPENDITURES,OTHER SERVICES,SUBTOTAL,   ,   ,   ,   ,   ,   ,OTHER SERVICES TOTALS:,350,2021
,2020 OFFICE OF THE SPEAKER,1,GENERAL EXPENDITURES,SUPPLIES AND MATERIALS,DETAIL,2021-01-04,AP,1369859,TOULIES EN FLEUR,2020-12-07,2020-12-14,HABITATION EXPENSE,300,2021
,2020 OFFICE OF THE SPEAKER,1,GENERAL EXPENDITURES,SUPPLIES AND MATERIALS,DETAIL,2021-01-04,AP,1370061,CAPITAL GIFTS AND AWARDS INC,2020-11-23,2020-11-23,OFFICE SUPPLIES (OUTSIDE),4312.4,2021
,2020 OFFICE OF THE SPEAKER,1,GENERAL EXPENDITURES,SUPPLIES AND MATERIALS,DETAIL,2021-01-05,AP,1368776,SPROUT SOCIAL INC,2021-01-02,2022-01-01,PUBLICATIONS/REFERENCE MAT'L,9438,2021
,2020 OFFICE OF THE SPEAKER,1,GENERAL EXPENDITURES,SUPPLIES AND MATERIALS,DETAIL,2021-01-19,AP,1373224,BERRET EMILY C.,2020-12-20,2020-12-20,FOOD & BEVERAGE,155.76,2021
,2020 OFFICE OF THE SPEAKER,1,GENERAL EXPENDITURES,SUPPLIES AND MATERIALS,DETAIL,2021-01-19,AP,1373224,BERRET EMILY C.,2020-12-27,2020-12-27,HABITATION EXPENSE,38.08,2021
,2020 OFFICE OF THE SPEAKER,1,GENERAL EXPENDITURES,SUPPLIES AND MATERIALS,DETAIL,2021-01-19,AP,1373236,CITI PCARD-CAVA.COM,2020-12-20,2020-12-20,FOOD & BEVERAGE,87.14,2021
,2020 OFFICE OF THE SPEAKER,1,GENERAL EXPENDITURES,SUPPLIES AND MATERIALS,DETAIL,2021-01-19,AP,1373236,CITI PCARD-MEI WAH RESTAURANT,2020-12-28,2020-12-28,FOOD & BEVERAGE,358.16,2021
,2020 OFFICE OF THE SPEAKER,1,GENERAL EXPENDITURES,SUPPLIES AND MATERIALS,DETAIL,2021-01-19,AP,1373236,CITI PCARD-SANTA ROSA TAQUERIA,2020-12-18,2020-12-18,FOOD & BEVERAGE,291.06,2021
,2020 OFFICE OF THE SPEAKER,1,GENERAL EXPENDITURES,SUPPLIES AND MATERIALS,DETAIL,2021-01-19,AP,1373236,CITI PCARD-USHR LONGWORTH FOOD CT,2020-12-07,2020-12-07,WATER,312,2021
,2020 OFFICE OF THE SPEAKER,1,GENERAL EXPENDITURES,SUPPLIES AND MATERIALS,DETAIL,2021-01-19,AP,1373236,CITI PCARD-WE THE PIZZA,2020-12-15,2020-12-15,FOOD & BEVERAGE,162.15,2021
,2020 OFFICE OF THE SPEAKER,1,GENERAL EXPENDITURES,SUPPLIES AND MATERIALS,DETAIL,2021-01-19,AP,1373236,CITI PCARD-WE THE PIZZA,2020-12-19,2020-12-19,FOOD & BEVERAGE,196.65,2021
,2020 OFFICE OF THE SPEAKER,1,GENERAL EXPENDITURES,SUPPLIES AND MATERIALS,DETAIL,2021-01-19,AP,1373236,CITI PCARD-WWW COSTCO COM,2020-12-07,2020-12-07,FOOD & BEVERAGE,29.99,2021
,2020 OFFICE OF THE SPEAKER,1,GENERAL EXPENDITURES,SUPPLIES AND MATERIALS,DETAIL,2021-01-19,AP,1373236,CITI PCARD-WWW COSTCO COM,2020-12-09,2020-12-09,FOOD & BEVERAGE,78.98,2021
,2020 OFFICE OF THE SPEAKER,1,GENERAL EXPENDITURES,SUPPLIES AND MATERIALS,DETAIL,2021-01-21,AP,1370704,E & E NEWS,2021-01-01,2022-12-31,PUBLICATIONS/REFERENCE MAT'L,9800,2021
,2020 OFFICE OF THE SPEAKER,1,GENERAL EXPENDITURES,SUPPLIES AND MATERIALS,DETAIL,2021-02-01,AP,1380345,CONNECTION,2020-12-02,2020-12-02,OFFICE SUPPLIES (OUTSIDE),273.5,2021
,2020 OFFICE OF THE SPEAKER,1,GENERAL EXPENDITURES,SUPPLIES AND MATERIALS,DETAIL,2021-02-01,AP,1380348,CONNECTION,2020-12-18,2020-12-18,OFFICE SUPPLIES (OUTSIDE),125.73,2021
,2020 OFFICE OF THE SPEAKER,1,GENERAL EXPENDITURES,SUPPLIES AND MATERIALS,DETAIL,2021-02-01,AP,1380349,CONNECTION,2020-12-31,2020-12-31,OFFICE SUPPLIES (OUTSIDE),210.38,2021
,2020 OFFICE OF THE SPEAKER,1,GENERAL EXPENDITURES,SUPPLIES AND MATERIALS,DETAIL,2021-02-01,AP,1380447,CITI PCARD-OTTER.AI,2020-12-20,2020-12-20,SOFTWARE  LESS THAN  $500,99.99,2021
,2020 OFFICE OF THE SPEAKER,1,GENERAL EXPENDITURES,SUPPLIES AND MATERIALS,DETAIL,2021-02-01,AP,1380447,CITI PCARD-SKYPE.COM/GO/BILL,2020-12-24,2020-12-24,SOFTWARE  LESS THAN  $500,2.99,2021
,2020 OFFICE OF THE SPEAKER,1,GENERAL EXPENDITURES,SUPPLIES AND MATERIALS,DETAIL,2021-02-17,AP,1384178,CITI PCARD-Amazon.com L88EO3Q53,2021-01-02,2021-01-02,OFFICE SUPPLIES (OUTSIDE),19.95,2021
,2020 OFFICE OF THE SPEAKER,1,GENERAL EXPENDITURES,SUPPLIES AND MATERIALS,DETAIL,2021-02-17,AP,1384259,TOULIES EN FLEUR,2021-01-02,2021-01-02,HABITATION EXPENSE,350,2021
,2020 OFFICE OF THE SPEAKER,1,GENERAL EXPENDITURES,SUPPLIES AND MATERIALS,DETAIL,2021-02-25,AP,1391166,CONNECTION,2021-02-03,2021-02-03,OFFICE SUPPLIES (OUTSIDE) QTY - 2,241.98,2021
,2020 OFFICE OF THE SPEAKER,1,GENERAL EXPENDITURES,SUPPLIES AND MATERIALS,DETAIL,2021-02-25,AP,1391166,CONNECTION,2021-02-03,2021-02-03,OFFICE SUPPLIES (OUTSIDE) QTY - 6,557.58,2021
,2020 OFFICE OF THE SPEAKER,1,GENERAL EXPENDITURES,SUPPLIES AND MATERIALS,DETAIL,2021-02-25,AP,1391166,CONNECTION,2021-02-03,2021-02-03,OFFICE SUPPLIES (OUTSIDE) QTY - 4,1727.84,2021
,2020 OFFICE OF THE SPEAKER,1,GENERAL EXPENDITURES,SUPPLIES AND MATERIALS,DETAIL,2021-02-25,AP,1391166,CONNECTION,2021-02-03,2021-02-03,OFFICE SUPPLIES (OUTSIDE) QTY - 8,1823.92,2021
,2020 OFFICE OF THE SPEAKER,1,GENERAL EXPENDITURES,SUPPLIES AND MATERIALS,DETAIL,2021-02-25,AP,1391166,CONNECTION,2021-02-03,2021-02-03,OFFICE SUPPLIES (OUTSIDE) QTY - 5,12524.5,2021
,2020 OFFICE OF THE SPEAKER,1,GENERAL EXPENDITURES,SUPPLIES AND MATERIALS,DETAIL,2021-03-11,AP,1395448,CONNECTION,2021-01-29,2021-01-29,OFFICE SUPPLIES (OUTSIDE) QTY - 20,5180,2021
,2020 OFFICE OF THE SPEAKER,1,GENERAL EXPENDITURES,SUPPLIES AND MATERIALS,SUBTOTAL,   ,   ,   ,   ,   ,   ,SUPPLIES AND MATERIALS TOTALS:,48698.73,2021
,2020 OFFICE OF THE SPEAKER,1,GENERAL EXPENDITURES,EQUIPMENT,DETAIL,2021-02-22,AP,1390087,LEIDOS DIGITAL SOLUTIONS INC,2021-01-05,2021-01-05,MAINTENANCE / REPAIRS,5000,2021
,2020 OFFICE OF THE SPEAKER,1,GENERAL EXPENDITURES,EQUIPMENT,DETAIL,2021-03-29,AP,1402782,SHARP BUSINESS SYSTEMS,2021-01-29,2021-01-29,OFFICE EQUIP PURCH LESS THAN $25 000,27900,2021
,2020 OFFICE OF THE SPEAKER,1,GENERAL EXPENDITURES,EQUIPMENT,SUBTOTAL,   ,   ,   ,   ,   ,   ,EQUIPMENT TOTALS:,32900,2021
,2020 OFFICE OF THE SPEAKER,1,GENERAL EXPENDITURES,EQUIPMENT,SUBTOTAL,   ,   ,   ,   ,   ,   ,GENERAL EXPENDITURES TOTALS:,499695.31,2021
,2020 OFFICE OF THE SPEAKER,1,GENERAL EXPENDITURES,EQUIPMENT,GRAND TOTAL FOR ORGANIZATION,   ,   ,   ,   ,   ,   ,OFFICE TOTALS: ,499695.31,2021
,2019 OFFICE OF THE SPEAKER,1,GENERAL EXPENDITURES,PERSONNEL COMPENSATION,DETAIL,   ,   ,   ,MANGRUM PEARL J.,2020-01-01,2020-01-01,FINANCIAL ADMINISTRATOR,1950,2021
,2019 OFFICE OF THE SPEAKER,1,GENERAL EXPENDITURES,PERSONNEL COMPENSATION,SUBTOTAL,   ,   ,   ,   ,   ,   ,PERSONNEL COMPENSATION TOTALS:,1950,2021
,2019 OFFICE OF THE SPEAKER,1,GENERAL EXPENDITURES,PERSONNEL COMPENSATION,SUBTOTAL,   ,   ,   ,   ,   ,   ,GENERAL EXPENDITURES TOTALS:,1950,2021
,2019 OFFICE OF THE SPEAKER,1,GENERAL EXPENDITURES,PERSONNEL COMPENSATION,GRAND TOTAL FOR ORGANIZATION,   ,   ,   ,   ,   ,   ,OFFICE TOTALS: ,1950,2021
,2021 OFFICE OF THE SPEAKER,1,INTERN ALLOWANCES,PERSONNEL COMPENSATION,DETAIL,   ,   ,   ,BROWN SYDNEY M.,2021-01-11,2021-03-31,SPEAKER PAID INTERN - HOUSE PR,1600,2021
,2021 OFFICE OF THE SPEAKER,1,INTERN ALLOWANCES,PERSONNEL COMPENSATION,DETAIL,   ,   ,   ,NEWSOM GRACE M.,2021-01-11,2021-03-31,SPEAKER PAID INTERN - HOUSE PR,1600,2021
,2021 OFFICE OF THE SPEAKER,1,INTERN ALLOWANCES,PERSONNEL COMPENSATION,DETAIL,   ,   ,   ,VIVALDI-LANAUZE CARLOS A.,2021-01-11,2021-03-31,SPEAKER PAID INTERN - HOUSE PR,4800,2021
,2021 OFFICE OF THE SPEAKER,1,INTERN ALLOWANCES,PERSONNEL COMPENSATION,SUBTOTAL,   ,   ,   ,   ,   ,   ,PERSONNEL COMPENSATION TOTALS:,8000,2021
,2021 OFFICE OF THE SPEAKER,1,INTERN ALLOWANCES,PERSONNEL COMPENSATION,SUBTOTAL,   ,   ,   ,   ,   ,   ,INTERN ALLOWANCES TOTALS:,8000,2021
,2021 OFFICE OF THE SPEAKER,1,INTERN ALLOWANCES,PERSONNEL COMPENSATION,GRAND TOTAL FOR ORGANIZATION,   ,   ,   ,   ,   ,   ,OFFICE TOTALS: ,8000,2021
,2021 OFFICE OF THE MAJORITY LEADER,1,GENERAL EXPENDITURES,PERSONNEL COMPENSATION,DETAIL,   ,   ,   ,ABOUCHAR KEITH S.,2021-01-03,2021-03-31,SENIOR POLICY ADVISOR,36666.67,2021
,2021 OFFICE OF THE MAJORITY LEADER,1,GENERAL EXPENDITURES,PERSONNEL COMPENSATION,DETAIL,   ,   ,   ,BAUSERMAN TRENTON D,2021-01-03,2021-03-31,SENIOR POLICY ADVISOR,36666.67,2021
,2021 OFFICE OF THE MAJORITY LEADER,1,GENERAL EXPENDITURES,PERSONNEL COMPENSATION,DETAIL,   ,   ,   ,BAYER JOHN S,2021-01-03,2021-03-31,OFFICE MANAGER/EXEC ASST,17555.56,2021
,2021 OFFICE OF THE MAJORITY LEADER,1,GENERAL EXPENDITURES,PERSONNEL COMPENSATION,DETAIL,   ,   ,   ,BEAN HARLEIGH J,2021-01-03,2021-03-31,STAFF ASSISTANT,13444.44,2021
,2021 OFFICE OF THE MAJORITY LEADER,1,GENERAL EXPENDITURES,PERSONNEL COMPENSATION,DETAIL,   ,   ,   ,BEAN HARLEIGH J,2021-01-30,2021-01-30,STAFF ASSISTANT (OTHER COMPENSATION),2185.1,2021
,2021 OFFICE OF THE MAJORITY LEADER,1,GENERAL EXPENDITURES,PERSONNEL COMPENSATION,DETAIL,   ,   ,   ,BRENNAN BRIDGET E,2021-01-03,2021-03-31,DIRECTOR OF SCHEDULING,19555.56,2021
,2021 OFFICE OF THE MAJORITY LEADER,1,GENERAL EXPENDITURES,PERSONNEL COMPENSATION,DETAIL,   ,   ,   ,COVEY-BRANDT ALEXIS,2021-01-03,2021-03-31,CHIEF OF STAFF,42508.9,2021
,2021 OFFICE OF THE MAJORITY LEADER,1,GENERAL EXPENDITURES,PERSONNEL COMPENSATION,DETAIL,   ,   ,   ,DAVIS ANNALIESE E,2021-01-03,2021-03-31,MARYLAND PRESS SECRETARY,4888.9,2021
,2021 OFFICE OF THE MAJORITY LEADER,1,GENERAL EXPENDITURES,PERSONNEL COMPENSATION,DETAIL,   ,   ,   ,DREW KATHRYN L,2021-01-03,2021-03-31,COMM DIR AND SR ADVISOR,40333.33,2021
,2021 OFFICE OF THE MAJORITY LEADER,1,GENERAL EXPENDITURES,PERSONNEL COMPENSATION,DETAIL,   ,   ,   ,DWYER STEPHEN,2021-01-03,2021-03-31,DIGITAL DIR & POLICY ADV,19311.1,2021
,2021 OFFICE OF THE MAJORITY LEADER,1,GENERAL EXPENDITURES,PERSONNEL COMPENSATION,DETAIL,   ,   ,   ,FRY COURTNEY,2021-01-03,2021-03-31,FLOOR DIRECTOR,40333.33,2021
,2021 OFFICE OF THE MAJORITY LEADER,1,GENERAL EXPENDITURES,PERSONNEL COMPENSATION,DETAIL,   ,   ,   ,GOFF SHUWANZA R,2021-01-19,2021-01-30,FLOOR DIRECTOR,8211.94,2021
,2021 OFFICE OF THE MAJORITY LEADER,1,GENERAL EXPENDITURES,PERSONNEL COMPENSATION,DETAIL,   ,   ,   ,LEUSCHEN JAMES P.,2021-01-03,2021-03-31,POLICY DIRECTOR,40333.33,2021
,2021 OFFICE OF THE MAJORITY LEADER,1,GENERAL EXPENDITURES,PERSONNEL COMPENSATION,DETAIL,   ,   ,   ,MEHRAN NICOLETTE,2021-01-03,2021-03-31,STAFF ASSISTANT,6844.44,2021
,2021 OFFICE OF THE MAJORITY LEADER,1,GENERAL EXPENDITURES,PERSONNEL COMPENSATION,DETAIL,   ,   ,   ,MEHRAN NICOLETTE,2021-01-01,2021-02-28,STAFF ASSISTANT (OVERTIME),2826.89,2021
,2021 OFFICE OF THE MAJORITY LEADER,1,GENERAL EXPENDITURES,PERSONNEL COMPENSATION,DETAIL,   ,   ,   ,MEHRAN NICOLETTE,2021-01-30,2021-01-30,STAFF ASSISTANT (OTHER COMPENSATION),1736.54,2021
,2021 OFFICE OF THE MAJORITY LEADER,1,GENERAL EXPENDITURES,PERSONNEL COMPENSATION,DETAIL,   ,   ,   ,MERZ JULIE E,2021-01-03,2021-03-31,MEMBER SERVICES DIRECTOR,20777.77,2021
,2021 OFFICE OF THE MAJORITY LEADER,1,GENERAL EXPENDITURES,PERSONNEL COMPENSATION,DETAIL,   ,   ,   ,MULKERRIN MARGARET A,2021-02-08,2021-03-31,NATIONAL PRESS SECRETARY,11777.78,2021
,2021 OFFICE OF THE MAJORITY LEADER,1,GENERAL EXPENDITURES,PERSONNEL COMPENSATION,DETAIL,   ,   ,   ,ROMICK BRIAN,2021-01-03,2021-03-31,DEPUTY CHIEF OF STAFF,42508.9,2021
,2021 OFFICE OF THE MAJORITY LEADER,1,GENERAL EXPENDITURES,PERSONNEL COMPENSATION,DETAIL,   ,   ,   ,ROWE DEBORAH M,2021-01-03,2021-03-31,SENIOR FLOOR ADVISOR,25666.67,2021
,2021 OFFICE OF THE MAJORITY LEADER,1,GENERAL EXPENDITURES,PERSONNEL COMPENSATION,DETAIL,   ,   ,   ,SAEZ MARIEL S,2021-01-20,2021-01-30,DEPUTY COMMUNICATIONS DIRECTOR,625,2021
,2021 OFFICE OF THE MAJORITY LEADER,1,GENERAL EXPENDITURES,PERSONNEL COMPENSATION,DETAIL,   ,   ,   ,SALAZAR HANNAH L.,2021-01-03,2021-03-31,STAFF ASSISTANT,6844.44,2021
,2021 OFFICE OF THE MAJORITY LEADER,1,GENERAL EXPENDITURES,PERSONNEL COMPENSATION,DETAIL,   ,   ,   ,SALAZAR HANNAH L.,2021-01-01,2021-02-28,STAFF ASSISTANT (OVERTIME),2099.97,2021
,2021 OFFICE OF THE MAJORITY LEADER,1,GENERAL EXPENDITURES,PERSONNEL COMPENSATION,DETAIL,   ,   ,   ,SALAZAR HANNAH L.,2021-01-30,2021-01-30,STAFF ASSISTANT (OTHER COMPENSATION),444.23,2021
,2021 OFFICE OF THE MAJORITY LEADER,1,GENERAL EXPENDITURES,PERSONNEL COMPENSATION,DETAIL,   ,   ,   ,SALAZAR RAYMOND J.,2021-01-03,2021-03-31,DEPUTY FLOOR DIRECTOR & SR ADV,26888.9,2021
,2021 OFFICE OF THE MAJORITY LEADER,1,GENERAL EXPENDITURES,PERSONNEL COMPENSATION,DETAIL,   ,   ,   ,SILVERBERG DANIEL I,2021-01-03,2021-03-31,SENIOR POLICY ADVISOR,18333.33,2021
,2021 OFFICE OF THE MAJORITY LEADER,1,GENERAL EXPENDITURES,PERSONNEL COMPENSATION,DETAIL,   ,   ,   ,SNYDER RACHEL N,2021-01-03,2021-03-31,SENIOR POLICY ADVISOR,15277.77,2021
,2021 OFFICE OF THE MAJORITY LEADER,1,GENERAL EXPENDITURES,PERSONNEL COMPENSATION,DETAIL,   ,   ,   ,SPAK MICHAEL J,2021-01-03,2021-03-31,STAFF ASSISTANT,13444.44,2021
,2021 OFFICE OF THE MAJORITY LEADER,1,GENERAL EXPENDITURES,PERSONNEL COMPENSATION,DETAIL,   ,   ,   ,SPAK MICHAEL J,2021-01-30,2021-01-30,STAFF ASSISTANT (OTHER COMPENSATION),1514.42,2021
,2021 OFFICE OF THE MAJORITY LEADER,1,GENERAL EXPENDITURES,PERSONNEL COMPENSATION,DETAIL,   ,   ,   ,TRAUBERMAN JACOB M,2021-01-03,2021-03-31,SPECIAL ASSISTANT,16333.33,2021
,2021 OFFICE OF THE MAJORITY LEADER,1,GENERAL EXPENDITURES,PERSONNEL COMPENSATION,DETAIL,   ,   ,   ,URRABAZO CLAUDIA,2021-01-03,2021-03-31,DEP. MBR SER DIR & SR ADV,34222.23,2021
,2021 OFFICE OF THE MAJORITY LEADER,1,GENERAL EXPENDITURES,PERSONNEL COMPENSATION,DETAIL,   ,   ,   ,VALENTINE MAYA I,2021-01-03,2021-03-31,PRESS ASSISTANT & RESEARCHER,14277.78,2021
,2021 OFFICE OF THE MAJORITY LEADER,1,GENERAL EXPENDITURES,PERSONNEL COMPENSATION,DETAIL,   ,   ,   ,WEISSMANN ADAM,2021-01-03,2021-03-31,SPEECHWRITER,22000,2021
,2021 OFFICE OF THE MAJORITY LEADER,1,GENERAL EXPENDITURES,PERSONNEL COMPENSATION,SUBTOTAL,   ,   ,   ,   ,   ,   ,PERSONNEL COMPENSATION TOTALS:,606439.66,2021
,2021 OFFICE OF THE MAJORITY LEADER,1,GENERAL EXPENDITURES,TRAVEL,DETAIL,2021-03-10,AP,1395097,BEAN HARLEIGH J.,2021-01-03,2021-01-04,TAXI/PARKING/TOLLS,27.16,2021
,2021 OFFICE OF THE MAJORITY LEADER,1,GENERAL EXPENDITURES,TRAVEL,SUBTOTAL,   ,   ,   ,   ,   ,   ,TRAVEL TOTALS:,27.16,2021
,2021 OFFICE OF THE MAJORITY LEADER,1,GENERAL EXPENDITURES,RENT  COMMUNICATION  UTILITIES,DETAIL,2021-03-04,AP,1390456,CITI PCARD-USPS PO 1049390270,2021-01-12,2021-01-12,POSTAGE / COURIER / BOX RENTAL,44.92,2021
,2021 OFFICE OF THE MAJORITY LEADER,1,GENERAL EXPENDITURES,RENT  COMMUNICATION  UTILITIES,DETAIL,2021-03-04,AP,1390456,CITI PCARD-USPS.COM CLICKNSHIP,2021-01-06,2021-01-06,POSTAGE / COURIER / BOX RENTAL,64.65,2021
,2021 OFFICE OF THE MAJORITY LEADER,1,GENERAL EXPENDITURES,RENT  COMMUNICATION  UTILITIES,DETAIL,2021-03-29,GL,MED0105330, ,2021-02-23,2021-03-05,HIR GRAPHICS (TRANSFER),70,2021
,2021 OFFICE OF THE MAJORITY LEADER,1,GENERAL EXPENDITURES,RENT  COMMUNICATION  UTILITIES,SUBTOTAL,   ,   ,   ,   ,   ,   ,RENT  COMMUNICATION  UTILITIES TOTALS:,179.57,2021
,2021 OFFICE OF THE MAJORITY LEADER,1,GENERAL EXPENDITURES,OTHER SERVICES,DETAIL,2021-03-22,AP,1398367,PRESKENIS PERRIN ASSOCIATES INC,2021-01-28,2021-01-28,TRAINING,4585,2021
,2021 OFFICE OF THE MAJORITY LEADER,1,GENERAL EXPENDITURES,OTHER SERVICES,SUBTOTAL,   ,   ,   ,   ,   ,   ,OTHER SERVICES TOTALS:,4585,2021
,2021 OFFICE OF THE MAJORITY LEADER,1,GENERAL EXPENDITURES,SUPPLIES AND MATERIALS,DETAIL,2021-02-25,AP,1390911,READYREFRESH BY NESTLE,2021-01-31,2021-01-31,WATER,8,2021
,2021 OFFICE OF THE MAJORITY LEADER,1,GENERAL EXPENDITURES,SUPPLIES AND MATERIALS,DETAIL,2021-03-04,AP,1390456,CITI PCARD-OCCASIONS     98459498,2021-01-25,2021-01-25,FOOD & BEVERAGE,11618.38,2021
,2021 OFFICE OF THE MAJORITY LEADER,1,GENERAL EXPENDITURES,SUPPLIES AND MATERIALS,DETAIL,2021-03-30,AP,1403041,EXPRESS OFFICE PRODUCTS,2021-03-03,2021-03-03,OFFICE SUPPLIES (OUTSIDE) QTY - 2,183.42,2021
,2021 OFFICE OF THE MAJORITY LEADER,1,GENERAL EXPENDITURES,SUPPLIES AND MATERIALS,DETAIL,2021-03-31,AP,1402798,READYREFRESH BY NESTLE,2021-02-28,2021-02-28,WATER,8,2021
,2021 OFFICE OF THE MAJORITY LEADER,1,GENERAL EXPENDITURES,SUPPLIES AND MATERIALS,SUBTOTAL,   ,   ,   ,   ,   ,   ,SUPPLIES AND MATERIALS TOTALS:,11817.8,2021
,2021 OFFICE OF THE MAJORITY LEADER,1,GENERAL EXPENDITURES,SUPPLIES AND MATERIALS,SUBTOTAL,   ,   ,   ,   ,   ,   ,GENERAL EXPENDITURES TOTALS:,623049.19,2021
,2021 OFFICE OF THE MAJORITY LEADER,1,GENERAL EXPENDITURES,SUPPLIES AND MATERIALS,GRAND TOTAL FOR ORGANIZATION,   ,   ,   ,   ,   ,   ,OFFICE TOTALS: ,623049.19,2021
,2020 OFFICE OF THE MAJORITY LEADER,1,GENERAL EXPENDITURES,PERSONNEL COMPENSATION,DETAIL,   ,   ,   ,ABOUCHAR KEITH S.,2021-01-01,2021-01-02,SENIOR POLICY ADVISOR,966.11,2021
,2020 OFFICE OF THE MAJORITY LEADER,1,GENERAL EXPENDITURES,PERSONNEL COMPENSATION,DETAIL,   ,   ,   ,BAUSERMAN TRENTON D,2021-01-01,2021-01-02,SENIOR POLICY ADVISOR,966.11,2021
,2020 OFFICE OF THE MAJORITY LEADER,1,GENERAL EXPENDITURES,PERSONNEL COMPENSATION,DETAIL,   ,   ,   ,BAYER JOHN S,2021-01-01,2021-01-02,OFFICE MANAGER/EXEC ASST,694.44,2021
,2020 OFFICE OF THE MAJORITY LEADER,1,GENERAL EXPENDITURES,PERSONNEL COMPENSATION,DETAIL,   ,   ,   ,BEAN HARLEIGH J,2021-01-01,2021-01-02,STAFF ASSISTANT,833.33,2021
,2020 OFFICE OF THE MAJORITY LEADER,1,GENERAL EXPENDITURES,PERSONNEL COMPENSATION,DETAIL,   ,   ,   ,BRENNAN BRIDGET E,2021-01-01,2021-01-02,DIRECTOR OF SCHEDULING,777.78,2021
,2020 OFFICE OF THE MAJORITY LEADER,1,GENERAL EXPENDITURES,PERSONNEL COMPENSATION,DETAIL,   ,   ,   ,COVEY-BRANDT ALEXIS,2021-01-01,2021-01-02,CHIEF OF STAFF,966.11,2021
,2020 OFFICE OF THE MAJORITY LEADER,1,GENERAL EXPENDITURES,PERSONNEL COMPENSATION,DETAIL,   ,   ,   ,DAVIS ANNALIESE E,2021-01-01,2021-01-02,MARYLAND PRESS SECRETARY,511.11,2021
,2020 OFFICE OF THE MAJORITY LEADER,1,GENERAL EXPENDITURES,PERSONNEL COMPENSATION,DETAIL,   ,   ,   ,DREW KATHRYN L,2021-01-01,2021-01-02,COMM DIR AND SR ADVISOR,966.11,2021
,2020 OFFICE OF THE MAJORITY LEADER,1,GENERAL EXPENDITURES,PERSONNEL COMPENSATION,DETAIL,   ,   ,   ,DWYER STEPHEN,2021-01-01,2021-01-02,DIGITAL DIR & POLICY ADV,571.67,2021
,2020 OFFICE OF THE MAJORITY LEADER,1,GENERAL EXPENDITURES,PERSONNEL COMPENSATION,DETAIL,   ,   ,   ,FRY COURTNEY,2021-01-01,2021-01-02,MEMBER SERVICES DIRECTOR,966.11,2021
,2020 OFFICE OF THE MAJORITY LEADER,1,GENERAL EXPENDITURES,PERSONNEL COMPENSATION,DETAIL,   ,   ,   ,GOFF SHUWANZA R,2021-01-01,2021-01-02,FLOOR DIRECTOR,966.11,2021
,2020 OFFICE OF THE MAJORITY LEADER,1,GENERAL EXPENDITURES,PERSONNEL COMPENSATION,DETAIL,   ,   ,   ,LEUSCHEN JAMES P.,2021-01-01,2021-01-02,SENIOR POLICY ADVISOR,966.11,2021
,2020 OFFICE OF THE MAJORITY LEADER,1,GENERAL EXPENDITURES,PERSONNEL COMPENSATION,DETAIL,   ,   ,   ,MEHRAN NICOLETTE,2021-01-01,2021-01-02,STAFF ASSISTANT,822.22,2021
,2020 OFFICE OF THE MAJORITY LEADER,1,GENERAL EXPENDITURES,PERSONNEL COMPENSATION,DETAIL,   ,   ,   ,MERZ JULIE E,2021-01-01,2021-01-02,SENIOR ADVISOR,872.22,2021
,2020 OFFICE OF THE MAJORITY LEADER,1,GENERAL EXPENDITURES,PERSONNEL COMPENSATION,DETAIL,   ,   ,   ,ROMICK BRIAN,2021-01-01,2021-01-02,DEPUTY CHIEF OF STAFF,966.11,2021
,2020 OFFICE OF THE MAJORITY LEADER,1,GENERAL EXPENDITURES,PERSONNEL COMPENSATION,DETAIL,   ,   ,   ,ROWE DEBORAH M,2021-01-01,2021-01-02,FLOOR ASSISTANT,750,2021
,2020 OFFICE OF THE MAJORITY LEADER,1,GENERAL EXPENDITURES,PERSONNEL COMPENSATION,DETAIL,   ,   ,   ,SAEZ MARIEL S,2021-01-01,2021-01-02,DEPUTY COMMUNICATIONS DIRECTOR,341.11,2021
,2020 OFFICE OF THE MAJORITY LEADER,1,GENERAL EXPENDITURES,PERSONNEL COMPENSATION,DETAIL,   ,   ,   ,SALAZAR HANNAH L.,2021-01-01,2021-01-02,STAFF ASSISTANT,822.22,2021
,2020 OFFICE OF THE MAJORITY LEADER,1,GENERAL EXPENDITURES,PERSONNEL COMPENSATION,DETAIL,   ,   ,   ,SALAZAR RAYMOND J.,2021-01-01,2021-01-02,DEPUTY FLOOR DIRECTOR,777.78,2021
,2020 OFFICE OF THE MAJORITY LEADER,1,GENERAL EXPENDITURES,PERSONNEL COMPENSATION,DETAIL,   ,   ,   ,SILVERBERG DANIEL I,2021-01-01,2021-01-02,SENIOR POLICY ADVISOR,549.44,2021
,2020 OFFICE OF THE MAJORITY LEADER,1,GENERAL EXPENDITURES,PERSONNEL COMPENSATION,DETAIL,   ,   ,   ,SNYDER RACHEL N,2021-01-01,2021-01-02,SENIOR POLICY ADVISOR,910.58,2021
,2020 OFFICE OF THE MAJORITY LEADER,1,GENERAL EXPENDITURES,PERSONNEL COMPENSATION,DETAIL,   ,   ,   ,SPAK MICHAEL J,2021-01-01,2021-01-02,STAFF ASSISTANT,833.33,2021
,2020 OFFICE OF THE MAJORITY LEADER,1,GENERAL EXPENDITURES,PERSONNEL COMPENSATION,DETAIL,   ,   ,   ,TRAUBERMAN JACOB M,2021-01-01,2021-01-02,SPECIAL ASSISTANT,666.67,2021
,2020 OFFICE OF THE MAJORITY LEADER,1,GENERAL EXPENDITURES,PERSONNEL COMPENSATION,DETAIL,   ,   ,   ,URRABAZO CLAUDIA,2021-01-01,2021-01-02,DEP. DIR OF MBR SER & OUTR ADV,966.11,2021
,2020 OFFICE OF THE MAJORITY LEADER,1,GENERAL EXPENDITURES,PERSONNEL COMPENSATION,DETAIL,   ,   ,   ,VALENTINE MAYA I,2021-01-01,2021-01-02,PRESS ASSISTANT & RESEARCHER,505.56,2021
,2020 OFFICE OF THE MAJORITY LEADER,1,GENERAL EXPENDITURES,PERSONNEL COMPENSATION,DETAIL,   ,   ,   ,WEISSMANN ADAM,2021-01-01,2021-01-02,SPEECHWRITER,944.44,2021
,2020 OFFICE OF THE MAJORITY LEADER,1,GENERAL EXPENDITURES,PERSONNEL COMPENSATION,SUBTOTAL,   ,   ,   ,   ,   ,   ,PERSONNEL COMPENSATION TOTALS:,20878.89,2021
,2020 OFFICE OF THE MAJORITY LEADER,1,GENERAL EXPENDITURES,TRAVEL,DETAIL,2021-03-10,AP,1395097,BEAN HARLEIGH J.,2020-12-16,2020-12-28,TAXI/PARKING/TOLLS,104.79,2021
,2020 OFFICE OF THE MAJORITY LEADER,1,GENERAL EXPENDITURES,TRAVEL,SUBTOTAL,   ,   ,   ,   ,   ,   ,TRAVEL TOTALS:,104.79,2021
,2020 OFFICE OF THE MAJORITY LEADER,1,GENERAL EXPENDITURES,SUPPLIES AND MATERIALS,DETAIL,2021-01-04,AP,1371522,W B MASON COMPANY INC,2020-12-14,2020-12-14,OFFICE SUPPLIES (OUTSIDE),92,2021
,2020 OFFICE OF THE MAJORITY LEADER,1,GENERAL EXPENDITURES,SUPPLIES AND MATERIALS,DETAIL,2021-01-28,AP,1380293,READYREFRESH BY NESTLE,2020-12-31,2020-12-31,WATER,79.85,2021
,2020 OFFICE OF THE MAJORITY LEADER,1,GENERAL EXPENDITURES,SUPPLIES AND MATERIALS,SUBTOTAL,   ,   ,   ,   ,   ,   ,SUPPLIES AND MATERIALS TOTALS:,171.85,2021
,2020 OFFICE OF THE MAJORITY LEADER,1,GENERAL EXPENDITURES,SUPPLIES AND MATERIALS,SUBTOTAL,   ,   ,   ,   ,   ,   ,GENERAL EXPENDITURES TOTALS:,21155.53,2021
,2020 OFFICE OF THE MAJORITY LEADER,1,GENERAL EXPENDITURES,SUPPLIES AND MATERIALS,GRAND TOTAL FOR ORGANIZATION,   ,   ,   ,   ,   ,   ,OFFICE TOTALS: ,21155.53,2021
,2021 OFFICE OF THE MAJORITY LEADER,1,INTERN ALLOWANCES,PERSONNEL COMPENSATION,DETAIL,   ,   ,   ,DINH ALYSSA M.,2021-02-16,2021-03-31,MAJ LEADER PAID INTERN - HOUSE,1500,2021
,2021 OFFICE OF THE MAJORITY LEADER,1,INTERN ALLOWANCES,PERSONNEL COMPENSATION,DETAIL,   ,   ,   ,ORTIZ CLASS CARLOS R.,2021-02-16,2021-03-31,MAJ LEADER PAID INTERN - HOUSE,1500,2021
,2021 OFFICE OF THE MAJORITY LEADER,1,INTERN ALLOWANCES,PERSONNEL COMPENSATION,DETAIL,   ,   ,   ,RICHARDS MYA S.,2021-02-16,2021-03-31,MAJ LEADER PAID INTERN - HOUSE,1500,2021
,2021 OFFICE OF THE MAJORITY LEADER,1,INTERN ALLOWANCES,PERSONNEL COMPENSATION,DETAIL,   ,   ,   ,WALTON BISHOP M.,2021-02-16,2021-03-31,MAJ LEADER PAID INTERN - HOUSE,1500,2021
,2021 OFFICE OF THE MAJORITY LEADER,1,INTERN ALLOWANCES,PERSONNEL COMPENSATION,SUBTOTAL,   ,   ,   ,   ,   ,   ,PERSONNEL COMPENSATION TOTALS:,6000,2021
,2021 OFFICE OF THE MAJORITY LEADER,1,INTERN ALLOWANCES,PERSONNEL COMPENSATION,SUBTOTAL,   ,   ,   ,   ,   ,   ,INTERN ALLOWANCES TOTALS:,6000,2021
,2021 OFFICE OF THE MAJORITY LEADER,1,INTERN ALLOWANCES,PERSONNEL COMPENSATION,GRAND TOTAL FOR ORGANIZATION,   ,   ,   ,   ,   ,   ,OFFICE TOTALS: ,6000,2021
,2021 OFFICE OF THE MINORITY LEADER,1,GENERAL EXPENDITURES,PERSONNEL COMPENSATION,DETAIL,   ,   ,   ,BEDNAR MARK M,2021-01-03,2021-03-31,DIR OF STRATEGIC COMMUNICATION,33000,2021
,2021 OFFICE OF THE MINORITY LEADER,1,GENERAL EXPENDITURES,PERSONNEL COMPENSATION,DETAIL,   ,   ,   ,BERTOLINI STEVEN R.,2021-01-03,2021-02-12,TEMPORARY EMPLOYEE,1333.33,2021
,2021 OFFICE OF THE MINORITY LEADER,1,GENERAL EXPENDITURES,PERSONNEL COMPENSATION,DETAIL,   ,   ,   ,BERTOLINI STEVEN R.,2021-02-19,2021-03-31,STAFF ASSISTANT,4200,2021
,2021 OFFICE OF THE MINORITY LEADER,1,GENERAL EXPENDITURES,PERSONNEL COMPENSATION,DETAIL,   ,   ,   ,BIEN CHRISTOPHER A,2021-01-03,2021-03-31,DEPUTY DIR OF FLOOR OPERATIONS,26400,2021
,2021 OFFICE OF THE MINORITY LEADER,1,GENERAL EXPENDITURES,PERSONNEL COMPENSATION,DETAIL,   ,   ,   ,BOGOROWSKI HANNA C,2021-01-03,2021-01-30,COMMUNICATIONS AIDE,4666.67,2021
,2021 OFFICE OF THE MINORITY LEADER,1,GENERAL EXPENDITURES,PERSONNEL COMPENSATION,DETAIL,   ,   ,   ,BOGOROWSKI HANNA C,2021-02-01,2021-03-31,COMMUNICATIONS ADVISOR,10000,2021
,2021 OFFICE OF THE MINORITY LEADER,1,GENERAL EXPENDITURES,PERSONNEL COMPENSATION,DETAIL,   ,   ,   ,BONNER JENNIFER L,2021-01-03,2021-03-31,SCHEDULER,16133.33,2021
,2021 OFFICE OF THE MINORITY LEADER,1,GENERAL EXPENDITURES,PERSONNEL COMPENSATION,DETAIL,   ,   ,   ,BUCHANAN NATALIE L,2021-01-03,2021-02-28,DIR OF MEMBER SERVICES,27066.67,2021
,2021 OFFICE OF THE MINORITY LEADER,1,GENERAL EXPENDITURES,PERSONNEL COMPENSATION,DETAIL,   ,   ,   ,BUCHANAN NATALIE L,2021-03-01,2021-03-31,DEPUTY CHIEF OF STAFF FOR MEMB,14000,2021
,2021 OFFICE OF THE MINORITY LEADER,1,GENERAL EXPENDITURES,PERSONNEL COMPENSATION,DETAIL,   ,   ,   ,CAMERON CHRISTINA E,2021-01-03,2021-01-30,DEPUTY PRESS SECRETARY,5600,2021
,2021 OFFICE OF THE MINORITY LEADER,1,GENERAL EXPENDITURES,PERSONNEL COMPENSATION,DETAIL,   ,   ,   ,CAMERON CHRISTINA E,2021-02-01,2021-03-31,MEDIA AFFAIRS ADVISOR,12000,2021
,2021 OFFICE OF THE MINORITY LEADER,1,GENERAL EXPENDITURES,PERSONNEL COMPENSATION,DETAIL,   ,   ,   ,CARR MACHALAGH,2021-01-03,2021-03-31,GENERAL COUNSEL,41066.67,2021
,2021 OFFICE OF THE MINORITY LEADER,1,GENERAL EXPENDITURES,PERSONNEL COMPENSATION,DETAIL,   ,   ,   ,CHAFFEE SAVANNAH M,2021-01-03,2021-02-25,STAFF ASSISTANT,6183.34,2021
,2021 OFFICE OF THE MINORITY LEADER,1,GENERAL EXPENDITURES,PERSONNEL COMPENSATION,DETAIL,   ,   ,   ,CHAFFEE SAVANNAH M,2021-02-01,2021-02-25,STAFF ASSISTANT (OTHER COMPENSATION),2000,2021
,2021 OFFICE OF THE MINORITY LEADER,1,GENERAL EXPENDITURES,PERSONNEL COMPENSATION,DETAIL,   ,   ,   ,CONSTANGY III HERBERT W,2021-02-01,2021-03-31,SHARED EMPLOYEE,20000,2021
,2021 OFFICE OF THE MINORITY LEADER,1,GENERAL EXPENDITURES,PERSONNEL COMPENSATION,DETAIL,   ,   ,   ,CORRELL CHARLES C,2021-01-03,2021-01-30,DEPUTY SPEECHWRITER,5133.33,2021
,2021 OFFICE OF THE MINORITY LEADER,1,GENERAL EXPENDITURES,PERSONNEL COMPENSATION,DETAIL,   ,   ,   ,CORRELL CHARLES C,2021-02-01,2021-03-31,SPEECHWRITER,11000,2021
,2021 OFFICE OF THE MINORITY LEADER,1,GENERAL EXPENDITURES,PERSONNEL COMPENSATION,DETAIL,   ,   ,   ,COYLE SARAH M,2021-01-03,2021-03-31,CLOAKROOM FLOOR ASSISTANT,14666.67,2021
,2021 OFFICE OF THE MINORITY LEADER,1,GENERAL EXPENDITURES,PERSONNEL COMPENSATION,DETAIL,   ,   ,   ,CROSS JAMES M.,2021-01-13,2021-02-15,TEMPORARY EMPLOYEE,1100,2021
,2021 OFFICE OF THE MINORITY LEADER,1,GENERAL EXPENDITURES,PERSONNEL COMPENSATION,DETAIL,   ,   ,   ,DAVIS MOLLY J.,2021-01-27,2021-02-15,TEMPORARY EMPLOYEE,633.33,2021
,2021 OFFICE OF THE MINORITY LEADER,1,GENERAL EXPENDITURES,PERSONNEL COMPENSATION,DETAIL,   ,   ,   ,DAYER KATHERINE J,2021-01-03,2021-03-31,STAFF ASSISTANT,8800,2021
,2021 OFFICE OF THE MINORITY LEADER,1,GENERAL EXPENDITURES,PERSONNEL COMPENSATION,DETAIL,   ,   ,   ,DOMENECH EMILY H,2021-01-03,2021-03-31,SENIOR POLICY ADVISOR,36666.67,2021
,2021 OFFICE OF THE MINORITY LEADER,1,GENERAL EXPENDITURES,PERSONNEL COMPENSATION,DETAIL,   ,   ,   ,DUNHAM WILL,2021-01-03,2021-03-31,DEP CHIEF OF STAFF FOR POLICY,41066.67,2021
,2021 OFFICE OF THE MINORITY LEADER,1,GENERAL EXPENDITURES,PERSONNEL COMPENSATION,DETAIL,   ,   ,   ,EARWOOD ELIZABETH K.,2021-02-01,2021-03-31,SHARED EMPLOYEE,10000,2021
,2021 OFFICE OF THE MINORITY LEADER,1,GENERAL EXPENDITURES,PERSONNEL COMPENSATION,DETAIL,   ,   ,   ,ENGLING MAXIMILIAN T,2021-01-03,2021-03-31,DEP DIR OF MEMBER SERVICES,33000,2021
,2021 OFFICE OF THE MINORITY LEADER,1,GENERAL EXPENDITURES,PERSONNEL COMPENSATION,DETAIL,   ,   ,   ,EXNER MICHELE P,2021-01-03,2021-03-31,COMMUNICATIONS DIRECTOR,34466.67,2021
,2021 OFFICE OF THE MINORITY LEADER,1,GENERAL EXPENDITURES,PERSONNEL COMPENSATION,DETAIL,   ,   ,   ,FOSTER JORDYN D.,2021-01-03,2021-02-15,TEMPORARY EMPLOYEE,1433.33,2021
,2021 OFFICE OF THE MINORITY LEADER,1,GENERAL EXPENDITURES,PERSONNEL COMPENSATION,DETAIL,   ,   ,   ,GIAIER STEVEN S,2021-01-03,2021-03-31,SENIOR POLICY ADVISOR & COUNSE,36666.67,2021
,2021 OFFICE OF THE MINORITY LEADER,1,GENERAL EXPENDITURES,PERSONNEL COMPENSATION,DETAIL,   ,   ,   ,GILLESPIE JAMES M.,2021-02-01,2021-03-31,SPECIAL ASSISTANT TO THE REPUL,10000,2021
,2021 OFFICE OF THE MINORITY LEADER,1,GENERAL EXPENDITURES,PERSONNEL COMPENSATION,DETAIL,   ,   ,   ,GILMARTIN CHARLES P.,2021-02-22,2021-03-31,COMMUNICATIONS ADVISOR,7475,2021
,2021 OFFICE OF THE MINORITY LEADER,1,GENERAL EXPENDITURES,PERSONNEL COMPENSATION,DETAIL,   ,   ,   ,GOURDIKIAN ALEXANDRA G.,2021-01-03,2021-03-31,DIRECTOR OF OPERATIONS & SCHED,33000,2021
,2021 OFFICE OF THE MINORITY LEADER,1,GENERAL EXPENDITURES,PERSONNEL COMPENSATION,DETAIL,   ,   ,   ,GRIBBIN WILLIAM J.,2021-01-03,2021-01-30,SHARED EMPLOYEE,3033.33,2021
,2021 OFFICE OF THE MINORITY LEADER,1,GENERAL EXPENDITURES,PERSONNEL COMPENSATION,DETAIL,   ,   ,   ,GUNN ELLA L.,2021-01-03,2021-01-30,TEMPORARY EMPLOYEE,933.33,2021
,2021 OFFICE OF THE MINORITY LEADER,1,GENERAL EXPENDITURES,PERSONNEL COMPENSATION,DETAIL,   ,   ,   ,HAULSEE TAYLOR S.,2021-02-01,2021-03-31,SHARED EMPLOYEE,20000,2021
,2021 OFFICE OF THE MINORITY LEADER,1,GENERAL EXPENDITURES,PERSONNEL COMPENSATION,DETAIL,   ,   ,   ,HILL PRESTON W,2021-01-03,2021-03-31,POLICY ADVISOR,24933.33,2021
,2021 OFFICE OF THE MINORITY LEADER,1,GENERAL EXPENDITURES,PERSONNEL COMPENSATION,DETAIL,   ,   ,   ,HOCHSCHILD KEENAN N.,2021-01-03,2021-02-28,DIGITAL COMMUNICATIONS AIDE,9666.67,2021
,2021 OFFICE OF THE MINORITY LEADER,1,GENERAL EXPENDITURES,PERSONNEL COMPENSATION,DETAIL,   ,   ,   ,HOCHSCHILD KEENAN N.,2021-03-01,2021-03-31,DIGITAL COMMUNICATIONS ADVISOR,5000,2021
,2021 OFFICE OF THE MINORITY LEADER,1,GENERAL EXPENDITURES,PERSONNEL COMPENSATION,DETAIL,   ,   ,   ,HOUSTON ZACHARY G,2021-01-03,2021-03-31,COMMUNICATIONS AIDE,11733.33,2021
,2021 OFFICE OF THE MINORITY LEADER,1,GENERAL EXPENDITURES,PERSONNEL COMPENSATION,DETAIL,   ,   ,   ,HOWELL MARGARET E.,2021-01-11,2021-03-31,GRAPHIC DESIGNER,12666.67,2021
,2021 OFFICE OF THE MINORITY LEADER,1,GENERAL EXPENDITURES,PERSONNEL COMPENSATION,DETAIL,   ,   ,   ,HUMES ALEXANDRA W,2021-01-03,2021-03-31,MEMBER SERVICES COORDINATOR,15400,2021
,2021 OFFICE OF THE MINORITY LEADER,1,GENERAL EXPENDITURES,PERSONNEL COMPENSATION,DETAIL,   ,   ,   ,HUNT SARAH,2021-01-03,2021-01-30,TEMPORARY EMPLOYEE,933.33,2021
,2021 OFFICE OF THE MINORITY LEADER,1,GENERAL EXPENDITURES,PERSONNEL COMPENSATION,DETAIL,   ,   ,   ,LEGANSKI JOHN G,2021-01-03,2021-03-31,DIRECTOR OF FLOOR OPERATIONS,39600,2021
,2021 OFFICE OF THE MINORITY LEADER,1,GENERAL EXPENDITURES,PERSONNEL COMPENSATION,DETAIL,   ,   ,   ,LOMBARDI KYLE,2021-01-03,2021-03-31,SHARED EMPLOYEE,24933.33,2021
,2021 OFFICE OF THE MINORITY LEADER,1,GENERAL EXPENDITURES,PERSONNEL COMPENSATION,DETAIL,   ,   ,   ,LONG RYAN C,2021-01-12,2021-03-31,SR POLICY ADVISOR  & COUNSEL,36866.67,2021
,2021 OFFICE OF THE MINORITY LEADER,1,GENERAL EXPENDITURES,PERSONNEL COMPENSATION,DETAIL,   ,   ,   ,MADDOX GABRIELLE A.,2021-01-03,2021-01-30,TEMPORARY EMPLOYEE,933.33,2021
,2021 OFFICE OF THE MINORITY LEADER,1,GENERAL EXPENDITURES,PERSONNEL COMPENSATION,DETAIL,   ,   ,   ,MARTINEZ BRITTANY N,2021-01-03,2021-03-31,CALIFORNIA PRESS SECRETARY,19066.67,2021
,2021 OFFICE OF THE MINORITY LEADER,1,GENERAL EXPENDITURES,PERSONNEL COMPENSATION,DETAIL,   ,   ,   ,MEYER DANIEL P,2021-01-03,2021-03-31,CHIEF OF STAFF,42508.9,2021
,2021 OFFICE OF THE MINORITY LEADER,1,GENERAL EXPENDITURES,PERSONNEL COMPENSATION,DETAIL,   ,   ,   ,MEYER KATHERINE R,2021-01-03,2021-02-28,SENIOR POLICY ADVISOR,13300,2021
,2021 OFFICE OF THE MINORITY LEADER,1,GENERAL EXPENDITURES,PERSONNEL COMPENSATION,DETAIL,   ,   ,   ,MIN JAMES B.,2021-01-03,2021-03-31,DEPUTY CHIEF OF STAFF/COUNSEL,38866.67,2021
,2021 OFFICE OF THE MINORITY LEADER,1,GENERAL EXPENDITURES,PERSONNEL COMPENSATION,DETAIL,   ,   ,   ,MINOCK NICKOLAUS J.,2021-02-02,2021-03-12,SHARED EMPLOYEE,9908.33,2021
,2021 OFFICE OF THE MINORITY LEADER,1,GENERAL EXPENDITURES,PERSONNEL COMPENSATION,DETAIL,   ,   ,   ,MORAN COOPER R.,2021-01-27,2021-02-15,TEMPORARY EMPLOYEE,633.33,2021
,2021 OFFICE OF THE MINORITY LEADER,1,GENERAL EXPENDITURES,PERSONNEL COMPENSATION,DETAIL,   ,   ,   ,MURPHY CULLEN D,2021-01-03,2021-03-31,FLOOR ASSISTANT,12466.67,2021
,2021 OFFICE OF THE MINORITY LEADER,1,GENERAL EXPENDITURES,PERSONNEL COMPENSATION,DETAIL,   ,   ,   ,MURRY LUKE A,2021-01-03,2021-03-31,NATIONAL SECURITY ADVISOR,39600,2021
,2021 OFFICE OF THE MINORITY LEADER,1,GENERAL EXPENDITURES,PERSONNEL COMPENSATION,DETAIL,   ,   ,   ,O'TOOLE RYAN T,2021-01-03,2021-03-28,CLOAKROOM FLOOR DIRECTOR,21500,2021
,2021 OFFICE OF THE MINORITY LEADER,1,GENERAL EXPENDITURES,PERSONNEL COMPENSATION,DETAIL,   ,   ,   ,PHILIP MECHELLE R.,2021-01-03,2021-01-30,TEMPORARY EMPLOYEE,133.33,2021
,2021 OFFICE OF THE MINORITY LEADER,1,GENERAL EXPENDITURES,PERSONNEL COMPENSATION,DETAIL,   ,   ,   ,PRETZMAN ELIZABETH A.,2021-01-03,2021-01-30,TEMPORARY EMPLOYEE,933.33,2021
,2021 OFFICE OF THE MINORITY LEADER,1,GENERAL EXPENDITURES,PERSONNEL COMPENSATION,DETAIL,   ,   ,   ,QUINN AUSTIN T.,2021-01-07,2021-02-15,TEMPORARY EMPLOYEE,1300,2021
,2021 OFFICE OF THE MINORITY LEADER,1,GENERAL EXPENDITURES,PERSONNEL COMPENSATION,DETAIL,   ,   ,   ,ROSE SHANE C.,2021-01-03,2021-02-15,TEMPORARY EMPLOYEE,1433.33,2021
,2021 OFFICE OF THE MINORITY LEADER,1,GENERAL EXPENDITURES,PERSONNEL COMPENSATION,DETAIL,   ,   ,   ,ROSEMOND JOHN M,2021-01-03,2021-01-30,SPECIAL ASSISTANT,183.33,2021
,2021 OFFICE OF THE MINORITY LEADER,1,GENERAL EXPENDITURES,PERSONNEL COMPENSATION,DETAIL,   ,   ,   ,ROSEMOND JOHN M,2021-01-03,2021-01-30,SPECIAL ASSISTANT (OTHER COMPENSATION),3500,2021
,2021 OFFICE OF THE MINORITY LEADER,1,GENERAL EXPENDITURES,PERSONNEL COMPENSATION,DETAIL,   ,   ,   ,SIGAL WILLIAM J.,2021-02-01,2021-02-15,TEMPORARY EMPLOYEE,500,2021
,2021 OFFICE OF THE MINORITY LEADER,1,GENERAL EXPENDITURES,PERSONNEL COMPENSATION,DETAIL,   ,   ,   ,SMITH CALEB J,2021-01-03,2021-03-31,DIGITAL COMMUNICATIONS DIRECTO,41066.67,2021
,2021 OFFICE OF THE MINORITY LEADER,1,GENERAL EXPENDITURES,PERSONNEL COMPENSATION,DETAIL,   ,   ,   ,SMITH TREVOR H,2021-01-03,2021-03-31,SHARED EMPLOYEE,20533.33,2021
,2021 OFFICE OF THE MINORITY LEADER,1,GENERAL EXPENDITURES,PERSONNEL COMPENSATION,DETAIL,   ,   ,   ,SPARKS MATTHEW E,2021-01-03,2021-02-28,DIRECTOR OF COMMUNICATIONS,27066.67,2021
,2021 OFFICE OF THE MINORITY LEADER,1,GENERAL EXPENDITURES,PERSONNEL COMPENSATION,DETAIL,   ,   ,   ,SPARKS MATTHEW E,2021-03-01,2021-03-31,HEAD OF COMMUNICATIONS,14000,2021
,2021 OFFICE OF THE MINORITY LEADER,1,GENERAL EXPENDITURES,PERSONNEL COMPENSATION,DETAIL,   ,   ,   ,SPECHT BRITTAN G,2021-01-03,2021-03-31,SENIOR POLICY ADVISOR,39600,2021
,2021 OFFICE OF THE MINORITY LEADER,1,GENERAL EXPENDITURES,PERSONNEL COMPENSATION,DETAIL,   ,   ,   ,TUNG MANSON,2021-01-03,2021-01-30,TEMPORARY EMPLOYEE,933.33,2021
,2021 OFFICE OF THE MINORITY LEADER,1,GENERAL EXPENDITURES,PERSONNEL COMPENSATION,DETAIL,   ,   ,   ,WARREN JACOB A.,2021-01-03,2021-01-30,TEMPORARY EMPLOYEE,933.33,2021
,2021 OFFICE OF THE MINORITY LEADER,1,GENERAL EXPENDITURES,PERSONNEL COMPENSATION,SUBTOTAL,   ,   ,   ,   ,   ,   ,PERSONNEL COMPENSATION TOTALS:,1065358.89,2021
,2021 OFFICE OF THE MINORITY LEADER,1,GENERAL EXPENDITURES,TRAVEL,DETAIL,2021-02-16,AP,1384272,CAMERON CHRISTINA E.,2021-02-01,2021-02-02,COMMERCIAL TRANSPORTATION,650.5,2021
,2021 OFFICE OF THE MINORITY LEADER,1,GENERAL EXPENDITURES,TRAVEL,DETAIL,2021-02-16,AP,1384272,CAMERON CHRISTINA E.,2021-02-01,2021-02-02,LODGING,195.62,2021
,2021 OFFICE OF THE MINORITY LEADER,1,GENERAL EXPENDITURES,TRAVEL,DETAIL,2021-02-16,AP,1384272,CAMERON CHRISTINA E.,2021-02-01,2021-02-01,MEALS,33.92,2021
,2021 OFFICE OF THE MINORITY LEADER,1,GENERAL EXPENDITURES,TRAVEL,DETAIL,2021-02-16,AP,1384272,CAMERON CHRISTINA E.,2021-02-02,2021-02-02,MEALS,11.1,2021
,2021 OFFICE OF THE MINORITY LEADER,1,GENERAL EXPENDITURES,TRAVEL,DETAIL,2021-02-16,AP,1384272,CAMERON CHRISTINA E.,2021-02-01,2021-02-01,TAXI/PARKING/TOLLS,125,2021
,2021 OFFICE OF THE MINORITY LEADER,1,GENERAL EXPENDITURES,TRAVEL,DETAIL,2021-02-16,AP,1384272,CAMERON CHRISTINA E.,2021-02-02,2021-02-02,TAXI/PARKING/TOLLS,15.64,2021
,2021 OFFICE OF THE MINORITY LEADER,1,GENERAL EXPENDITURES,TRAVEL,DETAIL,2021-03-15,AP,1395130,DOMENECH EMILY H.,2021-02-19,2021-02-21,COMMERCIAL TRANSPORTATION,704.4,2021
,2021 OFFICE OF THE MINORITY LEADER,1,GENERAL EXPENDITURES,TRAVEL,DETAIL,2021-03-15,AP,1395130,DOMENECH EMILY H.,2021-02-19,2021-02-21,LODGING,291.38,2021
,2021 OFFICE OF THE MINORITY LEADER,1,GENERAL EXPENDITURES,TRAVEL,DETAIL,2021-03-15,AP,1395130,DOMENECH EMILY H.,2021-02-19,2021-02-19,TAXI/PARKING/TOLLS,41.27,2021
,2021 OFFICE OF THE MINORITY LEADER,1,GENERAL EXPENDITURES,TRAVEL,DETAIL,2021-03-15,AP,1395130,DOMENECH EMILY H.,2021-02-20,2021-02-20,TAXI/PARKING/TOLLS,25.42,2021
,2021 OFFICE OF THE MINORITY LEADER,1,GENERAL EXPENDITURES,TRAVEL,DETAIL,2021-03-15,AP,1395130,DOMENECH EMILY H.,2021-02-21,2021-02-21,TAXI/PARKING/TOLLS,21.27,2021
,2021 OFFICE OF THE MINORITY LEADER,1,GENERAL EXPENDITURES,TRAVEL,DETAIL,2021-03-24,AP,1400836,GIAIER STEVEN S,2021-03-14,2021-03-15,COMMERCIAL TRANSPORTATION,597.4,2021
,2021 OFFICE OF THE MINORITY LEADER,1,GENERAL EXPENDITURES,TRAVEL,DETAIL,2021-03-24,AP,1400836,GIAIER STEVEN S,2021-03-14,2021-03-15,LODGING,113.98,2021
,2021 OFFICE OF THE MINORITY LEADER,1,GENERAL EXPENDITURES,TRAVEL,DETAIL,2021-03-24,AP,1400836,GIAIER STEVEN S,2021-03-14,2021-03-14,TAXI/PARKING/TOLLS,48.79,2021
,2021 OFFICE OF THE MINORITY LEADER,1,GENERAL EXPENDITURES,TRAVEL,DETAIL,2021-03-24,AP,1400836,GIAIER STEVEN S,2021-03-15,2021-03-15,TAXI/PARKING/TOLLS,24,2021
,2021 OFFICE OF THE MINORITY LEADER,1,GENERAL EXPENDITURES,TRAVEL,DETAIL,2021-03-29,AP,1400974,HOCHSCHILD KEENAN N.,2021-03-14,2021-03-14,COMMERCIAL TRANSPORTATION,394.83,2021
,2021 OFFICE OF THE MINORITY LEADER,1,GENERAL EXPENDITURES,TRAVEL,DETAIL,2021-03-29,AP,1400974,HOCHSCHILD KEENAN N.,2021-03-15,2021-03-15,COMMERCIAL TRANSPORTATION,376.35,2021
,2021 OFFICE OF THE MINORITY LEADER,1,GENERAL EXPENDITURES,TRAVEL,DETAIL,2021-03-29,AP,1400974,HOCHSCHILD KEENAN N.,2021-03-20,2021-03-26,COMMERCIAL TRANSPORTATION,441.84,2021
,2021 OFFICE OF THE MINORITY LEADER,1,GENERAL EXPENDITURES,TRAVEL,DETAIL,2021-03-29,AP,1400974,HOCHSCHILD KEENAN N.,2021-03-14,2021-03-15,LODGING,97,2021
,2021 OFFICE OF THE MINORITY LEADER,1,GENERAL EXPENDITURES,TRAVEL,DETAIL,2021-03-29,AP,1400974,HOCHSCHILD KEENAN N.,2021-03-14,2021-03-14,MEALS,22.35,2021
,2021 OFFICE OF THE MINORITY LEADER,1,GENERAL EXPENDITURES,TRAVEL,DETAIL,2021-03-29,AP,1400974,HOCHSCHILD KEENAN N.,2021-03-15,2021-03-15,MEALS,8.99,2021
,2021 OFFICE OF THE MINORITY LEADER,1,GENERAL EXPENDITURES,TRAVEL,DETAIL,2021-03-29,AP,1400974,HOCHSCHILD KEENAN N.,2021-03-14,2021-03-14,TAXI/PARKING/TOLLS,29.16,2021
,2021 OFFICE OF THE MINORITY LEADER,1,GENERAL EXPENDITURES,TRAVEL,DETAIL,2021-03-29,AP,1400974,HOCHSCHILD KEENAN N.,2021-03-15,2021-03-15,TAXI/PARKING/TOLLS,23.03,2021
,2021 OFFICE OF THE MINORITY LEADER,1,GENERAL EXPENDITURES,TRAVEL,DETAIL,2021-03-29,AP,1402418,CAMERON CHRISTINA E.,2021-03-14,2021-03-15,COMMERCIAL TRANSPORTATION,780.45,2021
,2021 OFFICE OF THE MINORITY LEADER,1,GENERAL EXPENDITURES,TRAVEL,DETAIL,2021-03-29,AP,1402418,CAMERON CHRISTINA E.,2021-03-14,2021-03-15,LODGING,179,2021
,2021 OFFICE OF THE MINORITY LEADER,1,GENERAL EXPENDITURES,TRAVEL,DETAIL,2021-03-29,AP,1402418,CAMERON CHRISTINA E.,2021-03-14,2021-03-14,MEALS,11.65,2021
,2021 OFFICE OF THE MINORITY LEADER,1,GENERAL EXPENDITURES,TRAVEL,DETAIL,2021-03-29,AP,1402418,CAMERON CHRISTINA E.,2021-03-15,2021-03-15,MEALS,56.58,2021
,2021 OFFICE OF THE MINORITY LEADER,1,GENERAL EXPENDITURES,TRAVEL,DETAIL,2021-03-29,AP,1402418,CAMERON CHRISTINA E.,2021-03-14,2021-03-15,CAR RENTAL,171.18,2021
,2021 OFFICE OF THE MINORITY LEADER,1,GENERAL EXPENDITURES,TRAVEL,DETAIL,2021-03-29,AP,1402418,CAMERON CHRISTINA E.,2021-03-14,2021-03-14,TAXI/PARKING/TOLLS,20.63,2021
,2021 OFFICE OF THE MINORITY LEADER,1,GENERAL EXPENDITURES,TRAVEL,DETAIL,2021-03-29,AP,1402418,CAMERON CHRISTINA E.,2021-03-15,2021-03-15,TAXI/PARKING/TOLLS,48.07,2021
,2021 OFFICE OF THE MINORITY LEADER,1,GENERAL EXPENDITURES,TRAVEL,DETAIL,2021-03-29,AP,1402435,HUMES ALEXANDRA W.,2021-03-14,2021-03-14,COMMERCIAL TRANSPORTATION,363.2,2021
,2021 OFFICE OF THE MINORITY LEADER,1,GENERAL EXPENDITURES,TRAVEL,DETAIL,2021-03-29,AP,1402435,HUMES ALEXANDRA W.,2021-03-15,2021-03-15,COMMERCIAL TRANSPORTATION,380.2,2021
,2021 OFFICE OF THE MINORITY LEADER,1,GENERAL EXPENDITURES,TRAVEL,DETAIL,2021-03-29,AP,1402435,HUMES ALEXANDRA W.,2021-03-14,2021-03-15,LODGING,97,2021
,2021 OFFICE OF THE MINORITY LEADER,1,GENERAL EXPENDITURES,TRAVEL,DETAIL,2021-03-29,AP,1402435,HUMES ALEXANDRA W.,2021-03-14,2021-03-14,MEALS,6.74,2021
,2021 OFFICE OF THE MINORITY LEADER,1,GENERAL EXPENDITURES,TRAVEL,DETAIL,2021-03-29,AP,1402435,HUMES ALEXANDRA W.,2021-03-15,2021-03-15,MEALS,35.66,2021
,2021 OFFICE OF THE MINORITY LEADER,1,GENERAL EXPENDITURES,TRAVEL,SUBTOTAL,   ,   ,   ,   ,   ,   ,TRAVEL TOTALS:,6443.6,2021
,2021 OFFICE OF THE MINORITY LEADER,1,GENERAL EXPENDITURES,RENT  COMMUNICATION  UTILITIES,DETAIL,2021-02-16,AP,1384272,CAMERON CHRISTINA E.,2021-02-01,2021-02-01,UTILITIES,6.99,2021
,2021 OFFICE OF THE MINORITY LEADER,1,GENERAL EXPENDITURES,RENT  COMMUNICATION  UTILITIES,DETAIL,2021-02-22,AP,1387159,CITI PCARD-US SENATE     95202602,2021-01-12,2021-01-12,EQUIP RENTAL (EFF 1/3/03),400,2021
,2021 OFFICE OF THE MINORITY LEADER,1,GENERAL EXPENDITURES,RENT  COMMUNICATION  UTILITIES,DETAIL,2021-02-25,GL,EMS0104578, ,2021-01-01,2021-01-31,DC TELECOM EQUIP (TRANSFER),36,2021
,2021 OFFICE OF THE MINORITY LEADER,1,GENERAL EXPENDITURES,RENT  COMMUNICATION  UTILITIES,DETAIL,2021-02-25,GL,EMS0104578, ,2021-01-01,2021-01-31,DC TELECOM SERV (TRANSFER),547.5,2021
,2021 OFFICE OF THE MINORITY LEADER,1,GENERAL EXPENDITURES,RENT  COMMUNICATION  UTILITIES,DETAIL,2021-02-25,GL,EMS0104578, ,2021-01-01,2021-01-31,DC TELECOM TOLLS (TRANSFER),3126.74,2021
,2021 OFFICE OF THE MINORITY LEADER,1,GENERAL EXPENDITURES,RENT  COMMUNICATION  UTILITIES,DETAIL,2021-03-12,AP,1394130,CITI PCARD-GOOGLE  YouTube TV,2021-01-29,2021-02-28,UTILITIES,68.89,2021
,2021 OFFICE OF THE MINORITY LEADER,1,GENERAL EXPENDITURES,RENT  COMMUNICATION  UTILITIES,DETAIL,2021-03-29,AP,1400974,HOCHSCHILD KEENAN N.,2021-03-15,2021-03-15,UTILITIES,15,2021
,2021 OFFICE OF THE MINORITY LEADER,1,GENERAL EXPENDITURES,RENT  COMMUNICATION  UTILITIES,DETAIL,2021-03-29,AP,1402418,CAMERON CHRISTINA E.,2021-03-14,2021-03-14,UTILITIES,12,2021
,2021 OFFICE OF THE MINORITY LEADER,1,GENERAL EXPENDITURES,RENT  COMMUNICATION  UTILITIES,DETAIL,2021-03-29,AP,1402418,CAMERON CHRISTINA E.,2021-03-15,2021-03-15,UTILITIES,15,2021
,2021 OFFICE OF THE MINORITY LEADER,1,GENERAL EXPENDITURES,RENT  COMMUNICATION  UTILITIES,DETAIL,2021-03-29,AP,1402418,CAMERON CHRISTINA E.,2021-03-16,2021-03-16,UTILITIES,19,2021
,2021 OFFICE OF THE MINORITY LEADER,1,GENERAL EXPENDITURES,RENT  COMMUNICATION  UTILITIES,DETAIL,2021-03-30,GL,EMS0105388, ,2021-02-01,2021-02-28,DC TELECOM EQUIP (TRANSFER),132,2021
,2021 OFFICE OF THE MINORITY LEADER,1,GENERAL EXPENDITURES,RENT  COMMUNICATION  UTILITIES,DETAIL,2021-03-30,GL,EMS0105388, ,2021-02-01,2021-02-28,DC TELECOM SERV (TRANSFER),547.5,2021
,2021 OFFICE OF THE MINORITY LEADER,1,GENERAL EXPENDITURES,RENT  COMMUNICATION  UTILITIES,DETAIL,2021-03-30,GL,EMS0105388, ,2021-02-01,2021-02-28,DC TELECOM TOLLS (TRANSFER),9715.96,2021
,2021 OFFICE OF THE MINORITY LEADER,1,GENERAL EXPENDITURES,RENT  COMMUNICATION  UTILITIES,SUBTOTAL,   ,   ,   ,   ,   ,   ,RENT  COMMUNICATION  UTILITIES TOTALS:,14642.58,2021
,2021 OFFICE OF THE MINORITY LEADER,1,GENERAL EXPENDITURES,PRINTING AND REPRODUCTION,DETAIL,2021-02-16,AP,1384272,CAMERON CHRISTINA E.,2021-02-01,2021-02-01,PRINTING & REPRODUCTION,24.55,2021
,2021 OFFICE OF THE MINORITY LEADER,1,GENERAL EXPENDITURES,PRINTING AND REPRODUCTION,DETAIL,2021-02-16,AP,1384272,CAMERON CHRISTINA E.,2021-02-02,2021-02-02,PRINTING & REPRODUCTION,29.48,2021
,2021 OFFICE OF THE MINORITY LEADER,1,GENERAL EXPENDITURES,PRINTING AND REPRODUCTION,DETAIL,2021-03-29,AP,1402418,CAMERON CHRISTINA E.,2021-03-18,2021-03-18,PRINTING & REPRODUCTION,22.23,2021
,2021 OFFICE OF THE MINORITY LEADER,1,GENERAL EXPENDITURES,PRINTING AND REPRODUCTION,SUBTOTAL,   ,   ,   ,   ,   ,   ,PRINTING AND REPRODUCTION TOTALS:,76.26,2021
,2021 OFFICE OF THE MINORITY LEADER,1,GENERAL EXPENDITURES,OTHER SERVICES,DETAIL,2021-01-27,AP,1378290,HOUSECALL LLC,2021-01-01,2021-01-31,TECHNOLOGY SERVICE CONTRACTS,5125,2021
,2021 OFFICE OF THE MINORITY LEADER,1,GENERAL EXPENDITURES,OTHER SERVICES,DETAIL,2021-01-28,AP,1374155,ENGAGE LLC,2021-01-01,2021-12-31,WEB DEV HST EMAIL & RLTD SERV,6000,2021
,2021 OFFICE OF THE MINORITY LEADER,1,GENERAL EXPENDITURES,OTHER SERVICES,DETAIL,2021-02-17,AP,1384206,CITI PCARD-MAILCHIMP    MONTHLY,2021-01-12,2021-02-11,WEB DEV HST EMAIL & RLTD SERV,646.6,2021
,2021 OFFICE OF THE MINORITY LEADER,1,GENERAL EXPENDITURES,OTHER SERVICES,DETAIL,2021-03-12,AP,1394130,CITI PCARD-MailChimp,2021-02-12,2021-03-11,WEB DEV HST EMAIL & RLTD SERV,646.6,2021
,2021 OFFICE OF THE MINORITY LEADER,1,GENERAL EXPENDITURES,OTHER SERVICES,SUBTOTAL,   ,   ,   ,   ,   ,   ,OTHER SERVICES TOTALS:,12418.2,2021
,2021 OFFICE OF THE MINORITY LEADER,1,GENERAL EXPENDITURES,SUPPLIES AND MATERIALS,DETAIL,2021-01-14,AP,1374130,CHAFFEE SAVANNAH M.,2021-01-13,2021-01-13,FOOD & BEVERAGE,52.5,2021
,2021 OFFICE OF THE MINORITY LEADER,1,GENERAL EXPENDITURES,SUPPLIES AND MATERIALS,DETAIL,2021-01-19,AP,1373302,CITI PCARD-ZOOM.US 888-799-9666,2021-01-04,2021-02-03,SOFTWARE  LESS THAN  $500,15.74,2021
,2021 OFFICE OF THE MINORITY LEADER,1,GENERAL EXPENDITURES,SUPPLIES AND MATERIALS,DETAIL,2021-01-19,AP,1375794,MIN JAMES B.,2021-01-15,2021-01-15,FOOD & BEVERAGE,1020.33,2021
,2021 OFFICE OF THE MINORITY LEADER,1,GENERAL EXPENDITURES,SUPPLIES AND MATERIALS,DETAIL,2021-01-28,AP,1375805,MIN JAMES B.,2021-01-12,2021-01-12,FOOD & BEVERAGE,177.36,2021
,2021 OFFICE OF THE MINORITY LEADER,1,GENERAL EXPENDITURES,SUPPLIES AND MATERIALS,DETAIL,2021-01-31,GL,RMS0104032, ,2021-01-01,2021-01-31,OFFICE SUPPLY (TRANSFER),248.25,2021
,2021 OFFICE OF THE MINORITY LEADER,1,GENERAL EXPENDITURES,SUPPLIES AND MATERIALS,DETAIL,2021-02-16,AP,1383036,HUMES ALEXANDRA W.,2021-01-22,2021-01-22,FOOD & BEVERAGE,216.29,2021
,2021 OFFICE OF THE MINORITY LEADER,1,GENERAL EXPENDITURES,SUPPLIES AND MATERIALS,DETAIL,2021-02-16,AP,1383036,HUMES ALEXANDRA W.,2021-01-24,2021-01-24,FOOD & BEVERAGE,37.88,2021
,2021 OFFICE OF THE MINORITY LEADER,1,GENERAL EXPENDITURES,SUPPLIES AND MATERIALS,DETAIL,2021-02-17,AP,1382830,CITI PCARD-CHICK-FIL-A #02673,2021-01-12,2021-01-12,FOOD & BEVERAGE,332.53,2021
,2021 OFFICE OF THE MINORITY LEADER,1,GENERAL EXPENDITURES,SUPPLIES AND MATERIALS,DETAIL,2021-02-17,AP,1382830,CITI PCARD-CHICK-FIL-A #03882,2021-01-13,2021-01-13,FOOD & BEVERAGE,569.25,2021
,2021 OFFICE OF THE MINORITY LEADER,1,GENERAL EXPENDITURES,SUPPLIES AND MATERIALS,DETAIL,2021-02-17,AP,1382830,CITI PCARD-CHICK-FIL-A #03882,2021-01-26,2021-01-26,FOOD & BEVERAGE,345.73,2021
,2021 OFFICE OF THE MINORITY LEADER,1,GENERAL EXPENDITURES,SUPPLIES AND MATERIALS,DETAIL,2021-02-17,AP,1382830,CITI PCARD-CORNER BAKERY 0096,2021-01-05,2021-01-05,FOOD & BEVERAGE,447.38,2021
,2021 OFFICE OF THE MINORITY LEADER,1,GENERAL EXPENDITURES,SUPPLIES AND MATERIALS,DETAIL,2021-02-17,AP,1382830,CITI PCARD-D J WALL-ST-JOURNAL,2021-01-18,2021-02-17,PUBLICATIONS/REFERENCE MAT'L,47.69,2021
,2021 OFFICE OF THE MINORITY LEADER,1,GENERAL EXPENDITURES,SUPPLIES AND MATERIALS,DETAIL,2021-02-17,AP,1382830,CITI PCARD-LA TIMES SUBSCRIPTION,2021-01-26,2021-02-22,PUBLICATIONS/REFERENCE MAT'L,27.72,2021
,2021 OFFICE OF THE MINORITY LEADER,1,GENERAL EXPENDITURES,SUPPLIES AND MATERIALS,DETAIL,2021-02-17,AP,1382830,CITI PCARD-LEVELUPPOTBELLY615167,2021-01-25,2021-01-25,FOOD & BEVERAGE,332.64,2021
,2021 OFFICE OF THE MINORITY LEADER,1,GENERAL EXPENDITURES,SUPPLIES AND MATERIALS,DETAIL,2021-02-17,AP,1382830,CITI PCARD-LEVELUPPOTBELLY617024,2021-01-25,2021-01-25,FOOD & BEVERAGE,69.65,2021
,2021 OFFICE OF THE MINORITY LEADER,1,GENERAL EXPENDITURES,SUPPLIES AND MATERIALS,DETAIL,2021-02-17,AP,1382830,CITI PCARD-NYTimes NYTimes,2021-01-29,2021-02-26,PUBLICATIONS/REFERENCE MAT'L,18.02,2021
,2021 OFFICE OF THE MINORITY LEADER,1,GENERAL EXPENDITURES,SUPPLIES AND MATERIALS,DETAIL,2021-02-17,AP,1382830,CITI PCARD-PANERA BREAD #607014 O,2021-01-25,2021-01-25,FOOD & BEVERAGE,446.22,2021
,2021 OFFICE OF THE MINORITY LEADER,1,GENERAL EXPENDITURES,SUPPLIES AND MATERIALS,DETAIL,2021-02-17,AP,1382830,CITI PCARD-PANERA BREAD #607014 O,2021-01-26,2021-01-26,FOOD & BEVERAGE,1304.66,2021
,2021 OFFICE OF THE MINORITY LEADER,1,GENERAL EXPENDITURES,SUPPLIES AND MATERIALS,DETAIL,2021-02-17,AP,1382830,CITI PCARD-ZOES KITCHEN,2021-01-25,2021-01-25,FOOD & BEVERAGE,661.52,2021
,2021 OFFICE OF THE MINORITY LEADER,1,GENERAL EXPENDITURES,SUPPLIES AND MATERIALS,DETAIL,2021-02-17,AP,1384206,CITI PCARD-AMAZON.COM VA1DH5833 AMZN,2021-01-06,2021-01-06,FOOD & BEVERAGE,114.24,2021
,2021 OFFICE OF THE MINORITY LEADER,1,GENERAL EXPENDITURES,SUPPLIES AND MATERIALS,DETAIL,2021-02-17,AP,1384206,CITI PCARD-AMZN Mktp US 7534Z8O33,2021-01-22,2021-01-22,OFFICE SUPPLIES (OUTSIDE),25.99,2021
,2021 OFFICE OF THE MINORITY LEADER,1,GENERAL EXPENDITURES,SUPPLIES AND MATERIALS,DETAIL,2021-02-17,AP,1384206,CITI PCARD-AMZN Mktp US DI73911R3,2021-01-04,2021-01-04,OFFICE SUPPLIES (OUTSIDE),22.4,2021
,2021 OFFICE OF THE MINORITY LEADER,1,GENERAL EXPENDITURES,SUPPLIES AND MATERIALS,DETAIL,2021-02-17,AP,1384206,CITI PCARD-AMZN Mktp US M85PO0DP3,2021-01-06,2021-01-06,OFFICE SUPPLIES (OUTSIDE),12.5,2021
,2021 OFFICE OF THE MINORITY LEADER,1,GENERAL EXPENDITURES,SUPPLIES AND MATERIALS,DETAIL,2021-02-17,AP,1384206,CITI PCARD-Amazon.com 0U4535O93,2021-01-06,2021-01-06,OFFICE SUPPLIES (OUTSIDE),42.98,2021
,2021 OFFICE OF THE MINORITY LEADER,1,GENERAL EXPENDITURES,SUPPLIES AND MATERIALS,DETAIL,2021-02-17,AP,1384206,CITI PCARD-ZOOM.US 888-799-9666,2021-01-04,2021-02-03,SOFTWARE  LESS THAN  $500,15.74,2021
,2021 OFFICE OF THE MINORITY LEADER,1,GENERAL EXPENDITURES,SUPPLIES AND MATERIALS,DETAIL,2021-02-17,AP,1384206,CITI PCARD-ZOOM.US 888-799-9666,2021-01-23,2021-02-22,SOFTWARE  LESS THAN  $500,42.4,2021
,2021 OFFICE OF THE MINORITY LEADER,1,GENERAL EXPENDITURES,SUPPLIES AND MATERIALS,DETAIL,2021-02-18,AP,1387157,TVEYES INC,2021-01-01,2022-12-31,PUBLICATIONS/REFERENCE MAT'L,2400,2021
,2021 OFFICE OF THE MINORITY LEADER,1,GENERAL EXPENDITURES,SUPPLIES AND MATERIALS,DETAIL,2021-02-23,AP,1390381,CDW GOVERNMENT LLC,2021-02-09,2021-02-09,OFFICE SUPPLIES (OUTSIDE),481.78,2021
,2021 OFFICE OF THE MINORITY LEADER,1,GENERAL EXPENDITURES,SUPPLIES AND MATERIALS,DETAIL,2021-02-24,AP,1390685,MIN JAMES B.,2021-02-23,2021-02-23,FOOD & BEVERAGE,844.23,2021
,2021 OFFICE OF THE MINORITY LEADER,1,GENERAL EXPENDITURES,SUPPLIES AND MATERIALS,DETAIL,2021-02-28,GL,RMS0104712, ,2021-02-01,2021-02-28,OFFICE SUPPLY (TRANSFER),446.62,2021
,2021 OFFICE OF THE MINORITY LEADER,1,GENERAL EXPENDITURES,SUPPLIES AND MATERIALS,DETAIL,2021-03-10,AP,1394153,CITI PCARD-AMAZON.COM ZR4XH5DK3 AMZN,2021-02-16,2021-02-16,FOOD & BEVERAGE,107.91,2021
,2021 OFFICE OF THE MINORITY LEADER,1,GENERAL EXPENDITURES,SUPPLIES AND MATERIALS,DETAIL,2021-03-10,AP,1394153,CITI PCARD-AMZN MKTP US 4O8R14953 AM,2021-02-23,2021-02-23,OFFICE SUPPLIES (OUTSIDE),12.99,2021
,2021 OFFICE OF THE MINORITY LEADER,1,GENERAL EXPENDITURES,SUPPLIES AND MATERIALS,DETAIL,2021-03-10,AP,1394153,CITI PCARD-AMZN MKTP US CX17Z80L3 AM,2021-02-10,2021-02-10,OFFICE SUPPLIES (OUTSIDE),30.97,2021
,2021 OFFICE OF THE MINORITY LEADER,1,GENERAL EXPENDITURES,SUPPLIES AND MATERIALS,DETAIL,2021-03-10,AP,1394153,CITI PCARD-AMZN Mktp US NA1114DG3,2021-02-11,2021-02-11,OFFICE SUPPLIES (OUTSIDE),16.99,2021
,2021 OFFICE OF THE MINORITY LEADER,1,GENERAL EXPENDITURES,SUPPLIES AND MATERIALS,DETAIL,2021-03-10,AP,1394153,CITI PCARD-AMZN Mktp US YZ2787Y63,2021-02-12,2021-02-12,OFFICE SUPPLIES (OUTSIDE),135.97,2021
,2021 OFFICE OF THE MINORITY LEADER,1,GENERAL EXPENDITURES,SUPPLIES AND MATERIALS,DETAIL,2021-03-10,AP,1394153,CITI PCARD-FIRST CHOICE COFFEE SERVI,2021-01-28,2021-01-28,FOOD & BEVERAGE,646.82,2021
,2021 OFFICE OF THE MINORITY LEADER,1,GENERAL EXPENDITURES,SUPPLIES AND MATERIALS,DETAIL,2021-03-10,AP,1394153,CITI PCARD-ZOOM.US 888-799-9666,2021-02-23,2021-03-22,SOFTWARE  LESS THAN  $500,42.4,2021
,2021 OFFICE OF THE MINORITY LEADER,1,GENERAL EXPENDITURES,SUPPLIES AND MATERIALS,DETAIL,2021-03-12,AP,1394130,CITI PCARD-CHICK-FIL-A #03882,2021-02-12,2021-02-12,FOOD & BEVERAGE,132.11,2021
,2021 OFFICE OF THE MINORITY LEADER,1,GENERAL EXPENDITURES,SUPPLIES AND MATERIALS,DETAIL,2021-03-12,AP,1394130,CITI PCARD-D J WALL-ST-JOURNAL,2021-02-20,2021-03-20,PUBLICATIONS/REFERENCE MAT'L,47.69,2021
,2021 OFFICE OF THE MINORITY LEADER,1,GENERAL EXPENDITURES,SUPPLIES AND MATERIALS,DETAIL,2021-03-12,AP,1394130,CITI PCARD-FTP FINANCIAL TIMES,2021-01-29,2021-02-28,PUBLICATIONS/REFERENCE MAT'L,59.5,2021
,2021 OFFICE OF THE MINORITY LEADER,1,GENERAL EXPENDITURES,SUPPLIES AND MATERIALS,DETAIL,2021-03-12,AP,1394130,CITI PCARD-LA TIMES SUBSCRIPTION,2021-02-23,2021-03-23,PUBLICATIONS/REFERENCE MAT'L,27.72,2021
,2021 OFFICE OF THE MINORITY LEADER,1,GENERAL EXPENDITURES,SUPPLIES AND MATERIALS,DETAIL,2021-03-12,AP,1394130,CITI PCARD-NYTimes NYTimes,2021-01-30,2021-02-27,PUBLICATIONS/REFERENCE MAT'L,5.3,2021
,2021 OFFICE OF THE MINORITY LEADER,1,GENERAL EXPENDITURES,SUPPLIES AND MATERIALS,DETAIL,2021-03-12,AP,1394130,CITI PCARD-NYTimes NYTimes,2021-02-26,2021-03-26,PUBLICATIONS/REFERENCE MAT'L,18.02,2021
,2021 OFFICE OF THE MINORITY LEADER,1,GENERAL EXPENDITURES,SUPPLIES AND MATERIALS,DETAIL,2021-03-12,AP,1394130,CITI PCARD-NYTimes NYTimes,2021-02-27,2021-03-27,PUBLICATIONS/REFERENCE MAT'L,5.3,2021
,2021 OFFICE OF THE MINORITY LEADER,1,GENERAL EXPENDITURES,SUPPLIES AND MATERIALS,DETAIL,2021-03-12,AP,1394130,CITI PCARD-ZOES KITCHEN,2021-02-04,2021-02-04,FOOD & BEVERAGE,402.8,2021
,2021 OFFICE OF THE MINORITY LEADER,1,GENERAL EXPENDITURES,SUPPLIES AND MATERIALS,DETAIL,2021-03-12,AP,1394130,CITI PCARD-ZOOM.US 888-799-9666,2021-02-04,2021-03-03,SOFTWARE  LESS THAN  $500,15.74,2021
,2021 OFFICE OF THE MINORITY LEADER,1,GENERAL EXPENDITURES,SUPPLIES AND MATERIALS,DETAIL,2021-03-15,AP,1395249,HAGUE QUALITY WATER OF MD INC,2021-01-01,2021-12-31,WATER,3780,2021
,2021 OFFICE OF THE MINORITY LEADER,1,GENERAL EXPENDITURES,SUPPLIES AND MATERIALS,DETAIL,2021-03-17,AP,1398484,MIN JAMES B.,2021-03-13,2021-03-13,OFFICE SUPPLIES (OUTSIDE),76.3,2021
,2021 OFFICE OF THE MINORITY LEADER,1,GENERAL EXPENDITURES,SUPPLIES AND MATERIALS,DETAIL,2021-03-22,AP,1398614,MIN JAMES B.,2021-03-17,2021-03-17,FOOD & BEVERAGE,77.28,2021
,2021 OFFICE OF THE MINORITY LEADER,1,GENERAL EXPENDITURES,SUPPLIES AND MATERIALS,DETAIL,2021-03-29,AP,1402413,MIN JAMES B.,2021-03-22,2021-03-22,OFFICE SUPPLIES (OUTSIDE),59.67,2021
,2021 OFFICE OF THE MINORITY LEADER,1,GENERAL EXPENDITURES,SUPPLIES AND MATERIALS,DETAIL,2021-03-29,AP,1402435,HUMES ALEXANDRA W.,2021-03-14,2021-03-14,WATER,12.98,2021
,2021 OFFICE OF THE MINORITY LEADER,1,GENERAL EXPENDITURES,SUPPLIES AND MATERIALS,DETAIL,2021-03-31,GL,RMS0105505, ,2021-03-01,2021-03-31,OFFICE SUPPLY (TRANSFER),702.01,2021
,2021 OFFICE OF THE MINORITY LEADER,1,GENERAL EXPENDITURES,SUPPLIES AND MATERIALS,SUBTOTAL,   ,   ,   ,   ,   ,   ,SUPPLIES AND MATERIALS TOTALS:,17236.71,2021
,2021 OFFICE OF THE MINORITY LEADER,1,GENERAL EXPENDITURES,EQUIPMENT,DETAIL,2021-01-29,GL,MNT0103932, ,2021-01-01,2021-01-31,MAINTENANCE / REPAIRS,124,2021
,2021 OFFICE OF THE MINORITY LEADER,1,GENERAL EXPENDITURES,EQUIPMENT,DETAIL,2021-02-23,AP,1390381,CDW GOVERNMENT LLC,2021-02-09,2021-02-09,COMPUTER HARDW PURCH  LESS THAN $25 000,3586.46,2021
,2021 OFFICE OF THE MINORITY LEADER,1,GENERAL EXPENDITURES,EQUIPMENT,DETAIL,2021-02-23,AP,1390381,CDW GOVERNMENT LLC,2021-02-09,2021-02-09,WARRANTIES,411.79,2021
,2021 OFFICE OF THE MINORITY LEADER,1,GENERAL EXPENDITURES,EQUIPMENT,DETAIL,2021-02-26,GL,MNT0104611, ,2021-02-01,2021-02-28,MAINTENANCE / REPAIRS,124,2021
,2021 OFFICE OF THE MINORITY LEADER,1,GENERAL EXPENDITURES,EQUIPMENT,DETAIL,2021-03-04,AP,1391918,GULF PARTYLINE CORPORATION,2021-01-01,2021-01-31,COMPUTER SOFTW PURCH  LESS THAN $10 000,6000,2021
,2021 OFFICE OF THE MINORITY LEADER,1,GENERAL EXPENDITURES,EQUIPMENT,DETAIL,2021-03-04,AP,1391919,GULF PARTYLINE CORPORATION,2021-02-01,2021-02-28,COMPUTER SOFTW PURCH  LESS THAN $10 000,6000,2021
,2021 OFFICE OF THE MINORITY LEADER,1,GENERAL EXPENDITURES,EQUIPMENT,DETAIL,2021-03-16,AP,1395058,BIEN CHRISTOPHER A.,2021-02-15,2021-02-19,MAINTENANCE / REPAIRS,299,2021
,2021 OFFICE OF THE MINORITY LEADER,1,GENERAL EXPENDITURES,EQUIPMENT,DETAIL,2021-03-31,GL,MNT0105439, ,2021-03-01,2021-03-31,MAINTENANCE / REPAIRS,124,2021
,2021 OFFICE OF THE MINORITY LEADER,1,GENERAL EXPENDITURES,EQUIPMENT,SUBTOTAL,   ,   ,   ,   ,   ,   ,EQUIPMENT TOTALS:,16669.25,2021
,2021 OFFICE OF THE MINORITY LEADER,1,GENERAL EXPENDITURES,EQUIPMENT,SUBTOTAL,   ,   ,   ,   ,   ,   ,GENERAL EXPENDITURES TOTALS:,1132845.49,2021
,2021 OFFICE OF THE MINORITY LEADER,1,REPUBLICAN POLICY COMMITTEE,PERSONNEL COMPENSATION,DETAIL,   ,   ,   ,WALL KELSEY V,2021-01-03,2021-03-31,SHARED EMPLOYEE,16933.33,2021
,2021 OFFICE OF THE MINORITY LEADER,1,REPUBLICAN POLICY COMMITTEE,PERSONNEL COMPENSATION,SUBTOTAL,   ,   ,   ,   ,   ,   ,PERSONNEL COMPENSATION TOTALS:,16933.33,2021
,2021 OFFICE OF THE MINORITY LEADER,1,REPUBLICAN POLICY COMMITTEE,PERSONNEL COMPENSATION,SUBTOTAL,   ,   ,   ,   ,   ,   ,REPUBLICAN POLICY COMMITTEE TOTALS:,16933.33,2021
,2021 OFFICE OF THE MINORITY LEADER,1,REPUBLICAN POLICY COMMITTEE,PERSONNEL COMPENSATION,GRAND TOTAL FOR ORGANIZATION,   ,   ,   ,   ,   ,   ,OFFICE TOTALS: ,1149778.82,2021
,2020 OFFICE OF THE MINORITY LEADER,1,GENERAL EXPENDITURES,PERSONNEL COMPENSATION,DETAIL,   ,   ,   ,BEDNAR MARK M,2021-01-01,2021-01-02,DIR OF STRATEGIC COMMUNICATION,750,2021
,2020 OFFICE OF THE MINORITY LEADER,1,GENERAL EXPENDITURES,PERSONNEL COMPENSATION,DETAIL,   ,   ,   ,BERTOLINI STEVEN R.,2021-01-01,2021-01-02,TEMPORARY EMPLOYEE,66.67,2021
,2020 OFFICE OF THE MINORITY LEADER,1,GENERAL EXPENDITURES,PERSONNEL COMPENSATION,DETAIL,   ,   ,   ,BIEN CHRISTOPHER A,2021-01-01,2021-01-02,DEPUTY DIR OF FLOOR OPERATIONS,600,2021
,2020 OFFICE OF THE MINORITY LEADER,1,GENERAL EXPENDITURES,PERSONNEL COMPENSATION,DETAIL,   ,   ,   ,BOGOROWSKI HANNA C,2021-01-01,2021-01-02,COMMUNICATIONS AIDE,333.33,2021
,2020 OFFICE OF THE MINORITY LEADER,1,GENERAL EXPENDITURES,PERSONNEL COMPENSATION,DETAIL,   ,   ,   ,BONNER JENNIFER L,2021-01-01,2021-01-02,SCHEDULER,366.67,2021
,2020 OFFICE OF THE MINORITY LEADER,1,GENERAL EXPENDITURES,PERSONNEL COMPENSATION,DETAIL,   ,   ,   ,BUCHANAN NATALIE L,2021-01-01,2021-01-02,DIR OF MEMBER SERVICES,933.33,2021
,2020 OFFICE OF THE MINORITY LEADER,1,GENERAL EXPENDITURES,PERSONNEL COMPENSATION,DETAIL,   ,   ,   ,CAMERON CHRISTINA E,2021-01-01,2021-01-02,DEPUTY PRESS SECRETARY,400,2021
,2020 OFFICE OF THE MINORITY LEADER,1,GENERAL EXPENDITURES,PERSONNEL COMPENSATION,DETAIL,   ,   ,   ,CARR MACHALAGH,2021-01-01,2021-01-02,GENERAL COUNSEL,933.33,2021
,2020 OFFICE OF THE MINORITY LEADER,1,GENERAL EXPENDITURES,PERSONNEL COMPENSATION,DETAIL,   ,   ,   ,CHAFFEE SAVANNAH M,2021-01-01,2021-01-02,STAFF ASSISTANT,233.33,2021
,2020 OFFICE OF THE MINORITY LEADER,1,GENERAL EXPENDITURES,PERSONNEL COMPENSATION,DETAIL,   ,   ,   ,CORRELL CHARLES C,2021-01-01,2021-01-02,DEPUTY SPEECHWRITER,366.67,2021
,2020 OFFICE OF THE MINORITY LEADER,1,GENERAL EXPENDITURES,PERSONNEL COMPENSATION,DETAIL,   ,   ,   ,COYLE SARAH M,2021-01-01,2021-01-02,CLOAKROOM FLOOR ASSISTANT,333.33,2021
,2020 OFFICE OF THE MINORITY LEADER,1,GENERAL EXPENDITURES,PERSONNEL COMPENSATION,DETAIL,   ,   ,   ,DAYER KATHERINE J,2021-01-01,2021-01-02,STAFF ASSISTANT,200,2021
,2020 OFFICE OF THE MINORITY LEADER,1,GENERAL EXPENDITURES,PERSONNEL COMPENSATION,DETAIL,   ,   ,   ,DOMENECH EMILY H,2021-01-01,2021-01-02,SENIOR POLICY ADVISOR,833.33,2021
,2020 OFFICE OF THE MINORITY LEADER,1,GENERAL EXPENDITURES,PERSONNEL COMPENSATION,DETAIL,   ,   ,   ,DUNHAM WILL,2021-01-01,2021-01-02,DEP CHIEF OF STAFF FOR POLICY,933.33,2021
,2020 OFFICE OF THE MINORITY LEADER,1,GENERAL EXPENDITURES,PERSONNEL COMPENSATION,DETAIL,   ,   ,   ,ENGLING MAXIMILIAN T,2021-01-01,2021-01-02,DEP DIR OF MEMBER SERVICES,750,2021
,2020 OFFICE OF THE MINORITY LEADER,1,GENERAL EXPENDITURES,PERSONNEL COMPENSATION,DETAIL,   ,   ,   ,EXNER MICHELE P,2021-01-01,2021-01-02,COMMUNICATIONS DIRECTOR,783.33,2021
,2020 OFFICE OF THE MINORITY LEADER,1,GENERAL EXPENDITURES,PERSONNEL COMPENSATION,DETAIL,   ,   ,   ,FOSTER JORDYN D.,2021-01-01,2021-01-02,TEMPORARY EMPLOYEE,66.67,2021
,2020 OFFICE OF THE MINORITY LEADER,1,GENERAL EXPENDITURES,PERSONNEL COMPENSATION,DETAIL,   ,   ,   ,GIAIER STEVEN S,2021-01-01,2021-01-02,SENIOR POLICY ADVISOR & COUNSE,833.33,2021
,2020 OFFICE OF THE MINORITY LEADER,1,GENERAL EXPENDITURES,PERSONNEL COMPENSATION,DETAIL,   ,   ,   ,GOURDIKIAN ALEXANDRA G.,2021-01-01,2021-01-02,DIRECTOR OF OPERATIONS & SCHED,750,2021
,2020 OFFICE OF THE MINORITY LEADER,1,GENERAL EXPENDITURES,PERSONNEL COMPENSATION,DETAIL,   ,   ,   ,GRIBBIN WILLIAM J.,2021-01-01,2021-01-02,SHARED EMPLOYEE,216.67,2021
,2020 OFFICE OF THE MINORITY LEADER,1,GENERAL EXPENDITURES,PERSONNEL COMPENSATION,DETAIL,   ,   ,   ,GUNN ELLA L.,2021-01-01,2021-01-02,TEMPORARY EMPLOYEE,66.67,2021
,2020 OFFICE OF THE MINORITY LEADER,1,GENERAL EXPENDITURES,PERSONNEL COMPENSATION,DETAIL,   ,   ,   ,HILL PRESTON W,2021-01-01,2021-01-02,POLICY ADVISOR,566.67,2021
,2020 OFFICE OF THE MINORITY LEADER,1,GENERAL EXPENDITURES,PERSONNEL COMPENSATION,DETAIL,   ,   ,   ,HOCHSCHILD KEENAN N.,2021-01-01,2021-01-02,DIGITAL COMMUNICATIONS AIDE,333.33,2021
,2020 OFFICE OF THE MINORITY LEADER,1,GENERAL EXPENDITURES,PERSONNEL COMPENSATION,DETAIL,   ,   ,   ,HOUSTON ZACHARY G,2021-01-01,2021-01-02,COMMUNICATIONS AIDE,266.67,2021
,2020 OFFICE OF THE MINORITY LEADER,1,GENERAL EXPENDITURES,PERSONNEL COMPENSATION,DETAIL,   ,   ,   ,HUMES ALEXANDRA W,2021-01-01,2021-01-02,MEMBER SERVICES COORDINATOR,350,2021
,2020 OFFICE OF THE MINORITY LEADER,1,GENERAL EXPENDITURES,PERSONNEL COMPENSATION,DETAIL,   ,   ,   ,HUNT SARAH,2021-01-01,2021-01-02,TEMPORARY EMPLOYEE,66.67,2021
,2020 OFFICE OF THE MINORITY LEADER,1,GENERAL EXPENDITURES,PERSONNEL COMPENSATION,DETAIL,   ,   ,   ,KELLY CARI R,2021-01-01,2021-01-02,EXECUTIVE DIRECTOR,816.67,2021
,2020 OFFICE OF THE MINORITY LEADER,1,GENERAL EXPENDITURES,PERSONNEL COMPENSATION,DETAIL,   ,   ,   ,LEGANSKI JOHN G,2021-01-01,2021-01-02,DIRECTOR OF FLOOR OPERATIONS,900,2021
,2020 OFFICE OF THE MINORITY LEADER,1,GENERAL EXPENDITURES,PERSONNEL COMPENSATION,DETAIL,   ,   ,   ,LOMBARDI KYLE,2021-01-01,2021-01-02,SHARED EMPLOYEE,566.67,2021
,2020 OFFICE OF THE MINORITY LEADER,1,GENERAL EXPENDITURES,PERSONNEL COMPENSATION,DETAIL,   ,   ,   ,MADDOX GABRIELLE A.,2021-01-01,2021-01-02,TEMPORARY EMPLOYEE,66.67,2021
,2020 OFFICE OF THE MINORITY LEADER,1,GENERAL EXPENDITURES,PERSONNEL COMPENSATION,DETAIL,   ,   ,   ,MARTINEZ BRITTANY N,2021-01-01,2021-01-02,CALIFORNIA PRESS SECRETARY,433.33,2021
,2020 OFFICE OF THE MINORITY LEADER,1,GENERAL EXPENDITURES,PERSONNEL COMPENSATION,DETAIL,   ,   ,   ,MEYER DANIEL P,2021-01-01,2021-01-02,CHIEF OF STAFF,966.11,2021
,2020 OFFICE OF THE MINORITY LEADER,1,GENERAL EXPENDITURES,PERSONNEL COMPENSATION,DETAIL,   ,   ,   ,MEYER KATHERINE R,2021-01-01,2021-01-02,SENIOR POLICY ADVISOR,950,2021
,2020 OFFICE OF THE MINORITY LEADER,1,GENERAL EXPENDITURES,PERSONNEL COMPENSATION,DETAIL,   ,   ,   ,MIN JAMES B.,2021-01-01,2021-01-02,DEPUTY CHIEF OF STAFF/COUNSEL,883.33,2021
,2020 OFFICE OF THE MINORITY LEADER,1,GENERAL EXPENDITURES,PERSONNEL COMPENSATION,DETAIL,   ,   ,   ,MINOR JACK M,2021-01-01,2021-01-02,SHARED EMPLOYEE,566.67,2021
,2020 OFFICE OF THE MINORITY LEADER,1,GENERAL EXPENDITURES,PERSONNEL COMPENSATION,DETAIL,   ,   ,   ,MURPHY CULLEN D,2021-01-01,2021-01-02,FLOOR ASSISTANT,283.33,2021
,2020 OFFICE OF THE MINORITY LEADER,1,GENERAL EXPENDITURES,PERSONNEL COMPENSATION,DETAIL,   ,   ,   ,MURRY LUKE A,2021-01-01,2021-01-02,NATIONAL SECURITY ADVISOR,900,2021
,2020 OFFICE OF THE MINORITY LEADER,1,GENERAL EXPENDITURES,PERSONNEL COMPENSATION,DETAIL,   ,   ,   ,O'TOOLE RYAN T,2021-01-01,2021-01-02,CLOAKROOM FLOOR DIRECTOR,500,2021
,2020 OFFICE OF THE MINORITY LEADER,1,GENERAL EXPENDITURES,PERSONNEL COMPENSATION,DETAIL,   ,   ,   ,PHILIP MECHELLE R.,2021-01-01,2021-01-02,TEMPORARY EMPLOYEE,66.67,2021
,2020 OFFICE OF THE MINORITY LEADER,1,GENERAL EXPENDITURES,PERSONNEL COMPENSATION,DETAIL,   ,   ,   ,PRETZMAN ELIZABETH A.,2021-01-01,2021-01-02,TEMPORARY EMPLOYEE,66.67,2021
,2020 OFFICE OF THE MINORITY LEADER,1,GENERAL EXPENDITURES,PERSONNEL COMPENSATION,DETAIL,   ,   ,   ,ROSE SHANE C.,2021-01-01,2021-01-02,TEMPORARY EMPLOYEE,66.67,2021
,2020 OFFICE OF THE MINORITY LEADER,1,GENERAL EXPENDITURES,PERSONNEL COMPENSATION,DETAIL,   ,   ,   ,ROSEMOND JOHN M,2021-01-01,2021-01-02,SPECIAL ASSISTANT,366.67,2021
,2020 OFFICE OF THE MINORITY LEADER,1,GENERAL EXPENDITURES,PERSONNEL COMPENSATION,DETAIL,   ,   ,   ,SMITH CALEB J,2021-01-01,2021-01-02,DIGITAL COMMUNICATIONS DIRECTO,933.33,2021
,2020 OFFICE OF THE MINORITY LEADER,1,GENERAL EXPENDITURES,PERSONNEL COMPENSATION,DETAIL,   ,   ,   ,SMITH TREVOR H,2021-01-01,2021-01-02,SHARED EMPLOYEE,466.67,2021
,2020 OFFICE OF THE MINORITY LEADER,1,GENERAL EXPENDITURES,PERSONNEL COMPENSATION,DETAIL,   ,   ,   ,SPARKS MATTHEW E,2021-01-01,2021-01-02,DIRECTOR OF COMMUNICATIONS,933.33,2021
,2020 OFFICE OF THE MINORITY LEADER,1,GENERAL EXPENDITURES,PERSONNEL COMPENSATION,DETAIL,   ,   ,   ,SPECHT BRITTAN G,2021-01-01,2021-01-02,SENIOR POLICY ADVISOR,900,2021
,2020 OFFICE OF THE MINORITY LEADER,1,GENERAL EXPENDITURES,PERSONNEL COMPENSATION,DETAIL,   ,   ,   ,TUNG MANSON,2021-01-01,2021-01-02,TEMPORARY EMPLOYEE,66.67,2021
,2020 OFFICE OF THE MINORITY LEADER,1,GENERAL EXPENDITURES,PERSONNEL COMPENSATION,DETAIL,   ,   ,   ,WARREN JACOB A.,2021-01-01,2021-01-02,TEMPORARY EMPLOYEE,66.67,2021
,2020 OFFICE OF THE MINORITY LEADER,1,GENERAL EXPENDITURES,PERSONNEL COMPENSATION,SUBTOTAL,   ,   ,   ,   ,   ,   ,PERSONNEL COMPENSATION TOTALS:,24099.46,2021
,2020 OFFICE OF THE MINORITY LEADER,1,GENERAL EXPENDITURES,TRAVEL,DETAIL,2021-01-07,AP,1368212,TUNG MANSON,2020-10-01,2020-10-01,TAXI/PARKING/TOLLS,8.01,2021
,2020 OFFICE OF THE MINORITY LEADER,1,GENERAL EXPENDITURES,TRAVEL,DETAIL,2021-01-07,AP,1368212,TUNG MANSON,2020-10-02,2020-10-02,TAXI/PARKING/TOLLS,14.85,2021
,2020 OFFICE OF THE MINORITY LEADER,1,GENERAL EXPENDITURES,TRAVEL,DETAIL,2021-01-07,AP,1368212,TUNG MANSON,2020-10-05,2020-10-05,TAXI/PARKING/TOLLS,9.2,2021
,2020 OFFICE OF THE MINORITY LEADER,1,GENERAL EXPENDITURES,TRAVEL,DETAIL,2021-01-07,AP,1368212,TUNG MANSON,2020-10-08,2020-10-08,TAXI/PARKING/TOLLS,18.95,2021
,2020 OFFICE OF THE MINORITY LEADER,1,GENERAL EXPENDITURES,TRAVEL,DETAIL,2021-01-07,AP,1368212,TUNG MANSON,2020-10-09,2020-10-09,TAXI/PARKING/TOLLS,9.38,2021
,2020 OFFICE OF THE MINORITY LEADER,1,GENERAL EXPENDITURES,TRAVEL,DETAIL,2021-01-07,AP,1368212,TUNG MANSON,2020-10-13,2020-10-13,TAXI/PARKING/TOLLS,9.47,2021
,2020 OFFICE OF THE MINORITY LEADER,1,GENERAL EXPENDITURES,TRAVEL,DETAIL,2021-01-07,AP,1368212,TUNG MANSON,2020-10-15,2020-10-15,TAXI/PARKING/TOLLS,19.08,2021
,2020 OFFICE OF THE MINORITY LEADER,1,GENERAL EXPENDITURES,TRAVEL,DETAIL,2021-01-07,AP,1368212,TUNG MANSON,2020-10-16,2020-10-16,TAXI/PARKING/TOLLS,9.26,2021
,2020 OFFICE OF THE MINORITY LEADER,1,GENERAL EXPENDITURES,TRAVEL,DETAIL,2021-01-07,AP,1368212,TUNG MANSON,2020-10-19,2020-10-19,TAXI/PARKING/TOLLS,9.2,2021
,2020 OFFICE OF THE MINORITY LEADER,1,GENERAL EXPENDITURES,TRAVEL,DETAIL,2021-01-07,AP,1368212,TUNG MANSON,2020-10-20,2020-10-20,TAXI/PARKING/TOLLS,9.75,2021
,2020 OFFICE OF THE MINORITY LEADER,1,GENERAL EXPENDITURES,TRAVEL,DETAIL,2021-01-07,AP,1368212,TUNG MANSON,2020-10-21,2020-10-21,TAXI/PARKING/TOLLS,24.69,2021
,2020 OFFICE OF THE MINORITY LEADER,1,GENERAL EXPENDITURES,TRAVEL,DETAIL,2021-01-07,AP,1368212,TUNG MANSON,2020-10-22,2020-10-22,TAXI/PARKING/TOLLS,9.5,2021
,2020 OFFICE OF THE MINORITY LEADER,1,GENERAL EXPENDITURES,TRAVEL,DETAIL,2021-01-07,AP,1368212,TUNG MANSON,2020-10-26,2020-10-26,TAXI/PARKING/TOLLS,18.95,2021
,2020 OFFICE OF THE MINORITY LEADER,1,GENERAL EXPENDITURES,TRAVEL,DETAIL,2021-01-07,AP,1368212,TUNG MANSON,2020-10-27,2020-10-27,TAXI/PARKING/TOLLS,19.3,2021
,2020 OFFICE OF THE MINORITY LEADER,1,GENERAL EXPENDITURES,TRAVEL,DETAIL,2021-01-07,AP,1368212,TUNG MANSON,2020-10-29,2020-10-29,TAXI/PARKING/TOLLS,19.82,2021
,2020 OFFICE OF THE MINORITY LEADER,1,GENERAL EXPENDITURES,TRAVEL,SUBTOTAL,   ,   ,   ,   ,   ,   ,TRAVEL TOTALS:,209.41,2021
,2020 OFFICE OF THE MINORITY LEADER,1,GENERAL EXPENDITURES,RENT  COMMUNICATION  UTILITIES,DETAIL,2021-01-19,AP,1373302,CITI PCARD-GOOGLE YOUTUBE TV,2020-12-29,2021-01-28,UTILITIES,68.89,2021
,2020 OFFICE OF THE MINORITY LEADER,1,GENERAL EXPENDITURES,RENT  COMMUNICATION  UTILITIES,DETAIL,2021-01-19,AP,1373302,CITI PCARD-USPS PO 1050091422,2020-12-10,2020-12-10,POSTAGE / COURIER / BOX RENTAL,33,2021
,2020 OFFICE OF THE MINORITY LEADER,1,GENERAL EXPENDITURES,RENT  COMMUNICATION  UTILITIES,DETAIL,2021-01-19,AP,1373302,CITI PCARD-USPS PO 1050091422,2020-12-14,2020-12-14,POSTAGE / COURIER / BOX RENTAL,55,2021
,2020 OFFICE OF THE MINORITY LEADER,1,GENERAL EXPENDITURES,RENT  COMMUNICATION  UTILITIES,DETAIL,2021-01-26,GL,EMS0103803, ,2020-12-01,2020-12-31,DC TELECOM EQUIP (TRANSFER),36,2021
,2020 OFFICE OF THE MINORITY LEADER,1,GENERAL EXPENDITURES,RENT  COMMUNICATION  UTILITIES,DETAIL,2021-01-26,GL,EMS0103803, ,2020-12-01,2020-12-31,DC TELECOM SERV (TRANSFER),547.5,2021
,2020 OFFICE OF THE MINORITY LEADER,1,GENERAL EXPENDITURES,RENT  COMMUNICATION  UTILITIES,DETAIL,2021-01-26,GL,EMS0103803, ,2020-12-01,2020-12-31,DC TELECOM TOLLS (TRANSFER),5218.86,2021
,2020 OFFICE OF THE MINORITY LEADER,1,GENERAL EXPENDITURES,RENT  COMMUNICATION  UTILITIES,DETAIL,2021-02-17,AP,1384206,CITI PCARD-GOOGLE  YouTube TV,2020-12-29,2021-01-29,UTILITIES,68.89,2021
,2020 OFFICE OF THE MINORITY LEADER,1,GENERAL EXPENDITURES,RENT  COMMUNICATION  UTILITIES,SUBTOTAL,   ,   ,   ,   ,   ,   ,RENT  COMMUNICATION  UTILITIES TOTALS:,6028.14,2021
,2020 OFFICE OF THE MINORITY LEADER,1,GENERAL EXPENDITURES,OTHER SERVICES,DETAIL,2021-01-19,AP,1373302,CITI PCARD-MAILCHIMP    MONTHLY,2020-12-12,2021-01-11,WEB DEV HST EMAIL & RLTD SERV,646.6,2021
,2020 OFFICE OF THE MINORITY LEADER,1,GENERAL EXPENDITURES,OTHER SERVICES,DETAIL,2021-02-10,AP,1381460,ENGAGE LLC,2020-12-01,2020-12-31,WEB DEV HST EMAIL & RLTD SERV,3750,2021
,2020 OFFICE OF THE MINORITY LEADER,1,GENERAL EXPENDITURES,OTHER SERVICES,SUBTOTAL,   ,   ,   ,   ,   ,   ,OTHER SERVICES TOTALS:,4396.6,2021
,2020 OFFICE OF THE MINORITY LEADER,1,GENERAL EXPENDITURES,SUPPLIES AND MATERIALS,DETAIL,2021-01-12,AP,1373323,CITI PCARD-CHICK-FIL-A #02673,2020-12-08,2020-12-08,FOOD & BEVERAGE,499.3,2021
,2020 OFFICE OF THE MINORITY LEADER,1,GENERAL EXPENDITURES,SUPPLIES AND MATERIALS,DETAIL,2021-01-12,AP,1373323,CITI PCARD-CHICK-FIL-A #02673,2020-12-19,2020-12-19,FOOD & BEVERAGE,306.13,2021
,2020 OFFICE OF THE MINORITY LEADER,1,GENERAL EXPENDITURES,SUPPLIES AND MATERIALS,DETAIL,2021-01-12,AP,1373323,CITI PCARD-DT #0656,2020-12-03,2020-12-03,FOOD & BEVERAGE,360.45,2021
,2020 OFFICE OF THE MINORITY LEADER,1,GENERAL EXPENDITURES,SUPPLIES AND MATERIALS,DETAIL,2021-01-14,AP,1373727,SMITH CALEB,2020-12-22,2020-12-22,SOFTWARE  LESS THAN  $500,49,2021
,2020 OFFICE OF THE MINORITY LEADER,1,GENERAL EXPENDITURES,SUPPLIES AND MATERIALS,DETAIL,2021-01-19,AP,1373302,CITI PCARD-AMAZON.COM O51FM91G3 AMZN,2020-12-07,2020-12-07,OFFICE SUPPLIES (OUTSIDE),84.99,2021
,2020 OFFICE OF THE MINORITY LEADER,1,GENERAL EXPENDITURES,SUPPLIES AND MATERIALS,DETAIL,2021-01-19,AP,1373302,CITI PCARD-AMZN Mktp US 6P2NM1IW3,2020-12-18,2020-12-18,OFFICE SUPPLIES (OUTSIDE),193.86,2021
,2020 OFFICE OF THE MINORITY LEADER,1,GENERAL EXPENDITURES,SUPPLIES AND MATERIALS,DETAIL,2021-01-19,AP,1373302,CITI PCARD-AMZN Mktp US 8P1882OV3,2020-11-27,2020-11-27,OFFICE SUPPLIES (OUTSIDE),37.99,2021
,2020 OFFICE OF THE MINORITY LEADER,1,GENERAL EXPENDITURES,SUPPLIES AND MATERIALS,DETAIL,2021-01-19,AP,1373302,CITI PCARD-CORNER BAKERY 0096,2020-12-20,2020-12-20,FOOD & BEVERAGE,314.77,2021
,2020 OFFICE OF THE MINORITY LEADER,1,GENERAL EXPENDITURES,SUPPLIES AND MATERIALS,DETAIL,2021-01-19,AP,1373302,CITI PCARD-D J WALL-ST-JOURNAL,2020-12-20,2021-01-19,PUBLICATIONS/REFERENCE MAT'L,47.69,2021
,2020 OFFICE OF THE MINORITY LEADER,1,GENERAL EXPENDITURES,SUPPLIES AND MATERIALS,DETAIL,2021-01-19,AP,1373302,CITI PCARD-DIGIDAYONLINE,2020-12-17,2021-12-16,SOFTWARE  LESS THAN  $500,395,2021
,2020 OFFICE OF THE MINORITY LEADER,1,GENERAL EXPENDITURES,SUPPLIES AND MATERIALS,DETAIL,2021-01-19,AP,1373302,CITI PCARD-FTP FINANCIAL TIMES,2020-11-29,2020-12-28,PUBLICATIONS/REFERENCE MAT'L,59.5,2021
,2020 OFFICE OF THE MINORITY LEADER,1,GENERAL EXPENDITURES,SUPPLIES AND MATERIALS,DETAIL,2021-01-19,AP,1373302,CITI PCARD-LA TIMES SUBSCRIPTION,2020-11-03,2020-11-30,PUBLICATIONS/REFERENCE MAT'L,27.72,2021
,2020 OFFICE OF THE MINORITY LEADER,1,GENERAL EXPENDITURES,SUPPLIES AND MATERIALS,DETAIL,2021-01-19,AP,1373302,CITI PCARD-LA TIMES SUBSCRIPTION,2020-12-01,2020-12-28,PUBLICATIONS/REFERENCE MAT'L,27.72,2021
,2020 OFFICE OF THE MINORITY LEADER,1,GENERAL EXPENDITURES,SUPPLIES AND MATERIALS,DETAIL,2021-01-19,AP,1373302,CITI PCARD-NYTimes NYTimes,2021-01-01,2021-01-29,PUBLICATIONS/REFERENCE MAT'L,18.02,2021
,2020 OFFICE OF THE MINORITY LEADER,1,GENERAL EXPENDITURES,SUPPLIES AND MATERIALS,DETAIL,2021-01-19,AP,1373302,CITI PCARD-NYTimes NYTimes,2021-01-02,2021-01-30,PUBLICATIONS/REFERENCE MAT'L,5.3,2021
,2020 OFFICE OF THE MINORITY LEADER,1,GENERAL EXPENDITURES,SUPPLIES AND MATERIALS,DETAIL,2021-01-19,AP,1373302,CITI PCARD-SACBEE DIGITAL SUBSCRIPT,2020-12-17,2021-01-16,PUBLICATIONS/REFERENCE MAT'L,129.99,2021
,2020 OFFICE OF THE MINORITY LEADER,1,GENERAL EXPENDITURES,SUPPLIES AND MATERIALS,DETAIL,2021-01-19,AP,1373302,CITI PCARD-SXM SIRIUSXM.COM/ACCT,2020-12-09,2021-12-09,SOFTWARE  LESS THAN  $500,352.38,2021
,2020 OFFICE OF THE MINORITY LEADER,1,GENERAL EXPENDITURES,SUPPLIES AND MATERIALS,DETAIL,2021-01-19,AP,1373302,CITI PCARD-ZOOM.US 888-799-9666,2020-12-23,2021-01-22,SOFTWARE  LESS THAN  $500,42.4,2021
,2020 OFFICE OF THE MINORITY LEADER,1,GENERAL EXPENDITURES,SUPPLIES AND MATERIALS,DETAIL,2021-01-19,AP,1373749,SMITH CALEB,2020-12-23,2020-12-23,SOFTWARE  LESS THAN  $500,13,2021
,2020 OFFICE OF THE MINORITY LEADER,1,GENERAL EXPENDITURES,SUPPLIES AND MATERIALS,DETAIL,2021-01-21,AP,1373750,SMITH CALEB,2020-12-23,2020-12-23,SOFTWARE  LESS THAN  $500,2,2021
,2020 OFFICE OF THE MINORITY LEADER,1,GENERAL EXPENDITURES,SUPPLIES AND MATERIALS,DETAIL,2021-01-21,AP,1373753,SMITH CALEB,2020-12-23,2020-12-23,SOFTWARE  LESS THAN  $500,2,2021
,2020 OFFICE OF THE MINORITY LEADER,1,GENERAL EXPENDITURES,SUPPLIES AND MATERIALS,DETAIL,2021-02-09,AP,1381388,CITI PCARD-DISTRICT TACO 1003 ONLINE,2020-12-16,2020-12-16,FOOD & BEVERAGE,320.1,2021
,2020 OFFICE OF THE MINORITY LEADER,1,GENERAL EXPENDITURES,SUPPLIES AND MATERIALS,DETAIL,2021-02-09,AP,1381388,CITI PCARD-DISTRICT TACO 1003 ONLINE,2020-12-20,2020-12-20,FOOD & BEVERAGE,288.71,2021
,2020 OFFICE OF THE MINORITY LEADER,1,GENERAL EXPENDITURES,SUPPLIES AND MATERIALS,DETAIL,2021-02-09,AP,1381388,CITI PCARD-DT #0656,2020-12-16,2020-12-16,FOOD & BEVERAGE,359.98,2021
,2020 OFFICE OF THE MINORITY LEADER,1,GENERAL EXPENDITURES,SUPPLIES AND MATERIALS,DETAIL,2021-02-09,AP,1381519,CHAFFEE SAVANNAH M.,2020-12-19,2020-12-19,FOOD & BEVERAGE,84.64,2021
,2020 OFFICE OF THE MINORITY LEADER,1,GENERAL EXPENDITURES,SUPPLIES AND MATERIALS,DETAIL,2021-02-09,AP,1382814,CITI PCARD-FIRST CHOICE COFFEE SERVI,2020-11-13,2020-11-13,FOOD & BEVERAGE,442.12,2021
,2020 OFFICE OF THE MINORITY LEADER,1,GENERAL EXPENDITURES,SUPPLIES AND MATERIALS,DETAIL,2021-02-09,AP,1382814,CITI PCARD-US SENATE     95202602,2020-12-07,2020-12-07,OFFICE SUPPLIES (OUTSIDE),350,2021
,2020 OFFICE OF THE MINORITY LEADER,1,GENERAL EXPENDITURES,SUPPLIES AND MATERIALS,DETAIL,2021-02-17,AP,1382830,CITI PCARD-READYREFRESH BY NESTLE,2020-10-27,2020-12-26,WATER,154.92,2021
,2020 OFFICE OF THE MINORITY LEADER,1,GENERAL EXPENDITURES,SUPPLIES AND MATERIALS,DETAIL,2021-02-17,AP,1384206,CITI PCARD-FIRST CHOICE COFFEE SERVI,2020-12-11,2020-12-11,FOOD & BEVERAGE,293.58,2021
,2020 OFFICE OF THE MINORITY LEADER,1,GENERAL EXPENDITURES,SUPPLIES AND MATERIALS,DETAIL,2021-02-17,AP,1384206,CITI PCARD-FTP FINANCIAL TIMES,2020-12-29,2021-01-29,PUBLICATIONS/REFERENCE MAT'L,59.5,2021
,2020 OFFICE OF THE MINORITY LEADER,1,GENERAL EXPENDITURES,SUPPLIES AND MATERIALS,DETAIL,2021-02-17,AP,1384206,CITI PCARD-NYTimes NYTimes,2021-01-01,2021-01-29,PUBLICATIONS/REFERENCE MAT'L,18.02,2021
,2020 OFFICE OF THE MINORITY LEADER,1,GENERAL EXPENDITURES,SUPPLIES AND MATERIALS,DETAIL,2021-02-17,AP,1384206,CITI PCARD-NYTimes NYTimes,2021-01-02,2021-01-30,PUBLICATIONS/REFERENCE MAT'L,5.3,2021
,2020 OFFICE OF THE MINORITY LEADER,1,GENERAL EXPENDITURES,SUPPLIES AND MATERIALS,DETAIL,2021-02-18,AP,1383393,TAX ANALYSTS,2021-01-01,2021-12-31,PUBLICATIONS/REFERENCE MAT'L,2433.6,2021
,2020 OFFICE OF THE MINORITY LEADER,1,GENERAL EXPENDITURES,SUPPLIES AND MATERIALS,DETAIL,2021-02-22,AP,1387159,CITI PCARD-LA TIMES SUBSCRIPTION,2020-12-29,2021-02-22,PUBLICATIONS/REFERENCE MAT'L,27.72,2021
,2020 OFFICE OF THE MINORITY LEADER,1,GENERAL EXPENDITURES,SUPPLIES AND MATERIALS,DETAIL,2021-03-10,AP,1394153,CITI PCARD-REI PAYMENT CENTER,2021-01-01,2021-01-31,PUBLICATIONS/REFERENCE MAT'L,56,2021
,2020 OFFICE OF THE MINORITY LEADER,1,GENERAL EXPENDITURES,SUPPLIES AND MATERIALS,DETAIL,2021-03-10,AP,1394435,CITI PCARD-REI PAYMENT CENTER,2020-08-01,2020-08-31,PUBLICATIONS/REFERENCE MAT'L,56,2021
,2020 OFFICE OF THE MINORITY LEADER,1,GENERAL EXPENDITURES,SUPPLIES AND MATERIALS,DETAIL,2021-03-10,AP,1394435,CITI PCARD-REI PAYMENT CENTER,2020-09-01,2020-09-30,PUBLICATIONS/REFERENCE MAT'L,56,2021
,2020 OFFICE OF THE MINORITY LEADER,1,GENERAL EXPENDITURES,SUPPLIES AND MATERIALS,DETAIL,2021-03-10,AP,1394435,CITI PCARD-REI PAYMENT CENTER,2020-10-01,2020-10-31,PUBLICATIONS/REFERENCE MAT'L,56,2021
,2020 OFFICE OF THE MINORITY LEADER,1,GENERAL EXPENDITURES,SUPPLIES AND MATERIALS,DETAIL,2021-03-10,AP,1394435,CITI PCARD-REI PAYMENT CENTER,2020-11-01,2020-11-30,PUBLICATIONS/REFERENCE MAT'L,56,2021
,2020 OFFICE OF THE MINORITY LEADER,1,GENERAL EXPENDITURES,SUPPLIES AND MATERIALS,DETAIL,2021-03-10,AP,1394435,CITI PCARD-REI PAYMENT CENTER,2020-12-01,2020-12-31,PUBLICATIONS/REFERENCE MAT'L,56,2021
,2020 OFFICE OF THE MINORITY LEADER,1,GENERAL EXPENDITURES,SUPPLIES AND MATERIALS,DETAIL,2021-03-16,AP,1396660,TAX ANALYSTS,2020-10-30,2020-12-31,PUBLICATIONS/REFERENCE MAT'L,402.68,2021
,2020 OFFICE OF THE MINORITY LEADER,1,GENERAL EXPENDITURES,SUPPLIES AND MATERIALS,SUBTOTAL,   ,   ,   ,   ,   ,   ,SUPPLIES AND MATERIALS TOTALS:,8546.08,2021
,2020 OFFICE OF THE MINORITY LEADER,1,GENERAL EXPENDITURES,EQUIPMENT,DETAIL,2021-01-08,AP,1372975,CDW GOVERNMENT LLC,2020-11-16,2020-11-16,COMPUTER HARDW PURCH  LESS THAN $25 000,1994.49,2021
,2020 OFFICE OF THE MINORITY LEADER,1,GENERAL EXPENDITURES,EQUIPMENT,DETAIL,2021-01-14,AP,1374272,CDW GOVERNMENT LLC,2020-12-28,2020-12-28,COMPUTER HARDW PURCH  LESS THAN $25 000,2365.66,2021
,2020 OFFICE OF THE MINORITY LEADER,1,GENERAL EXPENDITURES,EQUIPMENT,DETAIL,2021-01-14,AP,1374272,CDW GOVERNMENT LLC,2020-12-28,2020-12-28,WARRANTIES,214.86,2021
,2020 OFFICE OF THE MINORITY LEADER,1,GENERAL EXPENDITURES,EQUIPMENT,DETAIL,2021-01-19,AP,1374159,GULF PARTYLINE CORPORATION,2020-12-01,2020-12-31,COMPUTER SOFTW PURCH  LESS THAN $10 000,4000,2021
,2020 OFFICE OF THE MINORITY LEADER,1,GENERAL EXPENDITURES,EQUIPMENT,DETAIL,2021-02-24,AP,1390673,CDW GOVERNMENT LLC,2021-02-02,2021-02-02,COMPUTER SOFTW PURCH  LESS THAN $10 000 QTY - 5,4800.85,2021
,2020 OFFICE OF THE MINORITY LEADER,1,GENERAL EXPENDITURES,EQUIPMENT,SUBTOTAL,   ,   ,   ,   ,   ,   ,EQUIPMENT TOTALS:,13375.86,2021
,2020 OFFICE OF THE MINORITY LEADER,1,GENERAL EXPENDITURES,EQUIPMENT,SUBTOTAL,   ,   ,   ,   ,   ,   ,GENERAL EXPENDITURES TOTALS:,56655.55,2021
,2020 OFFICE OF THE MINORITY LEADER,1,CONFERENCE SECRETARY,PERSONNEL COMPENSATION,DETAIL,   ,   ,   ,ROMAN MARK J.,2021-01-01,2021-01-02,SHARED EMPLOYEE,566.67,2021
,2020 OFFICE OF THE MINORITY LEADER,1,CONFERENCE SECRETARY,PERSONNEL COMPENSATION,SUBTOTAL,   ,   ,   ,   ,   ,   ,PERSONNEL COMPENSATION TOTALS:,566.67,2021
,2020 OFFICE OF THE MINORITY LEADER,1,CONFERENCE SECRETARY,PERSONNEL COMPENSATION,SUBTOTAL,   ,   ,   ,   ,   ,   ,CONFERENCE SECRETARY TOTALS:,566.67,2021
,2020 OFFICE OF THE MINORITY LEADER,1,REPUBLICAN POLICY COMMITTEE,PERSONNEL COMPENSATION,DETAIL,   ,   ,   ,WALL KELSEY V,2021-01-01,2021-01-02,SHARED EMPLOYEE,316.67,2021
,2020 OFFICE OF THE MINORITY LEADER,1,REPUBLICAN POLICY COMMITTEE,PERSONNEL COMPENSATION,SUBTOTAL,   ,   ,   ,   ,   ,   ,PERSONNEL COMPENSATION TOTALS:,316.67,2021
,2020 OFFICE OF THE MINORITY LEADER,1,REPUBLICAN POLICY COMMITTEE,PERSONNEL COMPENSATION,SUBTOTAL,   ,   ,   ,   ,   ,   ,REPUBLICAN POLICY COMMITTEE TOTALS:,316.67,2021
,2020 OFFICE OF THE MINORITY LEADER,1,REPUBLICAN POLICY COMMITTEE,PERSONNEL COMPENSATION,GRAND TOTAL FOR ORGANIZATION,   ,   ,   ,   ,   ,   ,OFFICE TOTALS: ,57538.89,2021
,2021 OFFICE OF THE MINORITY LEADER,1,INTERN ALLOWANCES,PERSONNEL COMPENSATION,DETAIL,   ,   ,   ,CROSS JAMES M.,2021-02-16,2021-03-31,MIN LEADER PAID INTERN - HOUSE,1500,2021
,2021 OFFICE OF THE MINORITY LEADER,1,INTERN ALLOWANCES,PERSONNEL COMPENSATION,DETAIL,   ,   ,   ,DAVIS MOLLY J.,2021-02-16,2021-03-31,MIN LEADER PAID INTERN - HOUSE,1500,2021
,2021 OFFICE OF THE MINORITY LEADER,1,INTERN ALLOWANCES,PERSONNEL COMPENSATION,DETAIL,   ,   ,   ,FOSTER JORDYN D.,2021-02-16,2021-03-31,MIN LEADER PAID INTERN - HOUSE,1500,2021
,2021 OFFICE OF THE MINORITY LEADER,1,INTERN ALLOWANCES,PERSONNEL COMPENSATION,DETAIL,   ,   ,   ,MORAN COOPER R.,2021-02-16,2021-03-31,MIN LEADER PAID INTERN - HOUSE,1500,2021
,2021 OFFICE OF THE MINORITY LEADER,1,INTERN ALLOWANCES,PERSONNEL COMPENSATION,DETAIL,   ,   ,   ,QUINN AUSTIN T.,2021-02-16,2021-03-31,MIN LEADER PAID INTERN - HOUSE,1500,2021
,2021 OFFICE OF THE MINORITY LEADER,1,INTERN ALLOWANCES,PERSONNEL COMPENSATION,DETAIL,   ,   ,   ,ROSE SHANE C.,2021-02-16,2021-03-31,MIN LEADER PAID INTERN - HOUSE,1500,2021
,2021 OFFICE OF THE MINORITY LEADER,1,INTERN ALLOWANCES,PERSONNEL COMPENSATION,DETAIL,   ,   ,   ,SIGAL WILLIAM J.,2021-02-16,2021-03-31,MIN LEADER PAID INTERN - HOUSE,1500,2021
,2021 OFFICE OF THE MINORITY LEADER,1,INTERN ALLOWANCES,PERSONNEL COMPENSATION,SUBTOTAL,   ,   ,   ,   ,   ,   ,PERSONNEL COMPENSATION TOTALS:,10500,2021
,2021 OFFICE OF THE MINORITY LEADER,1,INTERN ALLOWANCES,PERSONNEL COMPENSATION,SUBTOTAL,   ,   ,   ,   ,   ,   ,INTERN ALLOWANCES TOTALS:,10500,2021
,2021 OFFICE OF THE MINORITY LEADER,1,INTERN ALLOWANCES,PERSONNEL COMPENSATION,GRAND TOTAL FOR ORGANIZATION,   ,   ,   ,   ,   ,   ,OFFICE TOTALS: ,10500,2021
,2021 OFFICE OF THE MAJORITY WHIP,1,GENERAL EXPENDITURES,PERSONNEL COMPENSATION,DETAIL,   ,   ,   ,BUTLER MORGAN E,2021-01-03,2021-03-31,DIGITAL DIRECTOR,21511.1,2021
,2021 OFFICE OF THE MAJORITY WHIP,1,GENERAL EXPENDITURES,PERSONNEL COMPENSATION,DETAIL,   ,   ,   ,CONRAD WILLIAM A,2021-01-03,2021-03-31,STAFF ASSISTANT,8311.1,2021
,2021 OFFICE OF THE MAJORITY WHIP,1,GENERAL EXPENDITURES,PERSONNEL COMPENSATION,DETAIL,   ,   ,   ,DERRICK HOPE E,2021-01-03,2021-03-31,COMMUNICATIONS DIRECTOR,37888.9,2021
,2021 OFFICE OF THE MAJORITY WHIP,1,GENERAL EXPENDITURES,PERSONNEL COMPENSATION,DETAIL,   ,   ,   ,ELLISON MATTHEW B.,2021-01-03,2021-03-31,DEPUTY POLICY DIRECTOR,26888.9,2021
,2021 OFFICE OF THE MAJORITY WHIP,1,GENERAL EXPENDITURES,PERSONNEL COMPENSATION,DETAIL,   ,   ,   ,GARRETT EMERALD P.,2021-01-03,2021-03-31,FLOOR ASSISTANT,12711.1,2021
,2021 OFFICE OF THE MAJORITY WHIP,1,GENERAL EXPENDITURES,PERSONNEL COMPENSATION,DETAIL,   ,   ,   ,HAGGRAY GREGGORY M.,2021-03-04,2021-03-31,PART-TIME EMPLOYEE,862.5,2021
,2021 OFFICE OF THE MAJORITY WHIP,1,GENERAL EXPENDITURES,PERSONNEL COMPENSATION,DETAIL,   ,   ,   ,HUDSON KEEGAN P.,2021-01-03,2021-03-31,STAFF ASSISTANT,8555.56,2021
,2021 OFFICE OF THE MAJORITY WHIP,1,GENERAL EXPENDITURES,PERSONNEL COMPENSATION,DETAIL,   ,   ,   ,KELLY SARAH,2021-01-03,2021-03-31,SENIOR ADVISOR,33488.9,2021
,2021 OFFICE OF THE MAJORITY WHIP,1,GENERAL EXPENDITURES,PERSONNEL COMPENSATION,DETAIL,   ,   ,   ,LINK CRAIG C,2021-01-03,2021-03-31,FLOOR DIRECTOR AND GENERAL COU,39966.67,2021
,2021 OFFICE OF THE MAJORITY WHIP,1,GENERAL EXPENDITURES,PERSONNEL COMPENSATION,DETAIL,   ,   ,   ,LOEWE ERICA P,2021-01-03,2021-03-31,DEPUTY COMMUNICATIONS DIRECTOR,25666.67,2021
,2021 OFFICE OF THE MAJORITY WHIP,1,GENERAL EXPENDITURES,PERSONNEL COMPENSATION,DETAIL,   ,   ,   ,MASON TAMIKA K,2021-01-03,2021-03-31,DIRECTOR OF TECHNOLOGY FOR FLO,23222.23,2021
,2021 OFFICE OF THE MAJORITY WHIP,1,GENERAL EXPENDITURES,PERSONNEL COMPENSATION,DETAIL,   ,   ,   ,MICHALAK TIMOTHY J,2021-01-03,2021-03-31,LEGISLATIVE ASSISTANT,12222.23,2021
,2021 OFFICE OF THE MAJORITY WHIP,1,GENERAL EXPENDITURES,PERSONNEL COMPENSATION,DETAIL,   ,   ,   ,MONEIB AHMED,2021-01-03,2021-03-31,STAFF ASSISTANT,9288.9,2021
,2021 OFFICE OF THE MAJORITY WHIP,1,GENERAL EXPENDITURES,PERSONNEL COMPENSATION,DETAIL,   ,   ,   ,O'DONNELL FREDERICK J.,2021-03-01,2021-03-31,STAFF ASSISTANT,2916.67,2021
,2021 OFFICE OF THE MAJORITY WHIP,1,GENERAL EXPENDITURES,PERSONNEL COMPENSATION,DETAIL,   ,   ,   ,SAUNDERS NIA G.,2021-01-03,2021-03-31,PRESS ASSISTANT,8555.56,2021
,2021 OFFICE OF THE MAJORITY WHIP,1,GENERAL EXPENDITURES,PERSONNEL COMPENSATION,DETAIL,   ,   ,   ,UBEZONU NNEMDILIM I,2021-01-03,2021-02-28,DEPUTY FLOOR LEADER,12083.33,2021
,2021 OFFICE OF THE MAJORITY WHIP,1,GENERAL EXPENDITURES,PERSONNEL COMPENSATION,DETAIL,   ,   ,   ,UBEZONU NNEMDILIM I,2021-03-01,2021-03-31,DEPUTY FLOOR DIRECTOR,6833.33,2021
,2021 OFFICE OF THE MAJORITY WHIP,1,GENERAL EXPENDITURES,PERSONNEL COMPENSATION,DETAIL,   ,   ,   ,VALLEJO JESSICA,2021-01-11,2021-02-15,FLOOR ASSISTANT,7097.23,2021
,2021 OFFICE OF THE MAJORITY WHIP,1,GENERAL EXPENDITURES,PERSONNEL COMPENSATION,DETAIL,   ,   ,   ,WATKINS YELBERTON R.,2021-01-03,2021-03-31,CHIEF OF STAFF,41066.67,2021
,2021 OFFICE OF THE MAJORITY WHIP,1,GENERAL EXPENDITURES,PERSONNEL COMPENSATION,DETAIL,   ,   ,   ,WHITEHOUSE LIN,2021-01-03,2021-03-31,MEMBER SERVICES ASSISTANT,15155.56,2021
,2021 OFFICE OF THE MAJORITY WHIP,1,GENERAL EXPENDITURES,PERSONNEL COMPENSATION,DETAIL,   ,   ,   ,WILSON ASHLEIGH R,2021-01-03,2021-03-31,LEGISLATIVE DIRECTOR,6111.1,2021
,2021 OFFICE OF THE MAJORITY WHIP,1,GENERAL EXPENDITURES,PERSONNEL COMPENSATION,DETAIL,   ,   ,   ,WMARIAM WINTTA M,2021-01-03,2021-03-31,POLICY DIRECTOR,41188.9,2021
,2021 OFFICE OF THE MAJORITY WHIP,1,GENERAL EXPENDITURES,PERSONNEL COMPENSATION,SUBTOTAL,   ,   ,   ,   ,   ,   ,PERSONNEL COMPENSATION TOTALS:,401593.11,2021
,2021 OFFICE OF THE MAJORITY WHIP,1,GENERAL EXPENDITURES,RENT  COMMUNICATION  UTILITIES,DETAIL,2021-02-25,GL,EMS0104578, ,2021-01-01,2021-01-31,DC TELECOM EQUIP (TRANSFER),76,2021
,2021 OFFICE OF THE MAJORITY WHIP,1,GENERAL EXPENDITURES,RENT  COMMUNICATION  UTILITIES,DETAIL,2021-02-25,GL,EMS0104578, ,2021-01-01,2021-01-31,DC TELECOM SERV (TRANSFER),293.5,2021
,2021 OFFICE OF THE MAJORITY WHIP,1,GENERAL EXPENDITURES,RENT  COMMUNICATION  UTILITIES,DETAIL,2021-02-25,GL,EMS0104578, ,2021-01-01,2021-01-31,DC TELECOM TOLLS (TRANSFER),1044.34,2021
,2021 OFFICE OF THE MAJORITY WHIP,1,GENERAL EXPENDITURES,RENT  COMMUNICATION  UTILITIES,DETAIL,2021-03-30,GL,EMS0105388, ,2021-02-01,2021-02-28,DC TELECOM EQUIP (TRANSFER),76,2021
,2021 OFFICE OF THE MAJORITY WHIP,1,GENERAL EXPENDITURES,RENT  COMMUNICATION  UTILITIES,DETAIL,2021-03-30,GL,EMS0105388, ,2021-02-01,2021-02-28,DC TELECOM SERV (TRANSFER),293.5,2021
,2021 OFFICE OF THE MAJORITY WHIP,1,GENERAL EXPENDITURES,RENT  COMMUNICATION  UTILITIES,DETAIL,2021-03-30,GL,EMS0105388, ,2021-02-01,2021-02-28,DC TELECOM TOLLS (TRANSFER),1122.49,2021
,2021 OFFICE OF THE MAJORITY WHIP,1,GENERAL EXPENDITURES,RENT  COMMUNICATION  UTILITIES,SUBTOTAL,   ,   ,   ,   ,   ,   ,RENT  COMMUNICATION  UTILITIES TOTALS:,2905.83,2021
,2021 OFFICE OF THE MAJORITY WHIP,1,GENERAL EXPENDITURES,PRINTING AND REPRODUCTION,DETAIL,2021-03-19,AP,1400793,ACCURATE WORD LLC,2021-02-25,2021-02-25,PRINTING & REPRODUCTION,130,2021
,2021 OFFICE OF THE MAJORITY WHIP,1,GENERAL EXPENDITURES,PRINTING AND REPRODUCTION,DETAIL,2021-03-29,GL,MED0105330, ,2021-03-03,2021-03-03,PHOTOGRAPHIC (TRANSFER),30.4,2021
,2021 OFFICE OF THE MAJORITY WHIP,1,GENERAL EXPENDITURES,PRINTING AND REPRODUCTION,SUBTOTAL,   ,   ,   ,   ,   ,   ,PRINTING AND REPRODUCTION TOTALS:,160.4,2021
,2021 OFFICE OF THE MAJORITY WHIP,1,GENERAL EXPENDITURES,OTHER SERVICES,DETAIL,2021-01-27,AP,1378289,FIRESIDE21,2021-01-01,2021-01-31,TECHNOLOGY SERVICE CONTRACTS,1895,2021
,2021 OFFICE OF THE MAJORITY WHIP,1,GENERAL EXPENDITURES,OTHER SERVICES,DETAIL,2021-02-16,AP,1386467,FIRESIDE21,2021-02-01,2021-02-28,TECHNOLOGY SERVICE CONTRACTS,1895,2021
,2021 OFFICE OF THE MAJORITY WHIP,1,GENERAL EXPENDITURES,OTHER SERVICES,DETAIL,2021-03-16,AP,1397727,FIRESIDE21,2021-03-01,2021-03-31,TECHNOLOGY SERVICE CONTRACTS,1895,2021
,2021 OFFICE OF THE MAJORITY WHIP,1,GENERAL EXPENDITURES,OTHER SERVICES,SUBTOTAL,   ,   ,   ,   ,   ,   ,OTHER SERVICES TOTALS:,5685,2021
,2021 OFFICE OF THE MAJORITY WHIP,1,GENERAL EXPENDITURES,SUPPLIES AND MATERIALS,DETAIL,2021-01-28,AP,1378785,WATKINS YELBERTON R.,2021-01-12,2021-01-12,FOOD & BEVERAGE,202.62,2021
,2021 OFFICE OF THE MAJORITY WHIP,1,GENERAL EXPENDITURES,SUPPLIES AND MATERIALS,DETAIL,2021-01-31,GL,RMS0104032, ,2021-01-01,2021-01-31,OFFICE SUPPLY (TRANSFER),173.88,2021
,2021 OFFICE OF THE MAJORITY WHIP,1,GENERAL EXPENDITURES,SUPPLIES AND MATERIALS,DETAIL,2021-02-28,GL,RMS0104712, ,2021-02-01,2021-02-28,OFFICE SUPPLIES (OUTSIDE),369.72,2021
,2021 OFFICE OF THE MAJORITY WHIP,1,GENERAL EXPENDITURES,SUPPLIES AND MATERIALS,DETAIL,2021-02-28,GL,RMS0104712, ,2021-02-01,2021-02-28,OFFICE SUPPLY (TRANSFER),494.78,2021
,2021 OFFICE OF THE MAJORITY WHIP,1,GENERAL EXPENDITURES,SUPPLIES AND MATERIALS,DETAIL,2021-03-01,AP,1391489,CITI PCARD-TALAY THAI RESTAURANT,2021-01-12,2021-01-12,FOOD & BEVERAGE,133.7,2021
,2021 OFFICE OF THE MAJORITY WHIP,1,GENERAL EXPENDITURES,SUPPLIES AND MATERIALS,DETAIL,2021-03-01,AP,1391489,CITI PCARD-THE STATE NEWSPAPER DIGI,2021-01-24,2022-01-23,PUBLICATIONS/REFERENCE MAT'L,129.99,2021
,2021 OFFICE OF THE MAJORITY WHIP,1,GENERAL EXPENDITURES,SUPPLIES AND MATERIALS,DETAIL,2021-03-01,AP,1391489,CITI PCARD-THEPOSTANDCO ONLINE,2021-01-24,2022-01-23,PUBLICATIONS/REFERENCE MAT'L,310,2021
,2021 OFFICE OF THE MAJORITY WHIP,1,GENERAL EXPENDITURES,SUPPLIES AND MATERIALS,DETAIL,2021-03-03,AP,1390654,CITI PCARD-AMZN Mktp US RX33D7JQ3,2021-01-14,2021-01-14,OFFICE SUPPLIES (OUTSIDE),142.26,2021
,2021 OFFICE OF THE MAJORITY WHIP,1,GENERAL EXPENDITURES,SUPPLIES AND MATERIALS,DETAIL,2021-03-03,AP,1390654,CITI PCARD-COSTCO BY INSTACART,2021-01-03,2021-01-03,FOOD & BEVERAGE,321.56,2021
,2021 OFFICE OF THE MAJORITY WHIP,1,GENERAL EXPENDITURES,SUPPLIES AND MATERIALS,DETAIL,2021-03-03,AP,1390654,CITI PCARD-INSTACART,2021-01-04,2021-01-04,FOOD & BEVERAGE,29.68,2021
,2021 OFFICE OF THE MAJORITY WHIP,1,GENERAL EXPENDITURES,SUPPLIES AND MATERIALS,DETAIL,2021-03-03,AP,1390654,CITI PCARD-INSTACART,2021-01-05,2021-01-05,FOOD & BEVERAGE,125.94,2021
,2021 OFFICE OF THE MAJORITY WHIP,1,GENERAL EXPENDITURES,SUPPLIES AND MATERIALS,DETAIL,2021-03-03,AP,1390654,CITI PCARD-NYTimes NYTimes,2021-01-27,2021-02-24,PUBLICATIONS/REFERENCE MAT'L,47.7,2021
,2021 OFFICE OF THE MAJORITY WHIP,1,GENERAL EXPENDITURES,SUPPLIES AND MATERIALS,DETAIL,2021-03-03,AP,1390654,CITI PCARD-PP SUGARCOLLAB,2021-01-06,2021-01-06,FOOD & BEVERAGE,5815,2021
,2021 OFFICE OF THE MAJORITY WHIP,1,GENERAL EXPENDITURES,SUPPLIES AND MATERIALS,DETAIL,2021-03-03,AP,1390654,CITI PCARD-THE STATE NEWSPAPER DIGI,2021-01-24,2022-01-23,PUBLICATIONS/REFERENCE MAT'L,129.99,2021
,2021 OFFICE OF THE MAJORITY WHIP,1,GENERAL EXPENDITURES,SUPPLIES AND MATERIALS,DETAIL,2021-03-11,AP,1393374,CITI PCARD-AMAZON.COM EX9LM1X93 AMZN,2021-02-02,2021-02-02,OFFICE SUPPLIES (OUTSIDE),33.88,2021
,2021 OFFICE OF THE MAJORITY WHIP,1,GENERAL EXPENDITURES,SUPPLIES AND MATERIALS,DETAIL,2021-03-11,AP,1393374,CITI PCARD-AMZN Mktp US LA99S1FU3,2021-02-04,2021-02-04,OFFICE SUPPLIES (OUTSIDE),279.8,2021
,2021 OFFICE OF THE MAJORITY WHIP,1,GENERAL EXPENDITURES,SUPPLIES AND MATERIALS,DETAIL,2021-03-11,AP,1393374,CITI PCARD-Amazon.com 9M4SO8IJ3,2021-02-02,2021-02-02,OFFICE SUPPLIES (OUTSIDE),30.89,2021
,2021 OFFICE OF THE MAJORITY WHIP,1,GENERAL EXPENDITURES,SUPPLIES AND MATERIALS,DETAIL,2021-03-11,AP,1393374,CITI PCARD-Amazon.com UI1G39KL3,2021-02-11,2021-02-11,OFFICE SUPPLIES (OUTSIDE),133.56,2021
,2021 OFFICE OF THE MAJORITY WHIP,1,GENERAL EXPENDITURES,SUPPLIES AND MATERIALS,DETAIL,2021-03-11,AP,1393374,CITI PCARD-COSTCO BY INSTACART,2021-02-03,2021-02-03,FOOD & BEVERAGE,337.64,2021
,2021 OFFICE OF THE MAJORITY WHIP,1,GENERAL EXPENDITURES,SUPPLIES AND MATERIALS,DETAIL,2021-03-11,AP,1393374,CITI PCARD-COSTCO BY INSTACART,2021-02-24,2021-02-24,FOOD & BEVERAGE,278.2,2021
,2021 OFFICE OF THE MAJORITY WHIP,1,GENERAL EXPENDITURES,SUPPLIES AND MATERIALS,DETAIL,2021-03-11,AP,1393374,CITI PCARD-INSTACART,2021-02-17,2021-02-17,FOOD & BEVERAGE,468.57,2021
,2021 OFFICE OF THE MAJORITY WHIP,1,GENERAL EXPENDITURES,SUPPLIES AND MATERIALS,DETAIL,2021-03-11,AP,1393374,CITI PCARD-Microsoft Store,2021-02-24,2021-02-24,SOFTWARE  LESS THAN  $500,1.05,2021
,2021 OFFICE OF THE MAJORITY WHIP,1,GENERAL EXPENDITURES,SUPPLIES AND MATERIALS,DETAIL,2021-03-11,AP,1393374,CITI PCARD-NYTimes NYTimes,2021-02-24,2021-03-24,PUBLICATIONS/REFERENCE MAT'L,49.82,2021
,2021 OFFICE OF THE MAJORITY WHIP,1,GENERAL EXPENDITURES,SUPPLIES AND MATERIALS,DETAIL,2021-03-31,GL,RMS0105505, ,2021-03-01,2021-03-31,OFFICE SUPPLY (TRANSFER),418.82,2021
,2021 OFFICE OF THE MAJORITY WHIP,1,GENERAL EXPENDITURES,SUPPLIES AND MATERIALS,SUBTOTAL,   ,   ,   ,   ,   ,   ,SUPPLIES AND MATERIALS TOTALS:,10459.05,2021
,2021 OFFICE OF THE MAJORITY WHIP,1,GENERAL EXPENDITURES,EQUIPMENT,DETAIL,2021-01-29,GL,MNT0103932, ,2021-01-01,2021-01-31,MAINTENANCE / REPAIRS,355,2021
,2021 OFFICE OF THE MAJORITY WHIP,1,GENERAL EXPENDITURES,EQUIPMENT,DETAIL,2021-01-29,GL,RPY0103930, ,2021-01-01,2021-01-31,EQUIPMENT PURCHASES,2191.82,2021
,2021 OFFICE OF THE MAJORITY WHIP,1,GENERAL EXPENDITURES,EQUIPMENT,DETAIL,2021-01-31,GL,RMS0104032, ,2021-01-01,2021-01-31,COMPUTER HARDW PURCH  LESS THAN $25 000,3287.73,2021
,2021 OFFICE OF THE MAJORITY WHIP,1,GENERAL EXPENDITURES,EQUIPMENT,DETAIL,2021-02-26,GL,MNT0104611, ,2021-02-01,2021-02-28,MAINTENANCE / REPAIRS,355,2021
,2021 OFFICE OF THE MAJORITY WHIP,1,GENERAL EXPENDITURES,EQUIPMENT,DETAIL,2021-02-28,GL,RMS0104712, ,2021-02-01,2021-02-28,COMPUTER HARDW PURCH  LESS THAN $25 000,1179.96,2021
,2021 OFFICE OF THE MAJORITY WHIP,1,GENERAL EXPENDITURES,EQUIPMENT,DETAIL,2021-03-31,GL,MNT0105439, ,2021-03-01,2021-03-31,MAINTENANCE / REPAIRS,355,2021
,2021 OFFICE OF THE MAJORITY WHIP,1,GENERAL EXPENDITURES,EQUIPMENT,SUBTOTAL,   ,   ,   ,   ,   ,   ,EQUIPMENT TOTALS:,7724.51,2021
,2021 OFFICE OF THE MAJORITY WHIP,1,GENERAL EXPENDITURES,EQUIPMENT,SUBTOTAL,   ,   ,   ,   ,   ,   ,GENERAL EXPENDITURES TOTALS:,428527.9,2021
,2021 OFFICE OF THE MAJORITY WHIP,1,GENERAL EXPENDITURES,EQUIPMENT,GRAND TOTAL FOR ORGANIZATION,   ,   ,   ,   ,   ,   ,OFFICE TOTALS: ,428527.9,2021
,2020 OFFICE OF THE MAJORITY WHIP,1,GENERAL EXPENDITURES,PERSONNEL COMPENSATION,DETAIL,   ,   ,   ,BUTLER MORGAN E,2020-12-01,2021-01-02,DIGITAL DIRECTOR,4488.89,2021
,2020 OFFICE OF THE MAJORITY WHIP,1,GENERAL EXPENDITURES,PERSONNEL COMPENSATION,DETAIL,   ,   ,   ,CONRAD WILLIAM A,2020-12-01,2021-01-02,STAFF ASSISTANT,4188.89,2021
,2020 OFFICE OF THE MAJORITY WHIP,1,GENERAL EXPENDITURES,PERSONNEL COMPENSATION,DETAIL,   ,   ,   ,DERRICK HOPE E,2020-12-01,2021-01-02,COMMUNICATIONS DIRECTOR,2019.11,2021
,2020 OFFICE OF THE MAJORITY WHIP,1,GENERAL EXPENDITURES,PERSONNEL COMPENSATION,DETAIL,   ,   ,   ,ELLISON MATTHEW B.,2020-12-01,2021-01-02,DEPUTY POLICY DIRECTOR,936.11,2021
,2020 OFFICE OF THE MAJORITY WHIP,1,GENERAL EXPENDITURES,PERSONNEL COMPENSATION,DETAIL,   ,   ,   ,GARRETT EMERALD P.,2020-12-01,2021-01-02,FLOOR ASSISTANT,4288.89,2021
,2020 OFFICE OF THE MAJORITY WHIP,1,GENERAL EXPENDITURES,PERSONNEL COMPENSATION,DETAIL,   ,   ,   ,HUDSON KEEGAN P.,2020-12-01,2021-01-02,STAFF ASSISTANT,4194.44,2021
,2020 OFFICE OF THE MAJORITY WHIP,1,GENERAL EXPENDITURES,PERSONNEL COMPENSATION,DETAIL,   ,   ,   ,KELLY SARAH,2020-12-01,2021-01-02,SENIOR ADVISOR,3586.11,2021
,2020 OFFICE OF THE MAJORITY WHIP,1,GENERAL EXPENDITURES,PERSONNEL COMPENSATION,DETAIL,   ,   ,   ,LINK CRAIG C,2020-12-01,2021-01-02,FLOOR DIRECTOR AND GENERAL COU,1358.33,2021
,2020 OFFICE OF THE MAJORITY WHIP,1,GENERAL EXPENDITURES,PERSONNEL COMPENSATION,DETAIL,   ,   ,   ,LOEWE ERICA P,2020-12-01,2021-01-02,DEPUTY COMMUNICATIONS DIRECTOR,4583.33,2021
,2020 OFFICE OF THE MAJORITY WHIP,1,GENERAL EXPENDITURES,PERSONNEL COMPENSATION,DETAIL,   ,   ,   ,MASON TAMIKA K,2020-12-01,2021-01-02,DIRECTOR OF TECHNOLOGY FOR FLO,4527.78,2021
,2020 OFFICE OF THE MAJORITY WHIP,1,GENERAL EXPENDITURES,PERSONNEL COMPENSATION,DETAIL,   ,   ,   ,MICHALAK TIMOTHY J,2020-12-01,2021-01-02,LEGISLATIVE ASSISTANT,4277.78,2021
,2020 OFFICE OF THE MAJORITY WHIP,1,GENERAL EXPENDITURES,PERSONNEL COMPENSATION,DETAIL,   ,   ,   ,MONEIB AHMED,2020-12-01,2021-01-02,STAFF ASSISTANT,4211.11,2021
,2020 OFFICE OF THE MAJORITY WHIP,1,GENERAL EXPENDITURES,PERSONNEL COMPENSATION,DETAIL,   ,   ,   ,SAUNDERS NIA G.,2020-12-01,2021-01-02,PRESS ASSISTANT,4194.44,2021
,2020 OFFICE OF THE MAJORITY WHIP,1,GENERAL EXPENDITURES,PERSONNEL COMPENSATION,DETAIL,   ,   ,   ,UBEZONU NNEMDILIM I,2020-12-01,2021-01-02,DEPUTY FLOOR LEADER,4416.67,2021
,2020 OFFICE OF THE MAJORITY WHIP,1,GENERAL EXPENDITURES,PERSONNEL COMPENSATION,DETAIL,   ,   ,   ,WATKINS YELBERTON R.,2021-01-01,2021-01-02,CHIEF OF STAFF,933.33,2021
,2020 OFFICE OF THE MAJORITY WHIP,1,GENERAL EXPENDITURES,PERSONNEL COMPENSATION,DETAIL,   ,   ,   ,WHITEHOUSE LIN,2020-12-01,2021-01-02,MEMBER SERVICES ASSISTANT,4344.44,2021
,2020 OFFICE OF THE MAJORITY WHIP,1,GENERAL EXPENDITURES,PERSONNEL COMPENSATION,DETAIL,   ,   ,   ,WILSON ASHLEIGH R,2020-12-01,2021-01-02,LEGISLATIVE DIRECTOR,4138.89,2021
,2020 OFFICE OF THE MAJORITY WHIP,1,GENERAL EXPENDITURES,PERSONNEL COMPENSATION,DETAIL,   ,   ,   ,WMARIAM WINTTA M,2020-12-01,2021-01-02,POLICY DIRECTOR,1386.11,2021
,2020 OFFICE OF THE MAJORITY WHIP,1,GENERAL EXPENDITURES,PERSONNEL COMPENSATION,SUBTOTAL,   ,   ,   ,   ,   ,   ,PERSONNEL COMPENSATION TOTALS:,62074.65,2021
,2020 OFFICE OF THE MAJORITY WHIP,1,GENERAL EXPENDITURES,RENT  COMMUNICATION  UTILITIES,DETAIL,2021-01-26,GL,EMS0103803, ,2020-12-01,2020-12-31,DC TELECOM EQUIP (TRANSFER),76,2021
,2020 OFFICE OF THE MAJORITY WHIP,1,GENERAL EXPENDITURES,RENT  COMMUNICATION  UTILITIES,DETAIL,2021-01-26,GL,EMS0103803, ,2020-12-01,2020-12-31,DC TELECOM SERV (TRANSFER),293.5,2021
,2020 OFFICE OF THE MAJORITY WHIP,1,GENERAL EXPENDITURES,RENT  COMMUNICATION  UTILITIES,DETAIL,2021-01-26,GL,EMS0103803, ,2020-12-01,2020-12-31,DC TELECOM TOLLS (TRANSFER),984.44,2021
,2020 OFFICE OF THE MAJORITY WHIP,1,GENERAL EXPENDITURES,RENT  COMMUNICATION  UTILITIES,SUBTOTAL,   ,   ,   ,   ,   ,   ,RENT  COMMUNICATION  UTILITIES TOTALS:,1353.94,2021
,2020 OFFICE OF THE MAJORITY WHIP,1,GENERAL EXPENDITURES,PRINTING AND REPRODUCTION,DETAIL,2021-01-14,AP,1367688,ACCURATE WORD LLC,2020-12-16,2020-12-16,PRINTING & REPRODUCTION,631,2021
,2020 OFFICE OF THE MAJORITY WHIP,1,GENERAL EXPENDITURES,PRINTING AND REPRODUCTION,DETAIL,2021-01-27,AP,1378850,CONSTANT MESSENGER INC,2020-12-30,2020-12-30,PRINTING & REPRODUCTION,409.36,2021
,2020 OFFICE OF THE MAJORITY WHIP,1,GENERAL EXPENDITURES,PRINTING AND REPRODUCTION,DETAIL,2021-01-28,AP,1378851,CONSTANT MESSENGER INC,2020-12-30,2020-12-30,PRINTING & REPRODUCTION,726.8,2021
,2020 OFFICE OF THE MAJORITY WHIP,1,GENERAL EXPENDITURES,PRINTING AND REPRODUCTION,SUBTOTAL,   ,   ,   ,   ,   ,   ,PRINTING AND REPRODUCTION TOTALS:,1767.16,2021
,2020 OFFICE OF THE MAJORITY WHIP,1,GENERAL EXPENDITURES,SUPPLIES AND MATERIALS,DETAIL,2021-01-19,AP,1373001,TVEYES INC,2021-01-01,2022-12-31,PUBLICATIONS/REFERENCE MAT'L,2400,2021
,2020 OFFICE OF THE MAJORITY WHIP,1,GENERAL EXPENDITURES,SUPPLIES AND MATERIALS,DETAIL,2021-01-19,AP,1373031,CITI PCARD-AMAZON.COM QC0H27M83 AMZN,2020-11-30,2020-11-30,OFFICE SUPPLIES (OUTSIDE),7,2021
,2020 OFFICE OF THE MAJORITY WHIP,1,GENERAL EXPENDITURES,SUPPLIES AND MATERIALS,DETAIL,2021-01-19,AP,1373031,CITI PCARD-COSTCO BY INSTACART,2020-12-16,2020-12-16,FOOD & BEVERAGE,152.21,2021
,2020 OFFICE OF THE MAJORITY WHIP,1,GENERAL EXPENDITURES,SUPPLIES AND MATERIALS,DETAIL,2021-01-19,AP,1373031,CITI PCARD-ENVATO,2020-11-12,2021-11-12,SOFTWARE  LESS THAN  $500,348,2021
,2020 OFFICE OF THE MAJORITY WHIP,1,GENERAL EXPENDITURES,SUPPLIES AND MATERIALS,DETAIL,2021-01-19,AP,1373031,CITI PCARD-INSTACART,2020-12-01,2020-12-01,FOOD & BEVERAGE,278.5,2021
,2020 OFFICE OF THE MAJORITY WHIP,1,GENERAL EXPENDITURES,SUPPLIES AND MATERIALS,DETAIL,2021-01-19,AP,1373031,CITI PCARD-INSTACART,2020-12-08,2020-12-08,FOOD & BEVERAGE,154.72,2021
,2020 OFFICE OF THE MAJORITY WHIP,1,GENERAL EXPENDITURES,SUPPLIES AND MATERIALS,DETAIL,2021-01-19,AP,1373031,CITI PCARD-MEI WAH RESTAURANT,2020-12-20,2020-12-20,FOOD & BEVERAGE,2950,2021
,2020 OFFICE OF THE MAJORITY WHIP,1,GENERAL EXPENDITURES,SUPPLIES AND MATERIALS,DETAIL,2021-01-19,AP,1373031,CITI PCARD-NYTimes NYTimes,2020-12-02,2020-12-30,PUBLICATIONS/REFERENCE MAT'L,31.8,2021
,2020 OFFICE OF THE MAJORITY WHIP,1,GENERAL EXPENDITURES,SUPPLIES AND MATERIALS,DETAIL,2021-01-19,AP,1373031,CITI PCARD-NYTimes NYTimes disc,2020-12-02,2020-12-30,PUBLICATIONS/REFERENCE MAT'L,8.48,2021
,2020 OFFICE OF THE MAJORITY WHIP,1,GENERAL EXPENDITURES,SUPPLIES AND MATERIALS,DETAIL,2021-03-02,AP,1391620,CITI PCARD-DROPBOX RHY4XYN697GR,2020-05-08,2021-05-08,PUBLICATIONS/REFERENCE MAT'L,199,2021
,2020 OFFICE OF THE MAJORITY WHIP,1,GENERAL EXPENDITURES,SUPPLIES AND MATERIALS,DETAIL,2021-03-03,AP,1390654,CITI PCARD-NYTimes NYTimes,2020-12-30,2021-01-27,PUBLICATIONS/REFERENCE MAT'L,31.8,2021
,2020 OFFICE OF THE MAJORITY WHIP,1,GENERAL EXPENDITURES,SUPPLIES AND MATERIALS,DETAIL,2021-03-03,AP,1390654,CITI PCARD-NYTimes NYTimes disc,2020-12-30,2021-01-27,PUBLICATIONS/REFERENCE MAT'L,8.48,2021
,2020 OFFICE OF THE MAJORITY WHIP,1,GENERAL EXPENDITURES,SUPPLIES AND MATERIALS,SUBTOTAL,   ,   ,   ,   ,   ,   ,SUPPLIES AND MATERIALS TOTALS:,6569.99,2021
,2020 OFFICE OF THE MAJORITY WHIP,1,GENERAL EXPENDITURES,EQUIPMENT,DETAIL,2021-02-22,AP,1390045,XEROX CORPORATION,2020-10-23,2021-02-13,OFFICE EQUIP PURCH LESS THAN $25 000,5070,2021
,2020 OFFICE OF THE MAJORITY WHIP,1,GENERAL EXPENDITURES,EQUIPMENT,SUBTOTAL,   ,   ,   ,   ,   ,   ,EQUIPMENT TOTALS:,5070,2021
,2020 OFFICE OF THE MAJORITY WHIP,1,GENERAL EXPENDITURES,EQUIPMENT,SUBTOTAL,   ,   ,   ,   ,   ,   ,GENERAL EXPENDITURES TOTALS:,76835.74,2021
,2020 OFFICE OF THE MAJORITY WHIP,1,GENERAL EXPENDITURES,EQUIPMENT,GRAND TOTAL FOR ORGANIZATION,   ,   ,   ,   ,   ,   ,OFFICE TOTALS: ,76835.74,2021
,2019 OFFICE OF THE MAJORITY WHIP,1,GENERAL EXPENDITURES,EQUIPMENT,DETAIL,2021-03-09,AP,1393094,CITI PCARD-AMZN Mktp US MW2QO51T2,2019-03-26,2019-03-26,OFFICE EQUIP PURCH LESS THAN $25 000,682.13,2021
,2019 OFFICE OF THE MAJORITY WHIP,1,GENERAL EXPENDITURES,EQUIPMENT,SUBTOTAL,   ,   ,   ,   ,   ,   ,EQUIPMENT TOTALS:,682.13,2021
,2019 OFFICE OF THE MAJORITY WHIP,1,GENERAL EXPENDITURES,EQUIPMENT,SUBTOTAL,   ,   ,   ,   ,   ,   ,GENERAL EXPENDITURES TOTALS:,682.13,2021
,2019 OFFICE OF THE MAJORITY WHIP,1,GENERAL EXPENDITURES,EQUIPMENT,GRAND TOTAL FOR ORGANIZATION,   ,   ,   ,   ,   ,   ,OFFICE TOTALS: ,682.13,2021
,2021 OFFICE OF THE MINORITY WHIP,1,GENERAL EXPENDITURES,PERSONNEL COMPENSATION,DETAIL,   ,   ,   ,ACORNLEY MARK A.,2021-01-03,2021-03-31,FINANCIAL ADMINISTRATOR,4500.01,2021
,2021 OFFICE OF THE MINORITY WHIP,1,GENERAL EXPENDITURES,PERSONNEL COMPENSATION,DETAIL,   ,   ,   ,BATTAGLIA JACQUELINE P,2021-01-03,2021-03-31,SCHEDULE COORDINATOR,7958.33,2021
,2021 OFFICE OF THE MINORITY WHIP,1,GENERAL EXPENDITURES,PERSONNEL COMPENSATION,DETAIL,   ,   ,   ,CLARKE JOHN L,2021-01-03,2021-03-14,SPECIAL ASSISTANT,10000,2021
,2021 OFFICE OF THE MINORITY WHIP,1,GENERAL EXPENDITURES,PERSONNEL COMPENSATION,DETAIL,   ,   ,   ,COMER II MICHAEL D,2021-01-03,2021-03-31,DIGITAL DIRECTOR,25666.67,2021
,2021 OFFICE OF THE MINORITY WHIP,1,GENERAL EXPENDITURES,PERSONNEL COMPENSATION,DETAIL,   ,   ,   ,FINE LAUREN R,2021-01-03,2021-03-31,COMMUNICATIONS DIRECTOR,19636.67,2021
,2021 OFFICE OF THE MINORITY WHIP,1,GENERAL EXPENDITURES,PERSONNEL COMPENSATION,DETAIL,   ,   ,   ,GOSNELL ELLEN C,2021-01-03,2021-03-31,DIRECTOR OF OPERATIONS,29333.33,2021
,2021 OFFICE OF THE MINORITY WHIP,1,GENERAL EXPENDITURES,PERSONNEL COMPENSATION,DETAIL,   ,   ,   ,HORTON BRETT H.,2021-01-03,2021-03-31,CHIEF OF STAFF,42215.56,2021
,2021 OFFICE OF THE MINORITY WHIP,1,GENERAL EXPENDITURES,PERSONNEL COMPENSATION,DETAIL,   ,   ,   ,HUGHES WILLIAM J,2021-01-11,2021-01-30,POLICY DIRECTOR,2162.5,2021
,2021 OFFICE OF THE MINORITY WHIP,1,GENERAL EXPENDITURES,PERSONNEL COMPENSATION,DETAIL,   ,   ,   ,KNECHT REILLY K,2021-01-03,2021-02-21,DIGITAL ASSISTANT,5444.44,2021
,2021 OFFICE OF THE MINORITY WHIP,1,GENERAL EXPENDITURES,PERSONNEL COMPENSATION,DETAIL,   ,   ,   ,KRIEGER ROBYN W,2021-01-03,2021-03-31,STAFF ASSISTANT,9777.77,2021
,2021 OFFICE OF THE MINORITY WHIP,1,GENERAL EXPENDITURES,PERSONNEL COMPENSATION,DETAIL,   ,   ,   ,MCBRIDE ERIN E,2021-01-03,2021-03-21,DEPUTY PRESS SECRETARY,4388.9,2021
,2021 OFFICE OF THE MINORITY WHIP,1,GENERAL EXPENDITURES,PERSONNEL COMPENSATION,DETAIL,   ,   ,   ,MINKLER ANN W,2021-01-03,2021-03-31,DEPUTY FLOOR DIRECTOR,26888.9,2021
,2021 OFFICE OF THE MINORITY WHIP,1,GENERAL EXPENDITURES,PERSONNEL COMPENSATION,DETAIL,   ,   ,   ,MLINAR ALYENE S,2021-01-21,2021-03-31,POLICY ADVISOR,18865.28,2021
,2021 OFFICE OF THE MINORITY WHIP,1,GENERAL EXPENDITURES,PERSONNEL COMPENSATION,DETAIL,   ,   ,   ,NAFT JEFFREY C,2021-03-08,2021-03-31,COMMUNICATIONS ADVISOR,5430.56,2021
,2021 OFFICE OF THE MINORITY WHIP,1,GENERAL EXPENDITURES,PERSONNEL COMPENSATION,DETAIL,   ,   ,   ,NALLS DENNIS A,2021-01-03,2021-03-31,FLOOR ASSISTANT,19805.56,2021
,2021 OFFICE OF THE MINORITY WHIP,1,GENERAL EXPENDITURES,PERSONNEL COMPENSATION,DETAIL,   ,   ,   ,NAPIER BENJAMIN W,2021-01-03,2021-03-31,FLOOR DIRECTOR,35444.44,2021
,2021 OFFICE OF THE MINORITY WHIP,1,GENERAL EXPENDITURES,PERSONNEL COMPENSATION,DETAIL,   ,   ,   ,REISER MARTIN G,2021-01-03,2021-03-31,LEGISLATIVE COUNSEL,20777.77,2021
,2021 OFFICE OF THE MINORITY WHIP,1,GENERAL EXPENDITURES,PERSONNEL COMPENSATION,DETAIL,   ,   ,   ,REISING JOHN B,2021-01-03,2021-03-31,MEMBER SERVICES DIRECTOR,40347.23,2021
,2021 OFFICE OF THE MINORITY WHIP,1,GENERAL EXPENDITURES,PERSONNEL COMPENSATION,DETAIL,   ,   ,   ,ROBBINS KATHERINE W.,2021-02-22,2021-03-31,PRESS ASSISTANT,4333.33,2021
,2021 OFFICE OF THE MINORITY WHIP,1,GENERAL EXPENDITURES,PERSONNEL COMPENSATION,DETAIL,   ,   ,   ,SADLOSKY DANIEL J,2021-01-03,2021-03-31,POLICY ASSISTANT,23222.23,2021
,2021 OFFICE OF THE MINORITY WHIP,1,GENERAL EXPENDITURES,PERSONNEL COMPENSATION,DETAIL,   ,   ,   ,SATTERTHWAITE SEAN B,2021-01-03,2021-02-12,SPEECH WRITER,7222.23,2021
,2021 OFFICE OF THE MINORITY WHIP,1,GENERAL EXPENDITURES,PERSONNEL COMPENSATION,DETAIL,   ,   ,   ,SCHMITZ ERIC T,2021-01-03,2021-03-31,COALITIONS COORDINATOR,22000,2021
,2021 OFFICE OF THE MINORITY WHIP,1,GENERAL EXPENDITURES,PERSONNEL COMPENSATION,DETAIL,   ,   ,   ,WALKER STEVEN C,2021-01-03,2021-03-07,STAFF ASSISTANT,18866.68,2021
,2021 OFFICE OF THE MINORITY WHIP,1,GENERAL EXPENDITURES,PERSONNEL COMPENSATION,DETAIL,   ,   ,   ,WIEAND JR JEFFREY L,2021-01-03,2021-03-31,COUNSEL,25666.67,2021
,2021 OFFICE OF THE MINORITY WHIP,1,GENERAL EXPENDITURES,PERSONNEL COMPENSATION,SUBTOTAL,   ,   ,   ,   ,   ,   ,PERSONNEL COMPENSATION TOTALS:,429955.06,2021
,2021 OFFICE OF THE MINORITY WHIP,1,GENERAL EXPENDITURES,RENT  COMMUNICATION  UTILITIES,DETAIL,2021-02-25,GL,EMS0104578, ,2021-01-01,2021-01-31,DC TELECOM EQUIP (TRANSFER),76,2021
,2021 OFFICE OF THE MINORITY WHIP,1,GENERAL EXPENDITURES,RENT  COMMUNICATION  UTILITIES,DETAIL,2021-02-25,GL,EMS0104578, ,2021-01-01,2021-01-31,DC TELECOM SERV (TRANSFER),224.75,2021
,2021 OFFICE OF THE MINORITY WHIP,1,GENERAL EXPENDITURES,RENT  COMMUNICATION  UTILITIES,DETAIL,2021-02-25,GL,EMS0104578, ,2021-01-01,2021-01-31,DC TELECOM TOLLS (TRANSFER),3536.69,2021
,2021 OFFICE OF THE MINORITY WHIP,1,GENERAL EXPENDITURES,RENT  COMMUNICATION  UTILITIES,DETAIL,2021-03-04,AP,1390915,CITI PCARD-GOOGLE YOUTUBE TV,2021-01-25,2021-02-24,UTILITIES,68.89,2021
,2021 OFFICE OF THE MINORITY WHIP,1,GENERAL EXPENDITURES,RENT  COMMUNICATION  UTILITIES,DETAIL,2021-03-25,AP,1396343,CITI PCARD-GOOGLE  YouTube TV,2021-02-25,2021-03-24,UTILITIES,68.89,2021
,2021 OFFICE OF THE MINORITY WHIP,1,GENERAL EXPENDITURES,RENT  COMMUNICATION  UTILITIES,DETAIL,2021-03-25,AP,1396343,CITI PCARD-HTTP://WWW.GOGOAIR.COM,2021-02-16,2021-02-16,UTILITIES,19,2021
,2021 OFFICE OF THE MINORITY WHIP,1,GENERAL EXPENDITURES,RENT  COMMUNICATION  UTILITIES,DETAIL,2021-03-30,GL,EMS0105388, ,2021-02-01,2021-02-28,DC TELECOM EQUIP (TRANSFER),76,2021
,2021 OFFICE OF THE MINORITY WHIP,1,GENERAL EXPENDITURES,RENT  COMMUNICATION  UTILITIES,DETAIL,2021-03-30,GL,EMS0105388, ,2021-02-01,2021-02-28,DC TELECOM SERV (TRANSFER),232.5,2021
,2021 OFFICE OF THE MINORITY WHIP,1,GENERAL EXPENDITURES,RENT  COMMUNICATION  UTILITIES,DETAIL,2021-03-30,GL,EMS0105388, ,2021-02-01,2021-02-28,DC TELECOM TOLLS (TRANSFER),3021.47,2021
,2021 OFFICE OF THE MINORITY WHIP,1,GENERAL EXPENDITURES,RENT  COMMUNICATION  UTILITIES,SUBTOTAL,   ,   ,   ,   ,   ,   ,RENT  COMMUNICATION  UTILITIES TOTALS:,7324.19,2021
,2021 OFFICE OF THE MINORITY WHIP,1,GENERAL EXPENDITURES,PRINTING AND REPRODUCTION,DETAIL,2021-02-24,GL,MED0104537, ,2021-02-01,2021-02-05,PHOTOGRAPHIC (TRANSFER),17.8,2021
,2021 OFFICE OF THE MINORITY WHIP,1,GENERAL EXPENDITURES,PRINTING AND REPRODUCTION,DETAIL,2021-03-29,GL,MED0105330, ,2021-02-25,2021-02-25,PHOTOGRAPHIC (TRANSFER),7.6,2021
,2021 OFFICE OF THE MINORITY WHIP,1,GENERAL EXPENDITURES,PRINTING AND REPRODUCTION,SUBTOTAL,   ,   ,   ,   ,   ,   ,PRINTING AND REPRODUCTION TOTALS:,25.4,2021
,2021 OFFICE OF THE MINORITY WHIP,1,GENERAL EXPENDITURES,OTHER SERVICES,DETAIL,2021-01-26,AP,1372108,ENGAGE LLC,2021-01-01,2021-12-31,WEB DEV HST EMAIL & RLTD SERV,6000,2021
,2021 OFFICE OF THE MINORITY WHIP,1,GENERAL EXPENDITURES,OTHER SERVICES,DETAIL,2021-01-27,AP,1378294,HOUSECALL LLC,2021-01-01,2021-01-31,TECHNOLOGY SERVICE CONTRACTS,5125,2021
,2021 OFFICE OF THE MINORITY WHIP,1,GENERAL EXPENDITURES,OTHER SERVICES,DETAIL,2021-02-16,AP,1386471,HOUSECALL LLC,2021-02-01,2021-02-28,TECHNOLOGY SERVICE CONTRACTS,5125,2021
,2021 OFFICE OF THE MINORITY WHIP,1,GENERAL EXPENDITURES,OTHER SERVICES,DETAIL,2021-02-19,AP,1381236,GULF PARTYLINE CORPORATION,2021-01-01,2021-01-31,TECHNOLOGY SERVICE CONTRACTS,3000,2021
,2021 OFFICE OF THE MINORITY WHIP,1,GENERAL EXPENDITURES,OTHER SERVICES,DETAIL,2021-03-16,AP,1397731,HOUSECALL LLC,2021-03-01,2021-03-31,TECHNOLOGY SERVICE CONTRACTS,5125,2021
,2021 OFFICE OF THE MINORITY WHIP,1,GENERAL EXPENDITURES,OTHER SERVICES,DETAIL,2021-03-22,AP,1392873,GULF PARTYLINE CORPORATION,2021-02-01,2021-02-28,TECHNOLOGY SERVICE CONTRACTS,3000,2021
,2021 OFFICE OF THE MINORITY WHIP,1,GENERAL EXPENDITURES,OTHER SERVICES,DETAIL,2021-03-25,AP,1396343,CITI PCARD-MAILCHIMP    MONTHLY,2021-02-07,2021-03-06,WEB DEV HST EMAIL & RLTD SERV,304.21,2021
,2021 OFFICE OF THE MINORITY WHIP,1,GENERAL EXPENDITURES,OTHER SERVICES,SUBTOTAL,   ,   ,   ,   ,   ,   ,OTHER SERVICES TOTALS:,27679.21,2021
,2021 OFFICE OF THE MINORITY WHIP,1,GENERAL EXPENDITURES,SUPPLIES AND MATERIALS,DETAIL,2021-01-31,GL,RMS0104032, ,2021-01-01,2021-01-31,OFFICE SUPPLY (TRANSFER),2,2021
,2021 OFFICE OF THE MINORITY WHIP,1,GENERAL EXPENDITURES,SUPPLIES AND MATERIALS,DETAIL,2021-02-16,AP,1382152,QUENCH USA LLC,2021-02-01,2021-02-28,WATER,44.52,2021
,2021 OFFICE OF THE MINORITY WHIP,1,GENERAL EXPENDITURES,SUPPLIES AND MATERIALS,DETAIL,2021-02-16,AP,1382160,CRITICAL MENTION,2021-01-03,2021-07-02,PUBLICATIONS/REFERENCE MAT'L,1500,2021
,2021 OFFICE OF THE MINORITY WHIP,1,GENERAL EXPENDITURES,SUPPLIES AND MATERIALS,DETAIL,2021-02-16,AP,1382171,IMPACTOFFICE,2021-01-05,2021-01-05,FOOD & BEVERAGE,35.24,2021
,2021 OFFICE OF THE MINORITY WHIP,1,GENERAL EXPENDITURES,SUPPLIES AND MATERIALS,DETAIL,2021-02-16,AP,1382231,QUENCH USA LLC,2021-01-01,2021-01-31,WATER,44.52,2021
,2021 OFFICE OF THE MINORITY WHIP,1,GENERAL EXPENDITURES,SUPPLIES AND MATERIALS,DETAIL,2021-02-25,AP,1390953,QUENCH USA LLC,2021-03-01,2021-03-31,WATER,44.52,2021
,2021 OFFICE OF THE MINORITY WHIP,1,GENERAL EXPENDITURES,SUPPLIES AND MATERIALS,DETAIL,2021-02-28,GL,RMS0104712, ,2021-02-01,2021-02-28,OFFICE SUPPLY (TRANSFER),146.43,2021
,2021 OFFICE OF THE MINORITY WHIP,1,GENERAL EXPENDITURES,SUPPLIES AND MATERIALS,DETAIL,2021-03-04,AP,1390915,CITI PCARD-AMAZON.COM M99RG6AG3 AMZN,2021-01-12,2021-01-12,OFFICE SUPPLIES (OUTSIDE),224.95,2021
,2021 OFFICE OF THE MINORITY WHIP,1,GENERAL EXPENDITURES,SUPPLIES AND MATERIALS,DETAIL,2021-03-04,AP,1390915,CITI PCARD-APPLE.COM/BILL,2020-12-29,2021-01-28,SOFTWARE  LESS THAN  $500,3.17,2021
,2021 OFFICE OF THE MINORITY WHIP,1,GENERAL EXPENDITURES,SUPPLIES AND MATERIALS,DETAIL,2021-03-04,AP,1390915,CITI PCARD-APPLE.COM/BILL,2020-12-30,2021-01-29,SOFTWARE  LESS THAN  $500,3.17,2021
,2021 OFFICE OF THE MINORITY WHIP,1,GENERAL EXPENDITURES,SUPPLIES AND MATERIALS,DETAIL,2021-03-04,AP,1390915,CITI PCARD-APPLE.COM/BILL,2021-01-23,2021-02-22,SOFTWARE  LESS THAN  $500,3.17,2021
,2021 OFFICE OF THE MINORITY WHIP,1,GENERAL EXPENDITURES,SUPPLIES AND MATERIALS,DETAIL,2021-03-04,AP,1390915,CITI PCARD-Amazon.com 5F7J128W3,2021-01-12,2021-01-12,OFFICE SUPPLIES (OUTSIDE),18.99,2021
,2021 OFFICE OF THE MINORITY WHIP,1,GENERAL EXPENDITURES,SUPPLIES AND MATERIALS,DETAIL,2021-03-04,AP,1390915,CITI PCARD-Amazon.com GJ05X55M3,2021-01-12,2021-01-12,OFFICE SUPPLIES (OUTSIDE),38,2021
,2021 OFFICE OF THE MINORITY WHIP,1,GENERAL EXPENDITURES,SUPPLIES AND MATERIALS,DETAIL,2021-03-04,AP,1390915,CITI PCARD-Amazon.com L163C8PE3,2021-01-12,2021-01-12,OFFICE SUPPLIES (OUTSIDE),38,2021
,2021 OFFICE OF THE MINORITY WHIP,1,GENERAL EXPENDITURES,SUPPLIES AND MATERIALS,DETAIL,2021-03-04,AP,1390915,CITI PCARD-D J WALL-ST-JOURNAL,2021-01-20,2022-01-19,PUBLICATIONS/REFERENCE MAT'L,123.99,2021
,2021 OFFICE OF THE MINORITY WHIP,1,GENERAL EXPENDITURES,SUPPLIES AND MATERIALS,DETAIL,2021-03-04,AP,1390915,CITI PCARD-GOOGLE GOOGLE STORAGE,2021-01-13,2021-02-12,SOFTWARE  LESS THAN  $500,10.59,2021
,2021 OFFICE OF THE MINORITY WHIP,1,GENERAL EXPENDITURES,SUPPLIES AND MATERIALS,DETAIL,2021-03-04,AP,1390915,CITI PCARD-LEGISTORM LLC,2021-01-13,2021-02-12,PUBLICATIONS/REFERENCE MAT'L,11.61,2021
,2021 OFFICE OF THE MINORITY WHIP,1,GENERAL EXPENDITURES,SUPPLIES AND MATERIALS,DETAIL,2021-03-04,AP,1390915,CITI PCARD-MAILCHIMP    MONTHLY,2021-01-07,2021-02-06,SOFTWARE  LESS THAN  $500,304.21,2021
,2021 OFFICE OF THE MINORITY WHIP,1,GENERAL EXPENDITURES,SUPPLIES AND MATERIALS,DETAIL,2021-03-04,AP,1390915,CITI PCARD-SUB WASHPOST 015043157,2021-01-07,2021-02-06,PUBLICATIONS/REFERENCE MAT'L,10.6,2021
,2021 OFFICE OF THE MINORITY WHIP,1,GENERAL EXPENDITURES,SUPPLIES AND MATERIALS,DETAIL,2021-03-17,AP,1400517,CDW GOVERNMENT LLC,2021-03-05,2021-03-05,OFFICE SUPPLIES (OUTSIDE) QTY - 5,1117.1,2021
,2021 OFFICE OF THE MINORITY WHIP,1,GENERAL EXPENDITURES,SUPPLIES AND MATERIALS,DETAIL,2021-03-25,AP,1396343,CITI PCARD-AMZN MKTP US OW4H990B3 AM,2021-02-25,2021-02-25,OFFICE SUPPLIES (OUTSIDE),47.98,2021
,2021 OFFICE OF THE MINORITY WHIP,1,GENERAL EXPENDITURES,SUPPLIES AND MATERIALS,DETAIL,2021-03-25,AP,1396343,CITI PCARD-AMZN MKTP US U36S80W93 AM,2021-02-04,2021-02-04,OFFICE SUPPLIES (OUTSIDE),35.98,2021
,2021 OFFICE OF THE MINORITY WHIP,1,GENERAL EXPENDITURES,SUPPLIES AND MATERIALS,DETAIL,2021-03-25,AP,1396343,CITI PCARD-APPLE.COM/BILL,2021-01-29,2021-02-28,SOFTWARE  LESS THAN  $500,3.17,2021
,2021 OFFICE OF THE MINORITY WHIP,1,GENERAL EXPENDITURES,SUPPLIES AND MATERIALS,DETAIL,2021-03-25,AP,1396343,CITI PCARD-APPLE.COM/BILL,2021-01-30,2021-02-28,SOFTWARE  LESS THAN  $500,3.17,2021
,2021 OFFICE OF THE MINORITY WHIP,1,GENERAL EXPENDITURES,SUPPLIES AND MATERIALS,DETAIL,2021-03-25,AP,1396343,CITI PCARD-APPLE.COM/BILL,2021-02-23,2021-03-22,SOFTWARE  LESS THAN  $500,3.17,2021
,2021 OFFICE OF THE MINORITY WHIP,1,GENERAL EXPENDITURES,SUPPLIES AND MATERIALS,DETAIL,2021-03-25,AP,1396343,CITI PCARD-APPLE.COM/US,2021-02-01,2021-02-01,OFFICE SUPPLIES (OUTSIDE),263.94,2021
,2021 OFFICE OF THE MINORITY WHIP,1,GENERAL EXPENDITURES,SUPPLIES AND MATERIALS,DETAIL,2021-03-25,AP,1396343,CITI PCARD-Amazon.com AH73F23M3,2021-02-02,2021-02-02,OFFICE SUPPLIES (OUTSIDE),56.97,2021
,2021 OFFICE OF THE MINORITY WHIP,1,GENERAL EXPENDITURES,SUPPLIES AND MATERIALS,DETAIL,2021-03-25,AP,1396343,CITI PCARD-Amazon.com VY0248MR3,2021-02-02,2021-02-02,OFFICE SUPPLIES (OUTSIDE),31.96,2021
,2021 OFFICE OF THE MINORITY WHIP,1,GENERAL EXPENDITURES,SUPPLIES AND MATERIALS,DETAIL,2021-03-25,AP,1396343,CITI PCARD-COLUMBIA BOOKS. INC.,2021-02-04,2021-02-04,PUBLICATIONS/REFERENCE MAT'L,161.28,2021
,2021 OFFICE OF THE MINORITY WHIP,1,GENERAL EXPENDITURES,SUPPLIES AND MATERIALS,DETAIL,2021-03-25,AP,1396343,CITI PCARD-GOOGLE GOOGLE STORAGE,2021-02-13,2021-03-12,SOFTWARE  LESS THAN  $500,10.59,2021
,2021 OFFICE OF THE MINORITY WHIP,1,GENERAL EXPENDITURES,SUPPLIES AND MATERIALS,DETAIL,2021-03-25,AP,1396343,CITI PCARD-LEGISTORM LLC,2021-02-13,2021-03-12,PUBLICATIONS/REFERENCE MAT'L,11.61,2021
,2021 OFFICE OF THE MINORITY WHIP,1,GENERAL EXPENDITURES,SUPPLIES AND MATERIALS,DETAIL,2021-03-25,AP,1396343,CITI PCARD-NYTimes NYTimes disc,2021-01-30,2021-02-28,PUBLICATIONS/REFERENCE MAT'L,8.48,2021
,2021 OFFICE OF THE MINORITY WHIP,1,GENERAL EXPENDITURES,SUPPLIES AND MATERIALS,DETAIL,2021-03-25,AP,1396343,CITI PCARD-NYTimes NYTimes disc,2021-02-02,2021-03-01,PUBLICATIONS/REFERENCE MAT'L,8.48,2021
,2021 OFFICE OF THE MINORITY WHIP,1,GENERAL EXPENDITURES,SUPPLIES AND MATERIALS,DETAIL,2021-03-25,AP,1396343,CITI PCARD-STK Shutterstock,2021-01-28,2021-02-27,PUBLICATIONS/REFERENCE MAT'L,169,2021
,2021 OFFICE OF THE MINORITY WHIP,1,GENERAL EXPENDITURES,SUPPLIES AND MATERIALS,DETAIL,2021-03-25,AP,1396343,CITI PCARD-STK Shutterstock,2021-01-29,2021-02-28,PUBLICATIONS/REFERENCE MAT'L,98,2021
,2021 OFFICE OF THE MINORITY WHIP,1,GENERAL EXPENDITURES,SUPPLIES AND MATERIALS,DETAIL,2021-03-25,AP,1396343,CITI PCARD-SUB WASHPOST 015043157,2021-02-04,2021-03-03,PUBLICATIONS/REFERENCE MAT'L,10.6,2021
,2021 OFFICE OF THE MINORITY WHIP,1,GENERAL EXPENDITURES,SUPPLIES AND MATERIALS,DETAIL,2021-03-25,AP,1396343,CITI PCARD-THE ECONOMIST,2021-02-01,2022-02-01,PUBLICATIONS/REFERENCE MAT'L,238.5,2021
,2021 OFFICE OF THE MINORITY WHIP,1,GENERAL EXPENDITURES,SUPPLIES AND MATERIALS,DETAIL,2021-03-31,GL,RMS0105505, ,2021-03-01,2021-03-31,OFFICE SUPPLY (TRANSFER),106.25,2021
,2021 OFFICE OF THE MINORITY WHIP,1,GENERAL EXPENDITURES,SUPPLIES AND MATERIALS,SUBTOTAL,   ,   ,   ,   ,   ,   ,SUPPLIES AND MATERIALS TOTALS:,4993.91,2021
,2021 OFFICE OF THE MINORITY WHIP,1,GENERAL EXPENDITURES,EQUIPMENT,DETAIL,2021-01-29,GL,MNT0103932, ,2021-01-01,2021-01-31,MAINTENANCE / REPAIRS,196,2021
,2021 OFFICE OF THE MINORITY WHIP,1,GENERAL EXPENDITURES,EQUIPMENT,DETAIL,2021-02-26,GL,MNT0104611, ,2021-02-01,2021-02-28,MAINTENANCE / REPAIRS,196,2021
,2021 OFFICE OF THE MINORITY WHIP,1,GENERAL EXPENDITURES,EQUIPMENT,DETAIL,2021-03-31,GL,MNT0105439, ,2021-03-01,2021-03-31,MAINTENANCE / REPAIRS,196,2021
,2021 OFFICE OF THE MINORITY WHIP,1,GENERAL EXPENDITURES,EQUIPMENT,SUBTOTAL,   ,   ,   ,   ,   ,   ,EQUIPMENT TOTALS:,588,2021
,2021 OFFICE OF THE MINORITY WHIP,1,GENERAL EXPENDITURES,EQUIPMENT,SUBTOTAL,   ,   ,   ,   ,   ,   ,GENERAL EXPENDITURES TOTALS:,470565.77,2021
,2021 OFFICE OF THE MINORITY WHIP,1,GENERAL EXPENDITURES,EQUIPMENT,GRAND TOTAL FOR ORGANIZATION,   ,   ,   ,   ,   ,   ,OFFICE TOTALS: ,470565.77,2021
,2020 OFFICE OF THE MINORITY WHIP,1,GENERAL EXPENDITURES,PERSONNEL COMPENSATION,DETAIL,   ,   ,   ,ACORNLEY MARK A.,2021-01-01,2021-01-02,FINANCIAL ADMINISTRATOR,83.33,2021
,2020 OFFICE OF THE MINORITY WHIP,1,GENERAL EXPENDITURES,PERSONNEL COMPENSATION,DETAIL,   ,   ,   ,BATTAGLIA JACQUELINE P,2021-01-01,2021-01-02,SCHEDULE COORDINATOR,166.67,2021
,2020 OFFICE OF THE MINORITY WHIP,1,GENERAL EXPENDITURES,PERSONNEL COMPENSATION,DETAIL,   ,   ,   ,CLARKE JOHN L,2021-01-01,2021-01-02,SPECIAL ASSISTANT,277.78,2021
,2020 OFFICE OF THE MINORITY WHIP,1,GENERAL EXPENDITURES,PERSONNEL COMPENSATION,DETAIL,   ,   ,   ,COMER II MICHAEL D,2021-01-01,2021-01-02,DIGITAL DIRECTOR,583.33,2021
,2020 OFFICE OF THE MINORITY WHIP,1,GENERAL EXPENDITURES,PERSONNEL COMPENSATION,DETAIL,   ,   ,   ,FINE LAUREN R,2021-01-01,2021-01-02,COMMUNICATIONS DIRECTOR,584.17,2021
,2020 OFFICE OF THE MINORITY WHIP,1,GENERAL EXPENDITURES,PERSONNEL COMPENSATION,DETAIL,   ,   ,   ,GOSNELL ELLEN C,2021-01-01,2021-01-02,DIRECTOR OF OPERATIONS,666.67,2021
,2020 OFFICE OF THE MINORITY WHIP,1,GENERAL EXPENDITURES,PERSONNEL COMPENSATION,DETAIL,   ,   ,   ,HORTON BRETT H.,2021-01-01,2021-01-02,CHIEF OF STAFF,959.44,2021
,2020 OFFICE OF THE MINORITY WHIP,1,GENERAL EXPENDITURES,PERSONNEL COMPENSATION,DETAIL,   ,   ,   ,HUGHES WILLIAM J,2021-01-01,2021-01-02,POLICY DIRECTOR,480.56,2021
,2020 OFFICE OF THE MINORITY WHIP,1,GENERAL EXPENDITURES,PERSONNEL COMPENSATION,DETAIL,   ,   ,   ,KNECHT REILLY K,2021-01-01,2021-01-02,DIGITAL ASSISTANT,222.22,2021
,2020 OFFICE OF THE MINORITY WHIP,1,GENERAL EXPENDITURES,PERSONNEL COMPENSATION,DETAIL,   ,   ,   ,KRIEGER ROBYN W,2021-01-01,2021-01-02,STAFF ASSISTANT,222.22,2021
,2020 OFFICE OF THE MINORITY WHIP,1,GENERAL EXPENDITURES,PERSONNEL COMPENSATION,DETAIL,   ,   ,   ,MCBRIDE ERIN E,2021-01-01,2021-01-02,DEPUTY PRESS SECRETARY,111.11,2021
,2020 OFFICE OF THE MINORITY WHIP,1,GENERAL EXPENDITURES,PERSONNEL COMPENSATION,DETAIL,   ,   ,   ,MINKLER ANN W,2021-01-01,2021-01-02,DEPUTY FLOOR DIRECTOR,611.11,2021
,2020 OFFICE OF THE MINORITY WHIP,1,GENERAL EXPENDITURES,PERSONNEL COMPENSATION,DETAIL,   ,   ,   ,MLINAR ALYENE S,2021-01-01,2021-01-02,POLICY ADVISOR,805.56,2021
,2020 OFFICE OF THE MINORITY WHIP,1,GENERAL EXPENDITURES,PERSONNEL COMPENSATION,DETAIL,   ,   ,   ,NALLS DENNIS A,2021-01-01,2021-01-02,FLOOR ASSISTANT,611.11,2021
,2020 OFFICE OF THE MINORITY WHIP,1,GENERAL EXPENDITURES,PERSONNEL COMPENSATION,DETAIL,   ,   ,   ,NAPIER BENJAMIN W,2021-01-01,2021-01-02,FLOOR DIRECTOR,805.56,2021
,2020 OFFICE OF THE MINORITY WHIP,1,GENERAL EXPENDITURES,PERSONNEL COMPENSATION,DETAIL,   ,   ,   ,REISER MARTIN G,2021-01-01,2021-01-02,LEGISLATIVE COUNSEL,472.22,2021
,2020 OFFICE OF THE MINORITY WHIP,1,GENERAL EXPENDITURES,PERSONNEL COMPENSATION,DETAIL,   ,   ,   ,REISING JOHN B,2021-01-01,2021-01-02,MEMBER SERVICES DIRECTOR,902.78,2021
,2020 OFFICE OF THE MINORITY WHIP,1,GENERAL EXPENDITURES,PERSONNEL COMPENSATION,DETAIL,   ,   ,   ,SADLOSKY DANIEL J,2021-01-01,2021-01-02,POLICY ASSISTANT,527.78,2021
,2020 OFFICE OF THE MINORITY WHIP,1,GENERAL EXPENDITURES,PERSONNEL COMPENSATION,DETAIL,   ,   ,   ,SATTERTHWAITE SEAN B,2021-01-01,2021-01-02,SPEECH WRITER,361.11,2021
,2020 OFFICE OF THE MINORITY WHIP,1,GENERAL EXPENDITURES,PERSONNEL COMPENSATION,DETAIL,   ,   ,   ,SCHMITZ ERIC T,2021-01-01,2021-01-02,COALITIONS COORDINATOR,500,2021
,2020 OFFICE OF THE MINORITY WHIP,1,GENERAL EXPENDITURES,PERSONNEL COMPENSATION,DETAIL,   ,   ,   ,WALKER STEVEN C,2021-01-01,2021-01-02,STAFF ASSISTANT,488.88,2021
,2020 OFFICE OF THE MINORITY WHIP,1,GENERAL EXPENDITURES,PERSONNEL COMPENSATION,DETAIL,   ,   ,   ,WIEAND JR JEFFREY L,2021-01-01,2021-01-02,COUNSEL,583.33,2021
,2020 OFFICE OF THE MINORITY WHIP,1,GENERAL EXPENDITURES,PERSONNEL COMPENSATION,SUBTOTAL,   ,   ,   ,   ,   ,   ,PERSONNEL COMPENSATION TOTALS:,11026.94,2021
,2020 OFFICE OF THE MINORITY WHIP,1,GENERAL EXPENDITURES,TRAVEL,DETAIL,2021-03-24,AP,1390755,CITIBANK GOV CARD SERVICE,2020-12-27,2020-12-27,COMMERCIAL TRANSPORTATION,434.1,2021
,2020 OFFICE OF THE MINORITY WHIP,1,GENERAL EXPENDITURES,TRAVEL,SUBTOTAL,   ,   ,   ,   ,   ,   ,TRAVEL TOTALS:,434.1,2021
,2020 OFFICE OF THE MINORITY WHIP,1,GENERAL EXPENDITURES,RENT  COMMUNICATION  UTILITIES,DETAIL,2021-01-26,GL,EMS0103803, ,2020-12-01,2020-12-31,DC TELECOM EQUIP (TRANSFER),76,2021
,2020 OFFICE OF THE MINORITY WHIP,1,GENERAL EXPENDITURES,RENT  COMMUNICATION  UTILITIES,DETAIL,2021-01-26,GL,EMS0103803, ,2020-12-01,2020-12-31,DC TELECOM SERV (TRANSFER),224.75,2021
,2020 OFFICE OF THE MINORITY WHIP,1,GENERAL EXPENDITURES,RENT  COMMUNICATION  UTILITIES,DETAIL,2021-01-26,GL,EMS0103803, ,2020-12-01,2020-12-31,DC TELECOM TOLLS (TRANSFER),5926.18,2021
,2020 OFFICE OF THE MINORITY WHIP,1,GENERAL EXPENDITURES,RENT  COMMUNICATION  UTILITIES,DETAIL,2021-02-25,AP,1390814,CITI PCARD-GOOGLE  YouTube TV,2020-11-25,2020-12-24,UTILITIES,68.89,2021
,2020 OFFICE OF THE MINORITY WHIP,1,GENERAL EXPENDITURES,RENT  COMMUNICATION  UTILITIES,DETAIL,2021-02-25,AP,1390814,CITI PCARD-THE UPS STORE 2092,2020-11-17,2020-11-17,POSTAGE / COURIER / BOX RENTAL,102.02,2021
,2020 OFFICE OF THE MINORITY WHIP,1,GENERAL EXPENDITURES,RENT  COMMUNICATION  UTILITIES,DETAIL,2021-03-03,AP,1390864,CITI PCARD-GOOGLE YOUTUBE TV,2020-12-25,2021-01-24,UTILITIES,68.89,2021
,2020 OFFICE OF THE MINORITY WHIP,1,GENERAL EXPENDITURES,RENT  COMMUNICATION  UTILITIES,SUBTOTAL,   ,   ,   ,   ,   ,   ,RENT  COMMUNICATION  UTILITIES TOTALS:,6466.73,2021
,2020 OFFICE OF THE MINORITY WHIP,1,GENERAL EXPENDITURES,OTHER SERVICES,DETAIL,2021-01-21,AP,1372078,GULF PARTYLINE CORPORATION,2020-12-01,2020-12-31,TECHNOLOGY SERVICE CONTRACTS,3000,2021
,2020 OFFICE OF THE MINORITY WHIP,1,GENERAL EXPENDITURES,OTHER SERVICES,DETAIL,2021-01-25,AP,1372190,ENGAGE LLC,2020-12-01,2020-12-31,WEB DEV HST EMAIL & RLTD SERV,500,2021
,2020 OFFICE OF THE MINORITY WHIP,1,GENERAL EXPENDITURES,OTHER SERVICES,DETAIL,2021-02-25,AP,1390814,CITI PCARD-MAILCHIMP    MONTHLY,2020-11-07,2020-12-06,WEB DEV HST EMAIL & RLTD SERV,304.21,2021
,2020 OFFICE OF THE MINORITY WHIP,1,GENERAL EXPENDITURES,OTHER SERVICES,SUBTOTAL,   ,   ,   ,   ,   ,   ,OTHER SERVICES TOTALS:,3804.21,2021
,2020 OFFICE OF THE MINORITY WHIP,1,GENERAL EXPENDITURES,SUPPLIES AND MATERIALS,DETAIL,2021-02-16,AP,1382278,HORTON BRETT H.,2020-10-03,2020-10-03,OFFICE SUPPLIES (OUTSIDE),385.44,2021
,2020 OFFICE OF THE MINORITY WHIP,1,GENERAL EXPENDITURES,SUPPLIES AND MATERIALS,DETAIL,2021-02-16,AP,1382278,HORTON BRETT H.,2020-10-20,2020-10-20,OFFICE SUPPLIES (OUTSIDE),76.6,2021
,2020 OFFICE OF THE MINORITY WHIP,1,GENERAL EXPENDITURES,SUPPLIES AND MATERIALS,DETAIL,2021-02-25,AP,1390814,CITI PCARD-AMZN MKTP US 283R33TI2 AM,2020-11-02,2020-11-02,OFFICE SUPPLIES (OUTSIDE),37.99,2021
,2020 OFFICE OF THE MINORITY WHIP,1,GENERAL EXPENDITURES,SUPPLIES AND MATERIALS,DETAIL,2021-02-25,AP,1390814,CITI PCARD-AMZN Mktp US 203OW2T52,2020-11-17,2020-11-17,OFFICE SUPPLIES (OUTSIDE),21.94,2021
,2020 OFFICE OF THE MINORITY WHIP,1,GENERAL EXPENDITURES,SUPPLIES AND MATERIALS,DETAIL,2021-02-25,AP,1390814,CITI PCARD-AMZN Mktp US IM99I0TG3,2020-04-29,2020-04-29,OFFICE SUPPLIES (OUTSIDE),177.78,2021
,2020 OFFICE OF THE MINORITY WHIP,1,GENERAL EXPENDITURES,SUPPLIES AND MATERIALS,DETAIL,2021-02-25,AP,1390814,CITI PCARD-APPLE.COM/BILL,2020-10-29,2020-11-28,SOFTWARE  LESS THAN  $500,6.34,2021
,2020 OFFICE OF THE MINORITY WHIP,1,GENERAL EXPENDITURES,SUPPLIES AND MATERIALS,DETAIL,2021-02-25,AP,1390814,CITI PCARD-APPLE.COM/BILL,2020-11-23,2020-12-22,SOFTWARE  LESS THAN  $500,3.17,2021
,2020 OFFICE OF THE MINORITY WHIP,1,GENERAL EXPENDITURES,SUPPLIES AND MATERIALS,DETAIL,2021-02-25,AP,1390814,CITI PCARD-BEST BUY      00002766,2020-11-17,2020-11-17,OFFICE SUPPLIES (OUTSIDE),44.99,2021
,2020 OFFICE OF THE MINORITY WHIP,1,GENERAL EXPENDITURES,SUPPLIES AND MATERIALS,DETAIL,2021-02-25,AP,1390814,CITI PCARD-GOOGLE GOOGLE STORAGE,2020-11-14,2020-12-13,SOFTWARE  LESS THAN  $500,10.59,2021
,2020 OFFICE OF THE MINORITY WHIP,1,GENERAL EXPENDITURES,SUPPLIES AND MATERIALS,DETAIL,2021-02-25,AP,1390814,CITI PCARD-LEGISTORM LLC,2020-11-12,2020-12-11,PUBLICATIONS/REFERENCE MAT'L,11.61,2021
,2020 OFFICE OF THE MINORITY WHIP,1,GENERAL EXPENDITURES,SUPPLIES AND MATERIALS,DETAIL,2021-02-25,AP,1390814,CITI PCARD-LUCIDCHART.COM/CHARGE,2020-11-16,2020-12-15,SOFTWARE  LESS THAN  $500,101.12,2021
,2020 OFFICE OF THE MINORITY WHIP,1,GENERAL EXPENDITURES,SUPPLIES AND MATERIALS,DETAIL,2021-02-25,AP,1390814,CITI PCARD-STK Shutterstock,2020-10-29,2020-11-28,SOFTWARE  LESS THAN  $500,49,2021
,2020 OFFICE OF THE MINORITY WHIP,1,GENERAL EXPENDITURES,SUPPLIES AND MATERIALS,DETAIL,2021-02-25,AP,1390814,CITI PCARD-STK Shutterstock,2020-11-26,2020-12-25,SOFTWARE  LESS THAN  $500,49,2021
,2020 OFFICE OF THE MINORITY WHIP,1,GENERAL EXPENDITURES,SUPPLIES AND MATERIALS,DETAIL,2021-02-25,AP,1390814,CITI PCARD-SUB WASHPOST 015043157,2020-11-12,2020-12-11,PUBLICATIONS/REFERENCE MAT'L,10.6,2021
,2020 OFFICE OF THE MINORITY WHIP,1,GENERAL EXPENDITURES,SUPPLIES AND MATERIALS,DETAIL,2021-03-03,AP,1390864,CITI PCARD-AMAZON.COM ST5646NR3 AMZN,2020-12-06,2020-12-06,OFFICE SUPPLIES (OUTSIDE),44.99,2021
,2020 OFFICE OF THE MINORITY WHIP,1,GENERAL EXPENDITURES,SUPPLIES AND MATERIALS,DETAIL,2021-03-03,AP,1390864,CITI PCARD-AMAZON.COM WB6YY3H03 AMZN,2020-12-10,2020-12-10,OFFICE SUPPLIES (OUTSIDE),20.99,2021
,2020 OFFICE OF THE MINORITY WHIP,1,GENERAL EXPENDITURES,SUPPLIES AND MATERIALS,DETAIL,2021-03-03,AP,1390864,CITI PCARD-AMAZON.COM YT9PQ6LW3 AMZN,2020-12-16,2020-12-16,OFFICE SUPPLIES (OUTSIDE),76.94,2021
,2020 OFFICE OF THE MINORITY WHIP,1,GENERAL EXPENDITURES,SUPPLIES AND MATERIALS,DETAIL,2021-03-03,AP,1390864,CITI PCARD-AMZN Mktp US 5Y0P10TX3,2020-12-05,2020-12-05,OFFICE SUPPLIES (OUTSIDE),15.3,2021
,2020 OFFICE OF THE MINORITY WHIP,1,GENERAL EXPENDITURES,SUPPLIES AND MATERIALS,DETAIL,2021-03-03,AP,1390864,CITI PCARD-APPLE.COM/BILL,2020-11-29,2020-12-28,SOFTWARE  LESS THAN  $500,3.17,2021
,2020 OFFICE OF THE MINORITY WHIP,1,GENERAL EXPENDITURES,SUPPLIES AND MATERIALS,DETAIL,2021-03-03,AP,1390864,CITI PCARD-APPLE.COM/BILL,2020-12-01,2020-12-31,SOFTWARE  LESS THAN  $500,3.17,2021
,2020 OFFICE OF THE MINORITY WHIP,1,GENERAL EXPENDITURES,SUPPLIES AND MATERIALS,DETAIL,2021-03-03,AP,1390864,CITI PCARD-APPLE.COM/BILL,2020-12-23,2021-01-22,SOFTWARE  LESS THAN  $500,3.17,2021
,2020 OFFICE OF THE MINORITY WHIP,1,GENERAL EXPENDITURES,SUPPLIES AND MATERIALS,DETAIL,2021-03-03,AP,1390864,CITI PCARD-GOOGLE GOOGLE STORAGE,2020-12-14,2021-01-13,SOFTWARE  LESS THAN  $500,10.59,2021
,2020 OFFICE OF THE MINORITY WHIP,1,GENERAL EXPENDITURES,SUPPLIES AND MATERIALS,DETAIL,2021-03-03,AP,1390864,CITI PCARD-LEGISTORM LLC,2020-12-13,2021-01-12,PUBLICATIONS/REFERENCE MAT'L,11.61,2021
,2020 OFFICE OF THE MINORITY WHIP,1,GENERAL EXPENDITURES,SUPPLIES AND MATERIALS,DETAIL,2021-03-03,AP,1390864,CITI PCARD-NYTimes NYTimes disc,2020-12-07,2021-01-05,PUBLICATIONS/REFERENCE MAT'L,8.48,2021
,2020 OFFICE OF THE MINORITY WHIP,1,GENERAL EXPENDITURES,SUPPLIES AND MATERIALS,DETAIL,2021-03-03,AP,1390864,CITI PCARD-STK Shutterstock,2020-12-14,2021-01-13,PUBLICATIONS/REFERENCE MAT'L,49,2021
,2020 OFFICE OF THE MINORITY WHIP,1,GENERAL EXPENDITURES,SUPPLIES AND MATERIALS,DETAIL,2021-03-03,AP,1390864,CITI PCARD-SUB WASHPOST 015043157,2020-12-10,2021-01-09,PUBLICATIONS/REFERENCE MAT'L,10.6,2021
,2020 OFFICE OF THE MINORITY WHIP,1,GENERAL EXPENDITURES,SUPPLIES AND MATERIALS,DETAIL,2021-03-03,AP,1390864,CITI PCARD-TRIAL   TRIAL BUS INS,2020-12-07,2021-12-07,PUBLICATIONS/REFERENCE MAT'L,69,2021
,2020 OFFICE OF THE MINORITY WHIP,1,GENERAL EXPENDITURES,SUPPLIES AND MATERIALS,DETAIL,2021-03-04,AP,1390915,CITI PCARD-AMZN Mktp US E65Z28213,2020-12-31,2020-12-31,OFFICE SUPPLIES (OUTSIDE),56.97,2021
,2020 OFFICE OF THE MINORITY WHIP,1,GENERAL EXPENDITURES,SUPPLIES AND MATERIALS,DETAIL,2021-03-04,AP,1390915,CITI PCARD-STK Shutterstock,2020-12-28,2021-01-27,PUBLICATIONS/REFERENCE MAT'L,169,2021
,2020 OFFICE OF THE MINORITY WHIP,1,GENERAL EXPENDITURES,SUPPLIES AND MATERIALS,DETAIL,2021-03-22,AP,1370702,QUENCH USA LLC,2020-12-01,2020-12-31,WATER,44.52,2021
,2020 OFFICE OF THE MINORITY WHIP,1,GENERAL EXPENDITURES,SUPPLIES AND MATERIALS,DETAIL,2021-03-25,AP,1396343,CITI PCARD-NYTimes NYTimes disc,2021-01-02,2021-02-01,PUBLICATIONS/REFERENCE MAT'L,8.48,2021
,2020 OFFICE OF THE MINORITY WHIP,1,GENERAL EXPENDITURES,SUPPLIES AND MATERIALS,SUBTOTAL,   ,   ,   ,   ,   ,   ,SUPPLIES AND MATERIALS TOTALS:,1592.15,2021
,2020 OFFICE OF THE MINORITY WHIP,1,GENERAL EXPENDITURES,EQUIPMENT,DETAIL,2021-01-27,AP,1379992,B&H PHOTO-VIDEO,2020-12-10,2020-12-13,OFFICE EQUIP PURCH LESS THAN $25 000,1998,2021
,2020 OFFICE OF THE MINORITY WHIP,1,GENERAL EXPENDITURES,EQUIPMENT,DETAIL,2021-01-27,AP,1379992,B&H PHOTO-VIDEO,2020-12-10,2020-12-13,COMPUTER HARDW PURCH  LESS THAN $25 000,149.25,2021
,2020 OFFICE OF THE MINORITY WHIP,1,GENERAL EXPENDITURES,EQUIPMENT,DETAIL,2021-02-04,AP,1382089,CDW GOVERNMENT LLC,2021-01-07,2021-01-07,COMPUTER HARDW PURCH  LESS THAN $25 000,6746.27,2021
,2020 OFFICE OF THE MINORITY WHIP,1,GENERAL EXPENDITURES,EQUIPMENT,DETAIL,2021-02-04,AP,1382089,CDW GOVERNMENT LLC,2021-01-07,2021-01-07,WARRANTIES QTY - 2,664.06,2021
,2020 OFFICE OF THE MINORITY WHIP,1,GENERAL EXPENDITURES,EQUIPMENT,DETAIL,2021-02-26,AP,1391364,CDW GOVERNMENT LLC,2021-02-15,2021-02-15,COMPUTER HARDW PURCH  LESS THAN $25 000,5617.02,2021
,2020 OFFICE OF THE MINORITY WHIP,1,GENERAL EXPENDITURES,EQUIPMENT,DETAIL,2021-02-26,AP,1391364,CDW GOVERNMENT LLC,2021-02-15,2021-02-15,WARRANTIES,332.22,2021
,2020 OFFICE OF THE MINORITY WHIP,1,GENERAL EXPENDITURES,EQUIPMENT,SUBTOTAL,   ,   ,   ,   ,   ,   ,EQUIPMENT TOTALS:,15506.82,2021
,2020 OFFICE OF THE MINORITY WHIP,1,GENERAL EXPENDITURES,EQUIPMENT,SUBTOTAL,   ,   ,   ,   ,   ,   ,GENERAL EXPENDITURES TOTALS:,38830.95,2021
,2020 OFFICE OF THE MINORITY WHIP,1,GENERAL EXPENDITURES,EQUIPMENT,GRAND TOTAL FOR ORGANIZATION,   ,   ,   ,   ,   ,   ,OFFICE TOTALS: ,38830.95,2021
,2019 OFFICE OF THE MINORITY WHIP,1,GENERAL EXPENDITURES,RENT  COMMUNICATION  UTILITIES,DETAIL,2021-03-25,AP,1393041,REISING JOHN BART,2019-10-04,2019-10-04,UTILITIES,49.95,2021
,2019 OFFICE OF THE MINORITY WHIP,1,GENERAL EXPENDITURES,RENT  COMMUNICATION  UTILITIES,DETAIL,2021-03-25,AP,1393041,REISING JOHN BART,2019-11-04,2019-11-04,UTILITIES,49.95,2021
,2019 OFFICE OF THE MINORITY WHIP,1,GENERAL EXPENDITURES,RENT  COMMUNICATION  UTILITIES,DETAIL,2021-03-25,AP,1393041,REISING JOHN BART,2019-12-04,2019-12-04,UTILITIES,49.95,2021
,2019 OFFICE OF THE MINORITY WHIP,1,GENERAL EXPENDITURES,RENT  COMMUNICATION  UTILITIES,SUBTOTAL,   ,   ,   ,   ,   ,   ,RENT  COMMUNICATION  UTILITIES TOTALS:,149.85,2021
,2019 OFFICE OF THE MINORITY WHIP,1,GENERAL EXPENDITURES,RENT  COMMUNICATION  UTILITIES,SUBTOTAL,   ,   ,   ,   ,   ,   ,GENERAL EXPENDITURES TOTALS:,149.85,2021
,2019 OFFICE OF THE MINORITY WHIP,1,GENERAL EXPENDITURES,RENT  COMMUNICATION  UTILITIES,GRAND TOTAL FOR ORGANIZATION,   ,   ,   ,   ,   ,   ,OFFICE TOTALS: ,149.85,2021
,2021 OFFICE OF THE MINORITY WHIP,1,INTERN ALLOWANCES,PERSONNEL COMPENSATION,DETAIL,   ,   ,   ,METHE MYA M,2021-01-22,2021-01-30,MIN WHIP PAID INTERN - HOUSE P,366.67,2021
,2021 OFFICE OF THE MINORITY WHIP,1,INTERN ALLOWANCES,PERSONNEL COMPENSATION,SUBTOTAL,   ,   ,   ,   ,   ,   ,PERSONNEL COMPENSATION TOTALS:,366.67,2021
,2021 OFFICE OF THE MINORITY WHIP,1,INTERN ALLOWANCES,PERSONNEL COMPENSATION,SUBTOTAL,   ,   ,   ,   ,   ,   ,INTERN ALLOWANCES TOTALS:,366.67,2021
,2021 OFFICE OF THE MINORITY WHIP,1,INTERN ALLOWANCES,PERSONNEL COMPENSATION,GRAND TOTAL FOR ORGANIZATION,   ,   ,   ,   ,   ,   ,OFFICE TOTALS: ,366.67,2021
,2021 DEMOCRATIC CAUCUS,1,GENERAL EXPENDITURES,PERSONNEL COMPENSATION,DETAIL,   ,   ,   ,ARAYA MESERET M,2021-01-03,2021-01-30,POLICY ADVISOR,3888.89,2021
,2021 DEMOCRATIC CAUCUS,1,GENERAL EXPENDITURES,PERSONNEL COMPENSATION,DETAIL,   ,   ,   ,BRAGIN GIDEON,2021-01-03,2021-03-31,EXECUTIVE DIRECTOR,39111.1,2021
,2021 DEMOCRATIC CAUCUS,1,GENERAL EXPENDITURES,PERSONNEL COMPENSATION,DETAIL,   ,   ,   ,CARRILLO MANUEL J,2021-01-03,2021-03-31,DIRECTOR OF OPERATIONS,26888.9,2021
,2021 DEMOCRATIC CAUCUS,1,GENERAL EXPENDITURES,PERSONNEL COMPENSATION,DETAIL,   ,   ,   ,COOPER SAMARIAH A.,2021-01-03,2021-03-31,DIGITAL ASSISTANT,9777.77,2021
,2021 DEMOCRATIC CAUCUS,1,GENERAL EXPENDITURES,PERSONNEL COMPENSATION,DETAIL,   ,   ,   ,CORNELL REBECCA T,2021-02-01,2021-03-31,CHIEF OF STAFF TO THE VICE CHA,13333.34,2021
,2021 DEMOCRATIC CAUCUS,1,GENERAL EXPENDITURES,PERSONNEL COMPENSATION,DETAIL,   ,   ,   ,DAWSON EARNESTINE E,2021-01-03,2021-03-31,DIGITAL DIRECTOR & ADVISOR TO,24444.43,2021
,2021 DEMOCRATIC CAUCUS,1,GENERAL EXPENDITURES,PERSONNEL COMPENSATION,DETAIL,   ,   ,   ,DESOWITZ-LEIBELL ZACHARY J,2021-01-03,2021-03-31,DEPUTY PRESS SECRETARY,15888.9,2021
,2021 DEMOCRATIC CAUCUS,1,GENERAL EXPENDITURES,PERSONNEL COMPENSATION,DETAIL,   ,   ,   ,GIULINO DANIELLE M.,2021-03-01,2021-03-31,SHARED EMPLOYEE,1500,2021
,2021 DEMOCRATIC CAUCUS,1,GENERAL EXPENDITURES,PERSONNEL COMPENSATION,DETAIL,   ,   ,   ,HERNANDEZ ITZEL N,2021-01-03,2021-03-31,CAUCUS ASSISTANT,10611.11,2021
,2021 DEMOCRATIC CAUCUS,1,GENERAL EXPENDITURES,PERSONNEL COMPENSATION,DETAIL,   ,   ,   ,JACKSON TASIA,2021-01-03,2021-03-31,CHIEF OF STAFF,5011.1,2021
,2021 DEMOCRATIC CAUCUS,1,GENERAL EXPENDITURES,PERSONNEL COMPENSATION,DETAIL,   ,   ,   ,MENSIE ALYSSA D,2021-03-01,2021-03-31,MEMBER SERVICES AND OUTREACH A,5416.67,2021
,2021 DEMOCRATIC CAUCUS,1,GENERAL EXPENDITURES,PERSONNEL COMPENSATION,DETAIL,   ,   ,   ,MORRISON MARIAH A,2021-01-03,2021-03-31,DIGITAL ASSISTANT,12222.23,2021
,2021 DEMOCRATIC CAUCUS,1,GENERAL EXPENDITURES,PERSONNEL COMPENSATION,DETAIL,   ,   ,   ,MUNOZ LOPEZ LAURA,2021-03-22,2021-03-31,MEMBER SERVICES AND OUTREACH A,1700,2021
,2021 DEMOCRATIC CAUCUS,1,GENERAL EXPENDITURES,PERSONNEL COMPENSATION,DETAIL,   ,   ,   ,NARAYAN NANDINI K,2021-02-16,2021-03-31,VC MEMBER SERVICES & OUTREACH,8125,2021
,2021 DEMOCRATIC CAUCUS,1,GENERAL EXPENDITURES,PERSONNEL COMPENSATION,DETAIL,   ,   ,   ,NELSON JACOB A,2021-01-03,2021-03-31,POLICY ADVISOR,11444.44,2021
,2021 DEMOCRATIC CAUCUS,1,GENERAL EXPENDITURES,PERSONNEL COMPENSATION,DETAIL,   ,   ,   ,NORIEGA-MAY EMILY J,2021-01-03,2021-03-31,DEPUTY EXECUTIVE DIRECTOR,30555.56,2021
,2021 DEMOCRATIC CAUCUS,1,GENERAL EXPENDITURES,PERSONNEL COMPENSATION,DETAIL,   ,   ,   ,ROBINSON TEJAH R,2021-01-03,2021-03-31,DIGITAL ASSISTANT,8555.57,2021
,2021 DEMOCRATIC CAUCUS,1,GENERAL EXPENDITURES,PERSONNEL COMPENSATION,DETAIL,   ,   ,   ,SACHSE ANDREW M,2021-01-03,2021-03-31,DEP DIR OF MEMBER SERVICES,18883.33,2021
,2021 DEMOCRATIC CAUCUS,1,GENERAL EXPENDITURES,PERSONNEL COMPENSATION,DETAIL,   ,   ,   ,SCHEUER ALEXANDER J,2021-01-03,2021-03-31,OPERATIONS AND OUTREACH COORDI,12222.23,2021
,2021 DEMOCRATIC CAUCUS,1,GENERAL EXPENDITURES,PERSONNEL COMPENSATION,DETAIL,   ,   ,   ,SHELDON ELIZABETH C.,2021-03-10,2021-03-31,STAFF ASSISTANT,2333.33,2021
,2021 DEMOCRATIC CAUCUS,1,GENERAL EXPENDITURES,PERSONNEL COMPENSATION,DETAIL,   ,   ,   ,STEPHENSON CHRISTIANA E,2021-01-03,2021-03-31,COMMUNICATIONS DIRECTOR,28111.1,2021
,2021 DEMOCRATIC CAUCUS,1,GENERAL EXPENDITURES,PERSONNEL COMPENSATION,DETAIL,   ,   ,   ,STICKNEY LAKECIA N,2021-01-03,2021-03-31,POLICY AND OUTREACH DIRECTOR,29944.44,2021
,2021 DEMOCRATIC CAUCUS,1,GENERAL EXPENDITURES,PERSONNEL COMPENSATION,DETAIL,   ,   ,   ,WILLIAMS WAYNE K,2021-01-03,2021-03-31,SENIOR POLICY ADVISOR,23918.9,2021
,2021 DEMOCRATIC CAUCUS,1,GENERAL EXPENDITURES,PERSONNEL COMPENSATION,SUBTOTAL,   ,   ,   ,   ,   ,   ,PERSONNEL COMPENSATION TOTALS:,343888.34,2021
,2021 DEMOCRATIC CAUCUS,1,GENERAL EXPENDITURES,TRAVEL,DETAIL,2021-02-03,AP,1381605,MORRISON MARIAH A.,2021-01-14,2021-01-14,TAXI/PARKING/TOLLS,54.67,2021
,2021 DEMOCRATIC CAUCUS,1,GENERAL EXPENDITURES,TRAVEL,DETAIL,2021-03-25,AP,1401909,CITIBANK GOV CARD SERVICE,2021-01-04,2021-01-04,TAXI/PARKING/TOLLS,10.64,2021
,2021 DEMOCRATIC CAUCUS,1,GENERAL EXPENDITURES,TRAVEL,DETAIL,2021-03-25,AP,1401909,CITIBANK GOV CARD SERVICE,2021-01-05,2021-01-05,TAXI/PARKING/TOLLS,50.92,2021
,2021 DEMOCRATIC CAUCUS,1,GENERAL EXPENDITURES,TRAVEL,DETAIL,2021-03-25,AP,1401909,CITIBANK GOV CARD SERVICE,2021-01-30,2021-01-30,TAXI/PARKING/TOLLS,12.85,2021
,2021 DEMOCRATIC CAUCUS,1,GENERAL EXPENDITURES,TRAVEL,DETAIL,2021-03-25,AP,1401909,CITIBANK GOV CARD SERVICE,2021-02-01,2021-02-01,TAXI/PARKING/TOLLS,13.71,2021
,2021 DEMOCRATIC CAUCUS,1,GENERAL EXPENDITURES,TRAVEL,DETAIL,2021-03-25,AP,1401909,CITIBANK GOV CARD SERVICE,2021-02-03,2021-02-03,TAXI/PARKING/TOLLS,15.82,2021
,2021 DEMOCRATIC CAUCUS,1,GENERAL EXPENDITURES,TRAVEL,DETAIL,2021-03-25,AP,1401909,CITIBANK GOV CARD SERVICE,2021-02-04,2021-02-04,TAXI/PARKING/TOLLS,20.63,2021
,2021 DEMOCRATIC CAUCUS,1,GENERAL EXPENDITURES,TRAVEL,DETAIL,2021-03-25,AP,1401909,CITIBANK GOV CARD SERVICE,2021-02-17,2021-02-17,TAXI/PARKING/TOLLS,53.99,2021
,2021 DEMOCRATIC CAUCUS,1,GENERAL EXPENDITURES,TRAVEL,DETAIL,2021-03-25,AP,1401909,CITIBANK GOV CARD SERVICE,2021-02-19,2021-02-19,TAXI/PARKING/TOLLS,32.45,2021
,2021 DEMOCRATIC CAUCUS,1,GENERAL EXPENDITURES,TRAVEL,DETAIL,2021-03-25,AP,1401909,CITIBANK GOV CARD SERVICE,2021-02-23,2021-02-23,TAXI/PARKING/TOLLS,41.02,2021
,2021 DEMOCRATIC CAUCUS,1,GENERAL EXPENDITURES,TRAVEL,DETAIL,2021-03-26,AP,1402138,MORRISON MARIAH A.,2021-02-04,2021-03-09,TAXI/PARKING/TOLLS,212.27,2021
,2021 DEMOCRATIC CAUCUS,1,GENERAL EXPENDITURES,TRAVEL,SUBTOTAL,   ,   ,   ,   ,   ,   ,TRAVEL TOTALS:,518.97,2021
,2021 DEMOCRATIC CAUCUS,1,GENERAL EXPENDITURES,RENT  COMMUNICATION  UTILITIES,DETAIL,2021-02-03,AP,1381597,TRAN SOPHIA,2021-01-11,2021-01-11,POSTAGE / COURIER / BOX RENTAL,62.53,2021
,2021 DEMOCRATIC CAUCUS,1,GENERAL EXPENDITURES,RENT  COMMUNICATION  UTILITIES,DETAIL,2021-02-25,GL,EMS0104578, ,2021-01-01,2021-01-31,DC TELECOM EQUIP (TRANSFER),60,2021
,2021 DEMOCRATIC CAUCUS,1,GENERAL EXPENDITURES,RENT  COMMUNICATION  UTILITIES,DETAIL,2021-02-25,GL,EMS0104578, ,2021-01-01,2021-01-31,DC TELECOM SERV (TRANSFER),258,2021
,2021 DEMOCRATIC CAUCUS,1,GENERAL EXPENDITURES,RENT  COMMUNICATION  UTILITIES,DETAIL,2021-02-25,GL,EMS0104578, ,2021-01-01,2021-01-31,DC TELECOM TOLLS (TRANSFER),10154.37,2021
,2021 DEMOCRATIC CAUCUS,1,GENERAL EXPENDITURES,RENT  COMMUNICATION  UTILITIES,DETAIL,2021-03-26,AP,1402112,LEIDOS DIGITAL SOLUTIONS INC,2021-01-11,2021-01-11,TELECOMSRV/EQ/TOLL CHARGE,785,2021
,2021 DEMOCRATIC CAUCUS,1,GENERAL EXPENDITURES,RENT  COMMUNICATION  UTILITIES,DETAIL,2021-03-26,AP,1402116,LEIDOS DIGITAL SOLUTIONS INC,2021-01-26,2021-01-26,TELECOMSRV/EQ/TOLL CHARGE,785,2021
,2021 DEMOCRATIC CAUCUS,1,GENERAL EXPENDITURES,RENT  COMMUNICATION  UTILITIES,DETAIL,2021-03-26,AP,1402122,LEIDOS DIGITAL SOLUTIONS INC,2021-02-10,2021-02-10,TELECOMSRV/EQ/TOLL CHARGE,785,2021
,2021 DEMOCRATIC CAUCUS,1,GENERAL EXPENDITURES,RENT  COMMUNICATION  UTILITIES,DETAIL,2021-03-26,AP,1402125,LEIDOS DIGITAL SOLUTIONS INC,2021-03-02,2021-03-02,TELECOMSRV/EQ/TOLL CHARGE,2464,2021
,2021 DEMOCRATIC CAUCUS,1,GENERAL EXPENDITURES,RENT  COMMUNICATION  UTILITIES,DETAIL,2021-03-30,GL,EMS0105388, ,2021-02-01,2021-02-28,DC TELECOM EQUIP (TRANSFER),156,2021
,2021 DEMOCRATIC CAUCUS,1,GENERAL EXPENDITURES,RENT  COMMUNICATION  UTILITIES,DETAIL,2021-03-30,GL,EMS0105388, ,2021-02-01,2021-02-28,DC TELECOM SERV (TRANSFER),258,2021
,2021 DEMOCRATIC CAUCUS,1,GENERAL EXPENDITURES,RENT  COMMUNICATION  UTILITIES,DETAIL,2021-03-30,GL,EMS0105388, ,2021-02-01,2021-02-28,DC TELECOM TOLLS (TRANSFER),10280.16,2021
,2021 DEMOCRATIC CAUCUS,1,GENERAL EXPENDITURES,RENT  COMMUNICATION  UTILITIES,SUBTOTAL,   ,   ,   ,   ,   ,   ,RENT  COMMUNICATION  UTILITIES TOTALS:,26048.06,2021
,2021 DEMOCRATIC CAUCUS,1,GENERAL EXPENDITURES,PRINTING AND REPRODUCTION,DETAIL,2021-03-26,AP,1402160,XEROX CORPORATION,2020-12-30,2021-01-21,PRINTING & REPRODUCTION,260,2021
,2021 DEMOCRATIC CAUCUS,1,GENERAL EXPENDITURES,PRINTING AND REPRODUCTION,SUBTOTAL,   ,   ,   ,   ,   ,   ,PRINTING AND REPRODUCTION TOTALS:,260,2021
,2021 DEMOCRATIC CAUCUS,1,GENERAL EXPENDITURES,OTHER SERVICES,DETAIL,2021-01-16,AP,1378288,LEIDOS DIGITAL SOLUTIONS INC,2021-01-01,2021-01-31,TECHNOLOGY SERVICE CONTRACTS,4311,2021
,2021 DEMOCRATIC CAUCUS,1,GENERAL EXPENDITURES,OTHER SERVICES,DETAIL,2021-02-16,AP,1386466,LEIDOS DIGITAL SOLUTIONS INC,2021-02-01,2021-02-28,TECHNOLOGY SERVICE CONTRACTS,4311,2021
,2021 DEMOCRATIC CAUCUS,1,GENERAL EXPENDITURES,OTHER SERVICES,DETAIL,2021-02-18,AP,1387132,MARKUP LLC,2021-01-04,2021-01-08,TECHNOLOGY SERVICE CONTRACTS,1450,2021
,2021 DEMOCRATIC CAUCUS,1,GENERAL EXPENDITURES,OTHER SERVICES,DETAIL,2021-02-19,AP,1387129,MARKUP LLC,2021-01-04,2021-01-08,TECHNOLOGY SERVICE CONTRACTS,9450,2021
,2021 DEMOCRATIC CAUCUS,1,GENERAL EXPENDITURES,OTHER SERVICES,DETAIL,2021-02-24,AP,1389302,HOPIN LIMITED,2021-03-01,2021-03-03,NON-TECHNOLOGY SERVICE CONTR,18000,2021
,2021 DEMOCRATIC CAUCUS,1,GENERAL EXPENDITURES,OTHER SERVICES,DETAIL,2021-03-16,AP,1397726,LEIDOS DIGITAL SOLUTIONS INC,2021-03-01,2021-03-31,TECHNOLOGY SERVICE CONTRACTS,4311,2021
,2021 DEMOCRATIC CAUCUS,1,GENERAL EXPENDITURES,OTHER SERVICES,DETAIL,2021-03-29,AP,1402113,LEIDOS DIGITAL SOLUTIONS INC,2021-02-01,2021-02-01,TECHNOLOGY SERVICE CONTRACTS,704,2021
,2021 DEMOCRATIC CAUCUS,1,GENERAL EXPENDITURES,OTHER SERVICES,DETAIL,2021-03-29,AP,1402185,CREATIVENGINE,2021-01-01,2021-01-31,WEB DEV HST EMAIL & RLTD SERV,300,2021
,2021 DEMOCRATIC CAUCUS,1,GENERAL EXPENDITURES,OTHER SERVICES,DETAIL,2021-03-29,AP,1402188,CREATIVENGINE,2021-02-01,2021-02-28,WEB DEV HST EMAIL & RLTD SERV,300,2021
,2021 DEMOCRATIC CAUCUS,1,GENERAL EXPENDITURES,OTHER SERVICES,DETAIL,2021-03-31,AP,1401885,CITI PCARD-RAGANCOMMUN,2021-02-17,2021-02-17,TRAINING,675,2021
,2021 DEMOCRATIC CAUCUS,1,GENERAL EXPENDITURES,OTHER SERVICES,DETAIL,2021-03-31,AP,1401885,CITI PCARD-TRINT,2021-01-16,2021-02-16,TECHNOLOGY SERVICE CONTRACTS,40,2021
,2021 DEMOCRATIC CAUCUS,1,GENERAL EXPENDITURES,OTHER SERVICES,SUBTOTAL,   ,   ,   ,   ,   ,   ,OTHER SERVICES TOTALS:,43852,2021
,2021 DEMOCRATIC CAUCUS,1,GENERAL EXPENDITURES,SUPPLIES AND MATERIALS,DETAIL,2021-01-26,AP,1376525,CITI PCARD-ENVATO,2020-12-15,2021-01-15,SOFTWARE  LESS THAN  $500,33,2021
,2021 DEMOCRATIC CAUCUS,1,GENERAL EXPENDITURES,SUPPLIES AND MATERIALS,DETAIL,2021-01-26,AP,1376525,CITI PCARD-STREAMYARD.COM,2020-12-15,2021-01-15,SOFTWARE  LESS THAN  $500,49,2021
,2021 DEMOCRATIC CAUCUS,1,GENERAL EXPENDITURES,SUPPLIES AND MATERIALS,DETAIL,2021-01-26,AP,1376525,CITI PCARD-TRINT,2020-12-16,2021-01-16,SOFTWARE  LESS THAN  $500,40,2021
,2021 DEMOCRATIC CAUCUS,1,GENERAL EXPENDITURES,SUPPLIES AND MATERIALS,DETAIL,2021-01-26,AP,1378251,CITI PCARD-APPLE.COM/BILL,2020-12-20,2021-01-19,SOFTWARE  LESS THAN  $500,1.05,2021
,2021 DEMOCRATIC CAUCUS,1,GENERAL EXPENDITURES,SUPPLIES AND MATERIALS,DETAIL,2021-01-26,AP,1378251,CITI PCARD-DROPBOX 7H46X73YL6GG,2020-12-24,2021-01-24,SOFTWARE  LESS THAN  $500,12.71,2021
,2021 DEMOCRATIC CAUCUS,1,GENERAL EXPENDITURES,SUPPLIES AND MATERIALS,DETAIL,2021-02-17,AP,1381585,STICKNEY LAKECIA N.,2021-01-03,2021-01-29,FOOD & BEVERAGE,135.65,2021
,2021 DEMOCRATIC CAUCUS,1,GENERAL EXPENDITURES,SUPPLIES AND MATERIALS,DETAIL,2021-02-19,AP,1384341,CITI PCARD-CRITICAL MENTION,2021-01-03,2022-01-02,PUBLICATIONS/REFERENCE MAT'L,4000,2021
,2021 DEMOCRATIC CAUCUS,1,GENERAL EXPENDITURES,SUPPLIES AND MATERIALS,DETAIL,2021-02-25,AP,1390911,READYREFRESH BY NESTLE,2021-01-31,2021-01-31,WATER,34.99,2021
,2021 DEMOCRATIC CAUCUS,1,GENERAL EXPENDITURES,SUPPLIES AND MATERIALS,DETAIL,2021-02-28,GL,RMS0104712, ,2021-02-01,2021-02-28,OFFICE SUPPLY (TRANSFER),1369.24,2021
,2021 DEMOCRATIC CAUCUS,1,GENERAL EXPENDITURES,SUPPLIES AND MATERIALS,DETAIL,2021-03-25,AP,1401954,CORNELL REBECCA T,2021-03-17,2021-03-17,FOOD & BEVERAGE,760,2021
,2021 DEMOCRATIC CAUCUS,1,GENERAL EXPENDITURES,SUPPLIES AND MATERIALS,DETAIL,2021-03-26,AP,1401822,CITI PCARD-AMAZON.COM 0E9Z774N3 AMZN,2021-01-11,2021-01-11,OFFICE SUPPLIES (OUTSIDE),139.99,2021
,2021 DEMOCRATIC CAUCUS,1,GENERAL EXPENDITURES,SUPPLIES AND MATERIALS,DETAIL,2021-03-26,AP,1401822,CITI PCARD-AMZN Mktp US,2021-02-18,2021-02-18,OFFICE SUPPLIES (OUTSIDE),-171.59,2021
,2021 DEMOCRATIC CAUCUS,1,GENERAL EXPENDITURES,SUPPLIES AND MATERIALS,DETAIL,2021-03-26,AP,1401822,CITI PCARD-AMZN Mktp US 5513J69T3,2021-02-18,2021-02-18,OFFICE SUPPLIES (OUTSIDE),171.59,2021
,2021 DEMOCRATIC CAUCUS,1,GENERAL EXPENDITURES,SUPPLIES AND MATERIALS,DETAIL,2021-03-26,AP,1401822,CITI PCARD-AMZN Mktp US DL3SA24E3,2021-01-04,2021-01-04,OFFICE SUPPLIES (OUTSIDE),20.99,2021
,2021 DEMOCRATIC CAUCUS,1,GENERAL EXPENDITURES,SUPPLIES AND MATERIALS,DETAIL,2021-03-26,AP,1401822,CITI PCARD-AMZN Mktp US RF44E9JX3,2021-01-04,2021-01-04,OFFICE SUPPLIES (OUTSIDE),22.99,2021
,2021 DEMOCRATIC CAUCUS,1,GENERAL EXPENDITURES,SUPPLIES AND MATERIALS,DETAIL,2021-03-26,AP,1401822,CITI PCARD-APPLE.COM/US,2021-01-08,2021-01-08,OFFICE SUPPLIES (OUTSIDE),326.48,2021
,2021 DEMOCRATIC CAUCUS,1,GENERAL EXPENDITURES,SUPPLIES AND MATERIALS,DETAIL,2021-03-26,AP,1401822,CITI PCARD-ARAMARK BALTIMOREMARYLAND,2021-01-12,2021-01-12,FOOD & BEVERAGE,300.93,2021
,2021 DEMOCRATIC CAUCUS,1,GENERAL EXPENDITURES,SUPPLIES AND MATERIALS,DETAIL,2021-03-26,AP,1401822,CITI PCARD-ARAMARK BALTIMOREMARYLAND,2021-01-14,2021-01-14,FOOD & BEVERAGE,300.93,2021
,2021 DEMOCRATIC CAUCUS,1,GENERAL EXPENDITURES,SUPPLIES AND MATERIALS,DETAIL,2021-03-26,AP,1401822,CITI PCARD-Agorapulse SAS,2021-01-14,2022-01-14,SOFTWARE  LESS THAN  $500,1908,2021
,2021 DEMOCRATIC CAUCUS,1,GENERAL EXPENDITURES,SUPPLIES AND MATERIALS,DETAIL,2021-03-26,AP,1401822,CITI PCARD-D J WALL-ST-JOURNAL,2021-01-06,2021-02-06,PUBLICATIONS/REFERENCE MAT'L,45.57,2021
,2021 DEMOCRATIC CAUCUS,1,GENERAL EXPENDITURES,SUPPLIES AND MATERIALS,DETAIL,2021-03-26,AP,1401822,CITI PCARD-D J WALL-ST-JOURNAL,2021-01-23,2021-02-23,PUBLICATIONS/REFERENCE MAT'L,45.57,2021
,2021 DEMOCRATIC CAUCUS,1,GENERAL EXPENDITURES,SUPPLIES AND MATERIALS,DETAIL,2021-03-26,AP,1401822,CITI PCARD-HOPIN,2021-01-13,2021-02-28,SOFTWARE  LESS THAN  $500,396,2021
,2021 DEMOCRATIC CAUCUS,1,GENERAL EXPENDITURES,SUPPLIES AND MATERIALS,DETAIL,2021-03-26,AP,1401822,CITI PCARD-MYFONTS INC,2021-01-04,2021-12-31,SOFTWARE  LESS THAN  $500,142.04,2021
,2021 DEMOCRATIC CAUCUS,1,GENERAL EXPENDITURES,SUPPLIES AND MATERIALS,DETAIL,2021-03-26,AP,1401822,CITI PCARD-PP SUGARCOLLAB,2021-01-04,2021-01-04,FOOD & BEVERAGE,3811,2021
,2021 DEMOCRATIC CAUCUS,1,GENERAL EXPENDITURES,SUPPLIES AND MATERIALS,DETAIL,2021-03-26,AP,1401822,CITI PCARD-UBER   EATS,2021-01-03,2021-01-03,FOOD & BEVERAGE,95.01,2021
,2021 DEMOCRATIC CAUCUS,1,GENERAL EXPENDITURES,SUPPLIES AND MATERIALS,DETAIL,2021-03-26,AP,1401822,CITI PCARD-UBER   EATS,2021-01-04,2021-01-04,FOOD & BEVERAGE,7.36,2021
,2021 DEMOCRATIC CAUCUS,1,GENERAL EXPENDITURES,SUPPLIES AND MATERIALS,DETAIL,2021-03-26,AP,1401822,CITI PCARD-UBER   EATS,2021-02-22,2021-02-22,FOOD & BEVERAGE,62.35,2021
,2021 DEMOCRATIC CAUCUS,1,GENERAL EXPENDITURES,SUPPLIES AND MATERIALS,DETAIL,2021-03-29,AP,1402192,POLITICO LLC,2021-02-01,2022-02-01,PUBLICATIONS/REFERENCE MAT'L,7318.36,2021
,2021 DEMOCRATIC CAUCUS,1,GENERAL EXPENDITURES,SUPPLIES AND MATERIALS,DETAIL,2021-03-31,AP,1401885,CITI PCARD-ALL UNION PROMOS,2021-02-03,2021-02-03,OFFICE SUPPLIES (OUTSIDE),5019.22,2021
,2021 DEMOCRATIC CAUCUS,1,GENERAL EXPENDITURES,SUPPLIES AND MATERIALS,DETAIL,2021-03-31,AP,1401885,CITI PCARD-AMZN MKTP US SR6KU5CC3 AM,2021-02-05,2021-02-05,OFFICE SUPPLIES (OUTSIDE),99.62,2021
,2021 DEMOCRATIC CAUCUS,1,GENERAL EXPENDITURES,SUPPLIES AND MATERIALS,DETAIL,2021-03-31,AP,1401885,CITI PCARD-AMZN Mktp US IM6TZ8VW3,2021-01-31,2021-01-31,OFFICE SUPPLIES (OUTSIDE),10.5,2021
,2021 DEMOCRATIC CAUCUS,1,GENERAL EXPENDITURES,SUPPLIES AND MATERIALS,DETAIL,2021-03-31,AP,1401885,CITI PCARD-AMZN Mktp US MP3OF04T3,2021-01-29,2021-01-29,OFFICE SUPPLIES (OUTSIDE),70.8,2021
,2021 DEMOCRATIC CAUCUS,1,GENERAL EXPENDITURES,SUPPLIES AND MATERIALS,DETAIL,2021-03-31,AP,1401885,CITI PCARD-APPLE.COM/BILL,2021-01-20,2021-02-20,SOFTWARE  LESS THAN  $500,1.05,2021
,2021 DEMOCRATIC CAUCUS,1,GENERAL EXPENDITURES,SUPPLIES AND MATERIALS,DETAIL,2021-03-31,AP,1401885,CITI PCARD-AWARDS AND TSHIRTS,2021-02-03,2021-02-03,OFFICE SUPPLIES (OUTSIDE),808.17,2021
,2021 DEMOCRATIC CAUCUS,1,GENERAL EXPENDITURES,SUPPLIES AND MATERIALS,DETAIL,2021-03-31,AP,1401885,CITI PCARD-Amazon.com HG18U9CK3,2021-01-28,2021-01-28,OFFICE SUPPLIES (OUTSIDE),81,2021
,2021 DEMOCRATIC CAUCUS,1,GENERAL EXPENDITURES,SUPPLIES AND MATERIALS,DETAIL,2021-03-31,AP,1401885,CITI PCARD-CQ ROLL CALL INC.,2021-02-26,2022-02-25,PUBLICATIONS/REFERENCE MAT'L,3500,2021
,2021 DEMOCRATIC CAUCUS,1,GENERAL EXPENDITURES,SUPPLIES AND MATERIALS,DETAIL,2021-03-31,AP,1401885,CITI PCARD-D J WALL-ST-JOURNAL,2021-02-06,2021-03-06,PUBLICATIONS/REFERENCE MAT'L,45.57,2021
,2021 DEMOCRATIC CAUCUS,1,GENERAL EXPENDITURES,SUPPLIES AND MATERIALS,DETAIL,2021-03-31,AP,1401885,CITI PCARD-DROPBOX 2R3DHYNVL2CF,2021-01-24,2021-02-24,SOFTWARE  LESS THAN  $500,12.71,2021
,2021 DEMOCRATIC CAUCUS,1,GENERAL EXPENDITURES,SUPPLIES AND MATERIALS,DETAIL,2021-03-31,AP,1401885,CITI PCARD-HARRIS TEETER #0282,2021-01-31,2021-01-31,FOOD & BEVERAGE,242.02,2021
,2021 DEMOCRATIC CAUCUS,1,GENERAL EXPENDITURES,SUPPLIES AND MATERIALS,DETAIL,2021-03-31,AP,1401885,CITI PCARD-HARRIS TEETER #0282,2021-01-31,2021-01-31,OFFICE SUPPLIES (OUTSIDE),16.5,2021
,2021 DEMOCRATIC CAUCUS,1,GENERAL EXPENDITURES,SUPPLIES AND MATERIALS,DETAIL,2021-03-31,AP,1401885,CITI PCARD-HOPIN,2021-01-15,2021-01-15,SOFTWARE  LESS THAN  $500,92.75,2021
,2021 DEMOCRATIC CAUCUS,1,GENERAL EXPENDITURES,SUPPLIES AND MATERIALS,DETAIL,2021-03-31,AP,1401885,CITI PCARD-NYTIMES,2021-01-03,2021-07-21,PUBLICATIONS/REFERENCE MAT'L,1046.5,2021
,2021 DEMOCRATIC CAUCUS,1,GENERAL EXPENDITURES,SUPPLIES AND MATERIALS,DETAIL,2021-03-31,AP,1401885,CITI PCARD-PAYPAL  MELSMAGNIFI,2021-03-02,2021-03-02,FOOD & BEVERAGE,1350,2021
,2021 DEMOCRATIC CAUCUS,1,GENERAL EXPENDITURES,SUPPLIES AND MATERIALS,DETAIL,2021-03-31,AP,1401885,CITI PCARD-PUNCHBOWL.NEWS,2021-02-01,2022-02-01,PUBLICATIONS/REFERENCE MAT'L,318,2021
,2021 DEMOCRATIC CAUCUS,1,GENERAL EXPENDITURES,SUPPLIES AND MATERIALS,DETAIL,2021-03-31,AP,1401885,CITI PCARD-SQ  PETER'S KETTLE CORN,2021-02-05,2021-02-05,FOOD & BEVERAGE,1616.73,2021
,2021 DEMOCRATIC CAUCUS,1,GENERAL EXPENDITURES,SUPPLIES AND MATERIALS,DETAIL,2021-03-31,AP,1401885,CITI PCARD-TEAISM PENN QUARTER,2021-02-04,2021-02-04,FOOD & BEVERAGE,3250,2021
,2021 DEMOCRATIC CAUCUS,1,GENERAL EXPENDITURES,SUPPLIES AND MATERIALS,DETAIL,2021-03-31,AP,1401885,CITI PCARD-WEDDING LINENS INC,2021-02-09,2021-02-09,OFFICE SUPPLIES (OUTSIDE),299.7,2021
,2021 DEMOCRATIC CAUCUS,1,GENERAL EXPENDITURES,SUPPLIES AND MATERIALS,DETAIL,2021-03-31,AP,1402798,READYREFRESH BY NESTLE,2021-02-28,2021-02-28,WATER,34.99,2021
,2021 DEMOCRATIC CAUCUS,1,GENERAL EXPENDITURES,SUPPLIES AND MATERIALS,DETAIL,2021-03-31,GL,RMS0105505, ,2021-03-01,2021-03-31,OFFICE SUPPLY (TRANSFER),223.29,2021
,2021 DEMOCRATIC CAUCUS,1,GENERAL EXPENDITURES,SUPPLIES AND MATERIALS,SUBTOTAL,   ,   ,   ,   ,   ,   ,SUPPLIES AND MATERIALS TOTALS:,39518.33,2021
,2021 DEMOCRATIC CAUCUS,1,GENERAL EXPENDITURES,EQUIPMENT,DETAIL,2021-01-29,GL,MNT0103932, ,2021-01-01,2021-01-31,MAINTENANCE / REPAIRS,490,2021
,2021 DEMOCRATIC CAUCUS,1,GENERAL EXPENDITURES,EQUIPMENT,DETAIL,2021-02-26,GL,MNT0104611, ,2021-02-01,2021-02-28,MAINTENANCE / REPAIRS,490,2021
,2021 DEMOCRATIC CAUCUS,1,GENERAL EXPENDITURES,EQUIPMENT,DETAIL,2021-03-31,AP,1401885,CITI PCARD-AMZN Mktp US A64Z66QZ3,2021-02-02,2021-02-02,COMPUTER HARDW PURCH  LESS THAN $25 000,1748,2021
,2021 DEMOCRATIC CAUCUS,1,GENERAL EXPENDITURES,EQUIPMENT,DETAIL,2021-03-31,AP,1401885,CITI PCARD-AMZN Mktp US QV7DV2Q23,2021-02-02,2021-02-02,COMPUTER HARDW PURCH  LESS THAN $25 000,399.2,2021
,2021 DEMOCRATIC CAUCUS,1,GENERAL EXPENDITURES,EQUIPMENT,DETAIL,2021-03-31,AP,1401885,CITI PCARD-APPLE.COM/US,2021-01-20,2021-01-20,COMPUTER HARDW PURCH  LESS THAN $25 000,846.94,2021
,2021 DEMOCRATIC CAUCUS,1,GENERAL EXPENDITURES,EQUIPMENT,DETAIL,2021-03-31,GL,MNT0105439, ,2021-03-01,2021-03-31,MAINTENANCE / REPAIRS,490,2021
,2021 DEMOCRATIC CAUCUS,1,GENERAL EXPENDITURES,EQUIPMENT,SUBTOTAL,   ,   ,   ,   ,   ,   ,EQUIPMENT TOTALS:,4464.14,2021
,2021 DEMOCRATIC CAUCUS,1,GENERAL EXPENDITURES,EQUIPMENT,SUBTOTAL,   ,   ,   ,   ,   ,   ,GENERAL EXPENDITURES TOTALS:,458549.84,2021
,2021 DEMOCRATIC CAUCUS,1,GENERAL EXPENDITURES,EQUIPMENT,GRAND TOTAL FOR ORGANIZATION,   ,   ,   ,   ,   ,   ,OFFICE TOTALS: ,458549.84,2021
,2020 DEMOCRATIC CAUCUS,1,GENERAL EXPENDITURES,PERSONNEL COMPENSATION,DETAIL,   ,   ,   ,ARAYA MESERET M,2021-01-01,2021-01-02,POLICY ADVISOR,277.78,2021
,2020 DEMOCRATIC CAUCUS,1,GENERAL EXPENDITURES,PERSONNEL COMPENSATION,DETAIL,   ,   ,   ,BRAGIN GIDEON,2020-01-30,2021-01-02,EXECUTIVE DIRECTOR,3754.27,2021
,2020 DEMOCRATIC CAUCUS,1,GENERAL EXPENDITURES,PERSONNEL COMPENSATION,DETAIL,   ,   ,   ,CARRILLO MANUEL J,2021-01-01,2021-01-02,DIRECTOR OF OPERATIONS,611.11,2021
,2020 DEMOCRATIC CAUCUS,1,GENERAL EXPENDITURES,PERSONNEL COMPENSATION,DETAIL,   ,   ,   ,DAWSON EARNESTINE E,2021-01-01,2021-01-02,DIGITAL DIRECTOR & ADVISOR TO,555.56,2021
